Workbook

Sheet Student Entry
A1: Student Entry
A2: School # 1 Name: | B2: School # 2 Name: | C2: School # 3 Name:
A3: Forest Lake | B3: Osseo-Maple Grove
A4: Student Names: | B4: Student Names: | C4: Student Names:
A5: Paige Anderson | B5: Heather Breidenbach
A6: Emma Armitage | B6: Carolin LaBord
A7: Ariel Ball | B7: Katelyn Molin
A8: Lizzy Hentges | B8: Katherine Olsen
A9: Heidi Hyrkas | B9: Alexandra Trudeau
A10: Johanna Livermore | B10: Anneke DeLooze
A11: Ashlyn Mackowick | B11: Allison Hannann
A12: Zoe Scholl | B12: Haley Heiss
A13: Jenna Stockinger | B13: Katherine Hildebrandt
A14: Kelly Sullivan | B14: Emily Honnold
A15: Maggie Thompson | B15: Rachel Knox
A16: Indy Walstrom | B16: Ellery Mason
A17: Lydia Zimmerman | B17: Madison Peters
A18: Mckinley Leavitt | B18: Margo Prentice
A19: Rachel Milbauer | B19: Zoe Waldron
A20: Ellie Thiele
A21: Rylie Sampson
A22: Alva Westher

Sheet Fig 1 Ballet Leg
B1: Figure #1: | C1: 101 R/L Ballet Leg, single, *right or *left
A2: # | B2: Degree of Difficulty | C2: Judge 1 | D2: Judge 2 | E2: Judge 3 | F2: Judge 4 | G2: Judge 5 | H2: Score | I2: Penalty
A3: =IF(Draw!E2=0,"",Draw!E2) -> 1 | B3: 1.6 | C3: 47 | D3: 51 | E3: 51 | F3: 54 | G3: 51 | H3: =IF(A3="","",(IF(F3>0,(SUM(C3:G3)-MAX(C3:G3)-MIN(C3:G3))/3,SUM(C3:E3)/3))*B3/7.6) -> 10.73684211
A4: =IF(Draw!E3=0,"",Draw!E3) -> 2 | B4: =IF(A4="","",B$3) -> 1.6 | C4: 50 | D4: 53 | E4: 53 | F4: 54 | G4: 53 | H4: =IF(A4="","",(IF(F4>0,(SUM(C4:G4)-MAX(C4:G4)-MIN(C4:G4))/3,SUM(C4:E4)/3))*B4/7.6) -> 11.15789474
A5: =IF(Draw!E4=0,"",Draw!E4) -> 3 | B5: 1.6 | C5: 49 | D5: 46 | E5: 48 | F5: 49 | G5: 49 | H5: 10.24561404
A6: =IF(Draw!E5=0,"",Draw!E5) -> 4 | B6: =IF(A6="","",B$3) -> 1.6 | C6: x | D6: x | E6: x | F6: x | G6: x | H6: 0
A7: =IF(Draw!E6=0,"",Draw!E6) -> 5 | B7: 1.6 | C7: 52 | D7: 50 | E7: 50 | F7: 51 | G7: 52 | H7: =IF(A7="","",(IF(F7>0,(SUM(C7:G7)-MAX(C7:G7)-MIN(C7:G7))/3,SUM(C7:E7)/3))*B7/7.6) -> 10.73684211
A8: =IF(Draw!E7=0,"",Draw!E7) -> 6 | B8: 1.6 | C8: 45 | D8: 47 | E8: 45 | F8: 47 | G8: 46 | H8: 9.684210526
A9: =IF(Draw!E8=0,"",Draw!E8) -> 7 | B9: 1.6 | C9: 57 | D9: 51 | E9: 53 | F9: 53 | G9: 50 | H9: 11.01754386
A10: =IF(Draw!E9=0,"",Draw!E9) -> 8 | B10: 1.6 | C10: 45 | D10: 48 | E10: 47 | F10: 49 | G10: 45 | H10: 9.824561404
A11: =IF(Draw!E10=0,"",Draw!E10) -> 9 | B11: 1.6 | C11: 50 | D11: 47 | E11: 48 | F11: 50 | G11: 51 | H11: 10.38596491
A12: =IF(Draw!E11=0,"",Draw!E11) -> 10 | B12: 1.6 | C12: 51 | D12: 53 | E12: 54 | F12: 53 | G12: 53 | H12: 11.15789474
A13: =IF(Draw!E12=0,"",Draw!E12) -> 11 | B13: 1.6 | C13: 49 | D13: 45 | E13: 45 | F13: 46 | G13: 46 | H13: 9.614035088
A14: =IF(Draw!E13=0,"",Draw!E13) -> 12 | B14: 1.6 | C14: 54 | D14: 50 | E14: 54 | F14: 52 | G14: 51 | H14: 11.01754386
A15: =IF(Draw!E14=0,"",Draw!E14) -> 13 | B15: 1.6 | C15: 48 | D15: 49 | E15: 44 | F15: 45 | G15: 45 | H15: 9.684210526
A16: =IF(Draw!E15=0,"",Draw!E15) -> 14 | B16: 1.6 | C16: 5 | D16: 44 | E16: 46 | F16: 47 | G16: 48 | H16: 9.614035088
A17: =IF(Draw!E16=0,"",Draw!E16) -> 15 | B17: 1.6 | C17: 56 | D17: 56 | E17: 56 | F17: 55 | G17: 57 | H17: 11.78947368
A18: =IF(Draw!E17=0,"",Draw!E17) -> 16 | B18: 1.6 | C18: 45 | D18: 46 | E18: 43 | F18: 45 | G18: 45 | H18: 9.473684211
A19: =IF(Draw!E18=0,"",Draw!E18) -> 17 | B19: 1.6 | C19: 50 | D19: 54 | E19: 50 | F19: 50 | G19: 53 | H19: 10.73684211
A20: =IF(Draw!E19=0,"",Draw!E19) -> 18 | B20: 1.6 | C20: x | D20: x | E20: x | F20: x | G20: x | H20: 0
A21: =IF(Draw!E20=0,"",Draw!E20) -> 19 | B21: 1.6 | C21: 51 | D21: 53 | E21: 51 | F21: 51 | G21: 51 | H21: 10.73684211
A22: =IF(Draw!E21=0,"",Draw!E21) -> 20 | B22: 1.6 | C22: 47 | D22: 49 | E22: 48 | F22: 48 | G22: 47 | H22: 10.03508772
A23: =IF(Draw!E22=0,"",Draw!E22) -> 21 | B23: 1.6 | C23: 48 | D23: 46 | E23: 45 | F23: 46 | G23: 45 | H23: 9.614035088
A24: =IF(Draw!E23=0,"",Draw!E23) -> 22 | B24: 1.6 | C24: 46 | D24: 46 | E24: 43 | F24: 44 | G24: 44 | H24: 9.403508772
A25: =IF(Draw!E24=0,"",Draw!E24) -> 23 | B25: 1.6 | C25: 51 | D25: 51 | E25: 50 | F25: 50 | G25: 54 | H25: 10.66666667
A26: =IF(Draw!E25=0,"",Draw!E25) -> 24 | B26: 1.6 | C26: 51 | D26: 53 | E26: 54 | F26: 53 | G26: 52 | H26: 11.0877193
A27: =IF(Draw!E26=0,"",Draw!E26) -> 25 | B27: 1.6 | C27: 49 | D27: 47 | E27: 48 | F27: 46 | G27: 50 | H27: 10.10526316
A28: =IF(Draw!E27=0,"",Draw!E27) -> 26 | B28: 1.6 | C28: 50 | D28: 49 | E28: 51 | F28: 49 | G28: 49 | H28: 10.38596491
A29: =IF(Draw!E28=0,"",Draw!E28) -> 27 | B29: 1.6 | C29: 43 | D29: 44 | E29: 46 | F29: 45 | G29: 45 | H29: 9.403508772
A30: =IF(Draw!E29=0,"",Draw!E29) -> 28 | B30: 1.6 | C30: x | D30: x | E30: x | F30: x | G30: x | H30: 0
A31: =IF(Draw!E30=0,"",Draw!E30) -> 29 | B31: 1.6 | C31: 46 | D31: 43 | E31: 44 | F31: 47 | G31: 48 | H31: 9.614035088
A32: =IF(Draw!E31=0,"",Draw!E31) -> 30 | B32: 1.6 | C32: 50 | D32: 52 | E32: 45 | F32: 49 | G32: 47 | H32: 10.24561404
A33: =IF(Draw!E32=0,"",Draw!E32) -> 31 | B33: 1.6 | C33: 51 | D33: 49 | E33: 44 | F33: 50 | G33: 48 | H33: 10.31578947
A34: =IF(Draw!E33=0,"",Draw!E33) -> 32 | B34: 1.6 | C34: 43 | D34: 40 | E34: 40 | F34: 42 | G34: 43 | H34: 8.771929825
A35: =IF(Draw!E34=0,"",Draw!E34) -> 33 | B35: 1.6 | C35: x | D35: x | E35: x | F35: x | G35: x | H35: 0
A36: =IF(Draw!E35=0,"",Draw!E35) -> 
A37: =IF(Draw!E36=0,"",Draw!E36) -> 
A38: =IF(Draw!E37=0,"",Draw!E37) -> 
A39: =IF(Draw!E38=0,"",Draw!E38) -> 
A40: =IF(Draw!E39=0,"",Draw!E39) -> 
A41: =IF(Draw!E40=0,"",Draw!E40) -> 
A42: =IF(Draw!E41=0,"",Draw!E41) -> 
A43: =IF(Draw!E42=0,"",Draw!E42) -> 
A44: =IF(Draw!E43=0,"",Draw!E43) -> 
A45: =IF(Draw!E44=0,"",Draw!E44) -> 
A46: =IF(Draw!E45=0,"",Draw!E45) -> 
A47: =IF(Draw!E46=0,"",Draw!E46) -> 
A48: =IF(Draw!E47=0,"",Draw!E47) -> 
A49: =IF(Draw!E48=0,"",Draw!E48) -> 
A50: =IF(Draw!E49=0,"",Draw!E49) -> 
A51: =IF(Draw!E50=0,"",Draw!E50) -> 
A52: =IF(Draw!E51=0,"",Draw!E51) -> 
A53: =IF(Draw!E52=0,"",Draw!E52) -> 
A54: =IF(Draw!E53=0,"",Draw!E53) -> 
A55: =IF(Draw!E54=0,"",Draw!E54) -> 
A56: =IF(Draw!E55=0,"",Draw!E55) -> 
A57: =IF(Draw!E56=0,"",Draw!E56) -> 
A58: =IF(Draw!E57=0,"",Draw!E57) -> 
A59: =IF(Draw!E58=0,"",Draw!E58) -> 
A60: =IF(Draw!E59=0,"",Draw!E59) -> 
A61: =IF(Draw!E60=0,"",Draw!E60) -> 
A62: =IF(Draw!E61=0,"",Draw!E61) -> 
A63: =IF(Draw!E62=0,"",Draw!E62) -> 
A64: =IF(Draw!E63=0,"",Draw!E63) -> 
A65: =IF(Draw!E64=0,"",Draw!E64) -> 
A66: =IF(Draw!E65=0,"",Draw!E65) -> 
A67: =IF(Draw!E66=0,"",Draw!E66) -> 
A68: =IF(Draw!E67=0,"",Draw!E67) -> 
A69: =IF(Draw!E68=0,"",Draw!E68) -> 
A70: =IF(Draw!E69=0,"",Draw!E69) ->  | B70: =IF(A70="","",B$3) -> 
A71: =IF(Draw!E70=0,"",Draw!E70) ->  | H71: =IF(A71="","",(IF(F71>0,(SUM(C71:G71)-MAX(C71:G71)-MIN(C71:G71))/3,SUM(C71:E71)/3))*B71/7.6) -> 
A72: =IF(Draw!E71=0,"",Draw!E71) -> 
A73: =IF(Draw!E72=0,"",Draw!E72) -> 
A74: =IF(Draw!E73=0,"",Draw!E73) -> 
A75: =IF(Draw!E74=0,"",Draw!E74) -> 
A76: =IF(Draw!E75=0,"",Draw!E75) -> 
A77: =IF(Draw!E76=0,"",Draw!E76) -> 
A78: =IF(Draw!E77=0,"",Draw!E77) -> 
A79: =IF(Draw!E78=0,"",Draw!E78) -> 
A80: =IF(Draw!E79=0,"",Draw!E79) -> 
A81: =IF(Draw!E80=0,"",Draw!E80) -> 
A82: =IF(Draw!E81=0,"",Draw!E81) -> 
A83: =IF(Draw!E82=0,"",Draw!E82) -> 
A84: =IF(Draw!E83=0,"",Draw!E83) -> 
A85: =IF(Draw!E84=0,"",Draw!E84) -> 
A86: =IF(Draw!E85=0,"",Draw!E85) -> 
A87: =IF(Draw!E86=0,"",Draw!E86) -> 
A88: =IF(Draw!E87=0,"",Draw!E87) -> 
A89: =IF(Draw!E88=0,"",Draw!E88) -> 
A90: =IF(Draw!E89=0,"",Draw!E89) -> 
A91: =IF(Draw!E90=0,"",Draw!E90) -> 
A92: =IF(Draw!E91=0,"",Draw!E91) -> 
A93: =IF(Draw!E92=0,"",Draw!E92) -> 
A94: =IF(Draw!E93=0,"",Draw!E93) -> 
A95: =IF(Draw!E94=0,"",Draw!E94) -> 
A96: =IF(Draw!E95=0,"",Draw!E95) -> 
A97: =IF(Draw!E96=0,"",Draw!E96) -> 
A98: =IF(Draw!E97=0,"",Draw!E97) -> 
A99: =IF(Draw!E98=0,"",Draw!E98) -> 
A100: =IF(Draw!E99=0,"",Draw!E99) -> 
A101: =IF(Draw!E100=0,"",Draw!E100) -> 
A102: =IF(Draw!E101=0,"",Draw!E101) -> 
A103: =IF(Draw!E102=0,"",Draw!E102) -> 
A104: =IF(Draw!E103=0,"",Draw!E103) -> 
A105: =IF(Draw!E104=0,"",Draw!E104) -> 
A106: =IF(Draw!E105=0,"",Draw!E105) -> 
A107: =IF(Draw!E106=0,"",Draw!E106) -> 
A108: =IF(Draw!E107=0,"",Draw!E107) -> 
A109: =IF(Draw!E108=0,"",Draw!E108) -> 
A110: =IF(Draw!E109=0,"",Draw!E109) -> 
A111: =IF(Draw!E110=0,"",Draw!E110) -> 
A112: =IF(Draw!E111=0,"",Draw!E111) -> 
A113: =IF(Draw!E112=0,"",Draw!E112) -> 
A114: =IF(Draw!E113=0,"",Draw!E113) -> 
A115: =IF(Draw!E114=0,"",Draw!E114) -> 
A116: =IF(Draw!E115=0,"",Draw!E115) -> 
A117: =IF(Draw!E116=0,"",Draw!E116) -> 
A118: =IF(Draw!E117=0,"",Draw!E117) -> 
A119: =IF(Draw!E118=0,"",Draw!E118) -> 
A120: =IF(Draw!E119=0,"",Draw!E119) -> 
A121: =IF(Draw!E120=0,"",Draw!E120) -> 
A122: =IF(Draw!E121=0,"",Draw!E121) -> 
A123: =IF(Draw!E122=0,"",Draw!E122) -> 
A124: =IF(Draw!E123=0,"",Draw!E123) -> 
A125: =IF(Draw!E124=0,"",Draw!E124) -> 
A126: =IF(Draw!E125=0,"",Draw!E125) -> 
A127: =IF(Draw!E126=0,"",Draw!E126) -> 
A128: =IF(Draw!E127=0,"",Draw!E127) -> 
A129: =IF(Draw!E128=0,"",Draw!E128) -> 
A130: =IF(Draw!E129=0,"",Draw!E129) -> 
A131: =IF(Draw!E130=0,"",Draw!E130) -> 
A132: =IF(Draw!E131=0,"",Draw!E131) -> 
A133: =IF(Draw!E132=0,"",Draw!E132) -> 
A134: =IF(Draw!E133=0,"",Draw!E133) ->  | B134: =IF(A134="","",B$3) -> 
A135: =IF(Draw!E134=0,"",Draw!E134) ->  | H135: =IF(A135="","",(IF(F135>0,(SUM(C135:G135)-MAX(C135:G135)-MIN(C135:G135))/3,SUM(C135:E135)/3))*B135/7.6) -> 
A136: =IF(Draw!E135=0,"",Draw!E135) -> 
A137: =IF(Draw!E136=0,"",Draw!E136) -> 
A138: =IF(Draw!E137=0,"",Draw!E137) -> 
A139: =IF(Draw!E138=0,"",Draw!E138) -> 
A140: =IF(Draw!E139=0,"",Draw!E139) -> 
A141: =IF(Draw!E140=0,"",Draw!E140) -> 
A142: =IF(Draw!E141=0,"",Draw!E141) -> 
A143: =IF(Draw!E142=0,"",Draw!E142) -> 
A144: =IF(Draw!E143=0,"",Draw!E143) -> 
A145: =IF(Draw!E144=0,"",Draw!E144) -> 
A146: =IF(Draw!E145=0,"",Draw!E145) -> 
A147: =IF(Draw!E146=0,"",Draw!E146) -> 
A148: =IF(Draw!E147=0,"",Draw!E147) -> 
A149: =IF(Draw!E148=0,"",Draw!E148) -> 
A150: =IF(Draw!E149=0,"",Draw!E149) -> 

Sheet Fig 2 Barracuda
B1: Figure #2: | C1: 301 Barracuda
A2: # | B2: Degree of Difficulty | C2: Judge 1 | D2: Judge 2 | E2: Judge 3 | F2: Judge 4 | G2: Judge 5 | H2: Score | I2: Penalty
A3: =IF(Draw!E2=0,"",Draw!E2) -> 1 | B3: 2 | C3: 54 | D3: 55 | E3: 53 | F3: 54 | G3: 51 | H3: =(IF(F3>0,(SUM(C3:G3)-MAX(C3:G3)-MIN(C3:G3))/3,SUM(C3:E3)/3))*B3/7.6 -> 14.12280702
A4: =IF(Draw!E3=0,"",Draw!E3) -> 2 | B4: =IF(A4="","",B$3) -> 2 | C4: 43 | D4: 41 | E4: 41 | F4: 41 | G4: 41 | H4: =IF(A4="","",(IF(F4>0,(SUM(C4:G4)-MAX(C4:G4)-MIN(C4:G4))/3,SUM(C4:E4)/3))*B4/7.6) -> 10.78947368
A5: =IF(Draw!E4=0,"",Draw!E4) -> 3 | B5: 2 | C5: 47 | D5: 39 | E5: 44 | F5: 44 | G5: 48 | H5: =IF(A5="","",(IF(F5>0,(SUM(C5:G5)-MAX(C5:G5)-MIN(C5:G5))/3,SUM(C5:E5)/3))*B5/7.6) -> 11.84210526
A6: =IF(Draw!E5=0,"",Draw!E5) -> 4 | B6: =IF(A6="","",B$3) -> 2 | C6: x | D6: x | E6: x | F6: x | G6: x | H6: =IF(A6="","",(IF(F6>0,(SUM(C6:G6)-MAX(C6:G6)-MIN(C6:G6))/3,SUM(C6:E6)/3))*B6/7.6) -> 0
A7: =IF(Draw!E6=0,"",Draw!E6) -> 5 | B7: 2 | C7: 52 | D7: 49 | E7: 48 | F7: 46 | G7: 47 | H7: 12.63157895
A8: =IF(Draw!E7=0,"",Draw!E7) -> 6 | B8: 2 | C8: 45 | D8: 41 | E8: 42 | F8: 39 | G8: 48 | H8: 11.22807018
A9: =IF(Draw!E8=0,"",Draw!E8) -> 7 | B9: 2 | C9: 49 | D9: 53 | E9: 46 | F9: 48 | G9: 50 | H9: 12.89473684
A10: =IF(Draw!E9=0,"",Draw!E9) -> 8 | B10: 2 | C10: 44 | D10: 38 | E10: 38 | F10: 39 | G10: 39 | H10: 10.1754386
A11: =IF(Draw!E10=0,"",Draw!E10) -> 9 | B11: 2 | C11: 46 | D11: 47 | E11: 43 | F11: 45 | G11: 47 | H11: 12.10526316
A12: =IF(Draw!E11=0,"",Draw!E11) -> 10 | B12: 2 | C12: 55 | D12: 55 | E12: 57 | F12: 57 | G12: 54 | H12: 14.64912281
A13: =IF(Draw!E12=0,"",Draw!E12) -> 11 | B13: 2 | C13: 50 | D13: 50 | E13: 50 | F13: 54 | G13: 45 | H13: 13.15789474
A14: =IF(Draw!E13=0,"",Draw!E13) -> 12 | B14: 2 | C14: 47 | D14: 52 | E14: 49 | F14: 48 | G14: 46 | H14: 12.63157895
A15: =IF(Draw!E14=0,"",Draw!E14) -> 13 | B15: 2 | C15: 34 | D15: 36 | E15: 37 | F15: 34 | G15: 30 | H15: 9.122807018
A16: =IF(Draw!E15=0,"",Draw!E15) -> 14 | B16: 2 | C16: 45 | D16: 44 | E16: 40 | F16: 38 | G16: 38 | H16: 10.70175439
A17: =IF(Draw!E16=0,"",Draw!E16) -> 15 | B17: 2 | C17: 53 | D17: 49 | E17: 58 | F17: 56 | G17: 52 | H17: 14.12280702
A18: =IF(Draw!E17=0,"",Draw!E17) -> 16 | B18: 2 | C18: 48 | D18: 45 | E18: 46 | F18: 45 | G18: 47 | H18: 12.10526316
A19: =IF(Draw!E18=0,"",Draw!E18) -> 17 | B19: 2 | C19: 46 | D19: 42 | E19: 42 | F19: 44 | G19: 49 | H19: 11.57894737
A20: =IF(Draw!E19=0,"",Draw!E19) -> 18 | B20: 2 | C20: x | D20: x | E20: x | F20: x | G20: x | H20: 0
A21: =IF(Draw!E20=0,"",Draw!E20) -> 19 | B21: 2 | C21: 45 | D21: 42 | E21: 44 | F21: 44 | G21: 38 | H21: 11.40350877
A22: =IF(Draw!E21=0,"",Draw!E21) -> 20 | B22: 2 | C22: 43 | D22: 40 | E22: 38 | F22: 39 | G22: 37 | H22: 10.26315789
A23: =IF(Draw!E22=0,"",Draw!E22) -> 21 | B23: 2 | C23: 46 | D23: 50 | E23: 48 | F23: 51 | G23: 49 | H23: 12.89473684
A24: =IF(Draw!E23=0,"",Draw!E23) -> 22 | B24: 2 | C24: 42 | D24: 35 | E24: 34 | F24: 38 | G24: 40 | H24: 9.912280702
A25: =IF(Draw!E24=0,"",Draw!E24) -> 23 | B25: 2 | C25: 47 | D25: 49 | E25: 50 | F25: 47 | G25: 46 | H25: 12.54385965
A26: =IF(Draw!E25=0,"",Draw!E25) -> 24 | B26: 2 | C26: 49 | D26: 56 | E26: 54 | F26: 50 | G26: 50 | H26: 13.50877193
A27: =IF(Draw!E26=0,"",Draw!E26) -> 25 | B27: 2 | C27: 49 | D27: 52 | E27: 50 | F27: 53 | G27: 53 | H27: 13.59649123
A28: =IF(Draw!E27=0,"",Draw!E27) -> 26 | B28: 2 | C28: 50 | D28: 48 | E28: 52 | F28: 50 | G28: 49 | H28: 13.07017544
A29: =IF(Draw!E28=0,"",Draw!E28) -> 27 | B29: 2 | C29: 32 | D29: 34 | E29: 36 | F29: 32 | G29: 37 | H29: 8.947368421
A30: =IF(Draw!E29=0,"",Draw!E29) -> 28 | B30: 2 | C30: x | D30: x | E30: x | F30: x | G30: x | H30: 0
A31: =IF(Draw!E30=0,"",Draw!E30) -> 29 | B31: 2 | C31: 40 | D31: 33 | E31: 37 | F31: 35 | G31: 35 | H31: 9.385964912
A32: =IF(Draw!E31=0,"",Draw!E31) -> 30 | B32: 2 | C32: 37 | D32: 39 | E32: 40 | F32: 34 | G32: 36 | H32: 9.824561404
A33: =IF(Draw!E32=0,"",Draw!E32) -> 31 | B33: 2 | C33: 52 | D33: 60 | E33: 54 | F33: 56 | G33: 55 | H33: 14.47368421
A34: =IF(Draw!E33=0,"",Draw!E33) -> 32 | B34: 2 | C34: 50 | D34: 46 | E34: 43 | F34: 41 | G34: 45 | H34: 11.75438596
A35: =IF(Draw!E34=0,"",Draw!E34) -> 33 | B35: 2 | C35: x | D35: x | E35: x | F35: x | G35: x | H35: 0
A36: =IF(Draw!E35=0,"",Draw!E35) -> 
A37: =IF(Draw!E36=0,"",Draw!E36) -> 
A38: =IF(Draw!E37=0,"",Draw!E37) -> 
A39: =IF(Draw!E38=0,"",Draw!E38) -> 
A40: =IF(Draw!E39=0,"",Draw!E39) -> 
A41: =IF(Draw!E40=0,"",Draw!E40) -> 
A42: =IF(Draw!E41=0,"",Draw!E41) -> 
A43: =IF(Draw!E42=0,"",Draw!E42) -> 
A44: =IF(Draw!E43=0,"",Draw!E43) -> 
A45: =IF(Draw!E44=0,"",Draw!E44) -> 
A46: =IF(Draw!E45=0,"",Draw!E45) -> 
A47: =IF(Draw!E46=0,"",Draw!E46) -> 
A48: =IF(Draw!E47=0,"",Draw!E47) -> 
A49: =IF(Draw!E48=0,"",Draw!E48) -> 
A50: =IF(Draw!E49=0,"",Draw!E49) -> 
A51: =IF(Draw!E50=0,"",Draw!E50) -> 
A52: =IF(Draw!E51=0,"",Draw!E51) -> 
A53: =IF(Draw!E52=0,"",Draw!E52) -> 
A54: =IF(Draw!E53=0,"",Draw!E53) -> 
A55: =IF(Draw!E54=0,"",Draw!E54) -> 
A56: =IF(Draw!E55=0,"",Draw!E55) -> 
A57: =IF(Draw!E56=0,"",Draw!E56) -> 
A58: =IF(Draw!E57=0,"",Draw!E57) -> 
A59: =IF(Draw!E58=0,"",Draw!E58) -> 
A60: =IF(Draw!E59=0,"",Draw!E59) -> 
A61: =IF(Draw!E60=0,"",Draw!E60) -> 
A62: =IF(Draw!E61=0,"",Draw!E61) -> 
A63: =IF(Draw!E62=0,"",Draw!E62) -> 
A64: =IF(Draw!E63=0,"",Draw!E63) -> 
A65: =IF(Draw!E64=0,"",Draw!E64) -> 
A66: =IF(Draw!E65=0,"",Draw!E65) -> 
A67: =IF(Draw!E66=0,"",Draw!E66) -> 
A68: =IF(Draw!E67=0,"",Draw!E67) -> 
A69: =IF(Draw!E68=0,"",Draw!E68) -> 
A70: =IF(Draw!E69=0,"",Draw!E69) ->  | B70: =IF(A70="","",B$3) ->  | H70: =IF(A70="","",(IF(F70>0,(SUM(C70:G70)-MAX(C70:G70)-MIN(C70:G70))/3,SUM(C70:E70)/3))*B70/7.6) -> 
A71: =IF(Draw!E70=0,"",Draw!E70) -> 
A72: =IF(Draw!E71=0,"",Draw!E71) -> 
A73: =IF(Draw!E72=0,"",Draw!E72) -> 
A74: =IF(Draw!E73=0,"",Draw!E73) -> 
A75: =IF(Draw!E74=0,"",Draw!E74) -> 
A76: =IF(Draw!E75=0,"",Draw!E75) -> 
A77: =IF(Draw!E76=0,"",Draw!E76) -> 
A78: =IF(Draw!E77=0,"",Draw!E77) -> 
A79: =IF(Draw!E78=0,"",Draw!E78) -> 
A80: =IF(Draw!E79=0,"",Draw!E79) -> 
A81: =IF(Draw!E80=0,"",Draw!E80) -> 
A82: =IF(Draw!E81=0,"",Draw!E81) -> 
A83: =IF(Draw!E82=0,"",Draw!E82) -> 
A84: =IF(Draw!E83=0,"",Draw!E83) -> 
A85: =IF(Draw!E84=0,"",Draw!E84) -> 
A86: =IF(Draw!E85=0,"",Draw!E85) -> 
A87: =IF(Draw!E86=0,"",Draw!E86) -> 
A88: =IF(Draw!E87=0,"",Draw!E87) -> 
A89: =IF(Draw!E88=0,"",Draw!E88) -> 
A90: =IF(Draw!E89=0,"",Draw!E89) -> 
A91: =IF(Draw!E90=0,"",Draw!E90) -> 
A92: =IF(Draw!E91=0,"",Draw!E91) -> 
A93: =IF(Draw!E92=0,"",Draw!E92) -> 
A94: =IF(Draw!E93=0,"",Draw!E93) -> 
A95: =IF(Draw!E94=0,"",Draw!E94) -> 
A96: =IF(Draw!E95=0,"",Draw!E95) -> 
A97: =IF(Draw!E96=0,"",Draw!E96) -> 
A98: =IF(Draw!E97=0,"",Draw!E97) -> 
A99: =IF(Draw!E98=0,"",Draw!E98) -> 
A100: =IF(Draw!E99=0,"",Draw!E99) -> 
A101: =IF(Draw!E100=0,"",Draw!E100) -> 
A102: =IF(Draw!E101=0,"",Draw!E101) -> 
A103: =IF(Draw!E102=0,"",Draw!E102) -> 
A104: =IF(Draw!E103=0,"",Draw!E103) -> 
A105: =IF(Draw!E104=0,"",Draw!E104) -> 
A106: =IF(Draw!E105=0,"",Draw!E105) -> 
A107: =IF(Draw!E106=0,"",Draw!E106) -> 
A108: =IF(Draw!E107=0,"",Draw!E107) -> 
A109: =IF(Draw!E108=0,"",Draw!E108) -> 
A110: =IF(Draw!E109=0,"",Draw!E109) -> 
A111: =IF(Draw!E110=0,"",Draw!E110) -> 
A112: =IF(Draw!E111=0,"",Draw!E111) -> 
A113: =IF(Draw!E112=0,"",Draw!E112) -> 
A114: =IF(Draw!E113=0,"",Draw!E113) -> 
A115: =IF(Draw!E114=0,"",Draw!E114) -> 
A116: =IF(Draw!E115=0,"",Draw!E115) -> 
A117: =IF(Draw!E116=0,"",Draw!E116) -> 
A118: =IF(Draw!E117=0,"",Draw!E117) -> 
A119: =IF(Draw!E118=0,"",Draw!E118) -> 
A120: =IF(Draw!E119=0,"",Draw!E119) -> 
A121: =IF(Draw!E120=0,"",Draw!E120) -> 
A122: =IF(Draw!E121=0,"",Draw!E121) -> 
A123: =IF(Draw!E122=0,"",Draw!E122) -> 
A124: =IF(Draw!E123=0,"",Draw!E123) -> 
A125: =IF(Draw!E124=0,"",Draw!E124) -> 
A126: =IF(Draw!E125=0,"",Draw!E125) -> 
A127: =IF(Draw!E126=0,"",Draw!E126) -> 
A128: =IF(Draw!E127=0,"",Draw!E127) -> 
A129: =IF(Draw!E128=0,"",Draw!E128) -> 
A130: =IF(Draw!E129=0,"",Draw!E129) -> 
A131: =IF(Draw!E130=0,"",Draw!E130) -> 
A132: =IF(Draw!E131=0,"",Draw!E131) -> 
A133: =IF(Draw!E132=0,"",Draw!E132) -> 
A134: =IF(Draw!E133=0,"",Draw!E133) ->  | B134: =IF(A134="","",B$3) ->  | H134: =IF(A134="","",(IF(F134>0,(SUM(C134:G134)-MAX(C134:G134)-MIN(C134:G134))/3,SUM(C134:E134)/3))*B134/7.6) -> 
A135: =IF(Draw!E134=0,"",Draw!E134) -> 
A136: =IF(Draw!E135=0,"",Draw!E135) -> 
A137: =IF(Draw!E136=0,"",Draw!E136) -> 
A138: =IF(Draw!E137=0,"",Draw!E137) -> 
A139: =IF(Draw!E138=0,"",Draw!E138) -> 
A140: =IF(Draw!E139=0,"",Draw!E139) -> 
A141: =IF(Draw!E140=0,"",Draw!E140) -> 
A142: =IF(Draw!E141=0,"",Draw!E141) -> 
A143: =IF(Draw!E142=0,"",Draw!E142) -> 
A144: =IF(Draw!E143=0,"",Draw!E143) -> 
A145: =IF(Draw!E144=0,"",Draw!E144) -> 
A146: =IF(Draw!E145=0,"",Draw!E145) -> 
A147: =IF(Draw!E146=0,"",Draw!E146) -> 
A148: =IF(Draw!E147=0,"",Draw!E147) -> 
A149: =IF(Draw!E148=0,"",Draw!E148) -> 
A150: =IF(Draw!E149=0,"",Draw!E149) -> 

Sheet Fig 3 Neptunus
B1: Figure #3: | C1: 344 Neptunus
A2: # | B2: Degree of Difficulty | C2: Judge 1 | D2: Judge 2 | E2: Judge 3 | F2: Judge 4 | G2: Judge 5 | H2: Score | I2: Penalty
A3: =IF(Draw!E2=0,"",Draw!E2) -> 1 | B3: 1.8 | C3: 50 | D3: 49 | E3: 46 | H3: =(IF(F3>0,(SUM(C3:G3)-MAX(C3:G3)-MIN(C3:G3))/3,SUM(C3:E3)/3))*B3/7.6 -> 11.44736842
A4: =IF(Draw!E3=0,"",Draw!E3) -> 2 | B4: =IF(A4="","",B$3) -> 1.8 | C4: 47 | D4: 44 | E4: 38 | H4: =IF(A4="","",(IF(F4>0,(SUM(C4:G4)-MAX(C4:G4)-MIN(C4:G4))/3,SUM(C4:E4)/3))*B4/7.6) -> 10.18421053
A5: =IF(Draw!E4=0,"",Draw!E4) -> 3 | B5: 1.8 | C5: 40 | D5: 46 | E5: 35 | H5: =IF(A5="","",(IF(F5>0,(SUM(C5:G5)-MAX(C5:G5)-MIN(C5:G5))/3,SUM(C5:E5)/3))*B5/7.6) -> 9.552631579
A6: =IF(Draw!E5=0,"",Draw!E5) -> 4 | B6: =IF(A6="","",B$3) -> 1.8 | C6: x | D6: x | E6: x | F6: x | G6: x | H6: =IF(A6="","",(IF(F6>0,(SUM(C6:G6)-MAX(C6:G6)-MIN(C6:G6))/3,SUM(C6:E6)/3))*B6/7.6) -> 0
A7: =IF(Draw!E6=0,"",Draw!E6) -> 5 | B7: 1.8 | C7: 42 | D7: 43 | E7: 40 | H7: 9.868421053
A8: =IF(Draw!E7=0,"",Draw!E7) -> 6 | B8: 1.8 | C8: 45 | D8: 44 | E8: 38 | H8: 10.02631579
A9: =IF(Draw!E8=0,"",Draw!E8) -> 7 | B9: 1.8 | C9: 47 | D9: 49 | E9: 47 | H9: 11.28947368
A10: =IF(Draw!E9=0,"",Draw!E9) -> 8 | B10: 1.8 | C10: 46 | D10: 41 | E10: 40 | H10: 10.02631579
A11: =IF(Draw!E10=0,"",Draw!E10) -> 9 | B11: 1.8 | C11: 49 | D11: 52 | E11: 47 | H11: 11.68421053
A12: =IF(Draw!E11=0,"",Draw!E11) -> 10 | B12: 1.8 | C12: 55 | D12: 56 | E12: 50 | H12: 12.71052632
A13: =IF(Draw!E12=0,"",Draw!E12) -> 11 | B13: 1.8 | C13: 48 | D13: 50 | E13: 46 | H13: 11.36842105
A14: =IF(Draw!E13=0,"",Draw!E13) -> 12 | B14: 1.8 | C14: 50 | D14: 51 | E14: 43 | H14: 11.36842105
A15: =IF(Draw!E14=0,"",Draw!E14) -> 13 | B15: 1.8 | C15: 38 | D15: 39 | E15: 39 | H15: 9.157894737
A16: =IF(Draw!E15=0,"",Draw!E15) -> 14 | B16: 1.8 | C16: 43 | D16: 44 | E16: 45 | H16: 10.42105263
A17: =IF(Draw!E16=0,"",Draw!E16) -> 15 | B17: 1.8 | C17: 51 | D17: 51 | E17: 47 | H17: 11.76315789
A18: =IF(Draw!E17=0,"",Draw!E17) -> 16 | B18: 1.8 | C18: 47 | D18: 47 | E18: 46 | H18: 11.05263158
A19: =IF(Draw!E18=0,"",Draw!E18) -> 17 | B19: 1.8 | C19: 47 | D19: 48 | E19: 49 | H19: 11.36842105
A20: =IF(Draw!E19=0,"",Draw!E19) -> 18 | B20: 1.8 | C20: x | D20: x | E20: x | F20: x | G20: x | H20: 0
A21: =IF(Draw!E20=0,"",Draw!E20) -> 19 | B21: 1.8 | C21: 48 | D21: 45 | E21: 40 | H21: 10.5
A22: =IF(Draw!E21=0,"",Draw!E21) -> 20 | B22: 1.8 | C22: 40 | D22: 37 | E22: 37 | H22: 9
A23: =IF(Draw!E22=0,"",Draw!E22) -> 21 | B23: 1.8 | C23: 49 | D23: 51 | E23: 49 | H23: 11.76315789
A24: =IF(Draw!E23=0,"",Draw!E23) -> 22 | B24: 1.8 | C24: 42 | D24: 38 | E24: 36 | H24: 9.157894737
A25: =IF(Draw!E24=0,"",Draw!E24) -> 23 | B25: 1.8 | C25: 45 | D25: 50 | E25: 43 | H25: 10.89473684
A26: =IF(Draw!E25=0,"",Draw!E25) -> 24 | B26: 1.8 | C26: 46 | D26: 47 | E26: 44 | H26: 10.81578947
A27: =IF(Draw!E26=0,"",Draw!E26) -> 25 | B27: 1.8 | C27: 50 | D27: 47 | E27: 45 | H27: 11.21052632
A28: =IF(Draw!E27=0,"",Draw!E27) -> 26 | B28: 1.8 | C28: 48 | D28: 49 | E28: 46 | H28: 11.28947368
A29: =IF(Draw!E28=0,"",Draw!E28) -> 27 | B29: 1.8 | C29: 45 | D29: 46 | E29: 38 | H29: 10.18421053
A30: =IF(Draw!E29=0,"",Draw!E29) -> 28 | B30: 1.8 | C30: x | D30: x | E30: x | H30: 0
A31: =IF(Draw!E30=0,"",Draw!E30) -> 29 | B31: 1.8 | C31: 49 | D31: 38 | E31: 36 | H31: 9.710526316
A32: =IF(Draw!E31=0,"",Draw!E31) -> 30 | B32: 1.8 | C32: 45 | D32: 44 | E32: 47 | H32: 10.73684211
A33: =IF(Draw!E32=0,"",Draw!E32) -> 31 | B33: 1.8 | C33: 56 | D33: 52 | E33: 50 | H33: 12.47368421
A34: =IF(Draw!E33=0,"",Draw!E33) -> 32 | B34: 1.8 | C34: 40 | D34: 39 | E34: 37 | H34: 9.157894737
A35: =IF(Draw!E34=0,"",Draw!E34) -> 33 | B35: 1.8 | C35: x | D35: x | E35: x | F35: x | G35: x | H35: 0
A36: =IF(Draw!E35=0,"",Draw!E35) -> 
A37: =IF(Draw!E36=0,"",Draw!E36) -> 
A38: =IF(Draw!E37=0,"",Draw!E37) -> 
A39: =IF(Draw!E38=0,"",Draw!E38) -> 
A40: =IF(Draw!E39=0,"",Draw!E39) -> 
A41: =IF(Draw!E40=0,"",Draw!E40) -> 
A42: =IF(Draw!E41=0,"",Draw!E41) -> 
A43: =IF(Draw!E42=0,"",Draw!E42) -> 
A44: =IF(Draw!E43=0,"",Draw!E43) -> 
A45: =IF(Draw!E44=0,"",Draw!E44) -> 
A46: =IF(Draw!E45=0,"",Draw!E45) -> 
A47: =IF(Draw!E46=0,"",Draw!E46) -> 
A48: =IF(Draw!E47=0,"",Draw!E47) -> 
A49: =IF(Draw!E48=0,"",Draw!E48) -> 
A50: =IF(Draw!E49=0,"",Draw!E49) -> 
A51: =IF(Draw!E50=0,"",Draw!E50) -> 
A52: =IF(Draw!E51=0,"",Draw!E51) -> 
A53: =IF(Draw!E52=0,"",Draw!E52) -> 
A54: =IF(Draw!E53=0,"",Draw!E53) -> 
A55: =IF(Draw!E54=0,"",Draw!E54) -> 
A56: =IF(Draw!E55=0,"",Draw!E55) -> 
A57: =IF(Draw!E56=0,"",Draw!E56) -> 
A58: =IF(Draw!E57=0,"",Draw!E57) -> 
A59: =IF(Draw!E58=0,"",Draw!E58) -> 
A60: =IF(Draw!E59=0,"",Draw!E59) -> 
A61: =IF(Draw!E60=0,"",Draw!E60) -> 
A62: =IF(Draw!E61=0,"",Draw!E61) -> 
A63: =IF(Draw!E62=0,"",Draw!E62) -> 
A64: =IF(Draw!E63=0,"",Draw!E63) -> 
A65: =IF(Draw!E64=0,"",Draw!E64) -> 
A66: =IF(Draw!E65=0,"",Draw!E65) -> 
A67: =IF(Draw!E66=0,"",Draw!E66) -> 
A68: =IF(Draw!E67=0,"",Draw!E67) -> 
A69: =IF(Draw!E68=0,"",Draw!E68) -> 
A70: =IF(Draw!E69=0,"",Draw!E69) ->  | B70: =IF(A70="","",B$3) ->  | H70: =IF(A70="","",(IF(F70>0,(SUM(C70:G70)-MAX(C70:G70)-MIN(C70:G70))/3,SUM(C70:E70)/3))*B70/7.6) -> 
A71: =IF(Draw!E70=0,"",Draw!E70) -> 
A72: =IF(Draw!E71=0,"",Draw!E71) -> 
A73: =IF(Draw!E72=0,"",Draw!E72) -> 
A74: =IF(Draw!E73=0,"",Draw!E73) -> 
A75: =IF(Draw!E74=0,"",Draw!E74) -> 
A76: =IF(Draw!E75=0,"",Draw!E75) -> 
A77: =IF(Draw!E76=0,"",Draw!E76) -> 
A78: =IF(Draw!E77=0,"",Draw!E77) -> 
A79: =IF(Draw!E78=0,"",Draw!E78) -> 
A80: =IF(Draw!E79=0,"",Draw!E79) -> 
A81: =IF(Draw!E80=0,"",Draw!E80) -> 
A82: =IF(Draw!E81=0,"",Draw!E81) -> 
A83: =IF(Draw!E82=0,"",Draw!E82) -> 
A84: =IF(Draw!E83=0,"",Draw!E83) -> 
A85: =IF(Draw!E84=0,"",Draw!E84) -> 
A86: =IF(Draw!E85=0,"",Draw!E85) -> 
A87: =IF(Draw!E86=0,"",Draw!E86) -> 
A88: =IF(Draw!E87=0,"",Draw!E87) -> 
A89: =IF(Draw!E88=0,"",Draw!E88) -> 
A90: =IF(Draw!E89=0,"",Draw!E89) -> 
A91: =IF(Draw!E90=0,"",Draw!E90) -> 
A92: =IF(Draw!E91=0,"",Draw!E91) -> 
A93: =IF(Draw!E92=0,"",Draw!E92) -> 
A94: =IF(Draw!E93=0,"",Draw!E93) -> 
A95: =IF(Draw!E94=0,"",Draw!E94) -> 
A96: =IF(Draw!E95=0,"",Draw!E95) -> 
A97: =IF(Draw!E96=0,"",Draw!E96) -> 
A98: =IF(Draw!E97=0,"",Draw!E97) -> 
A99: =IF(Draw!E98=0,"",Draw!E98) -> 
A100: =IF(Draw!E99=0,"",Draw!E99) -> 
A101: =IF(Draw!E100=0,"",Draw!E100) -> 
A102: =IF(Draw!E101=0,"",Draw!E101) -> 
A103: =IF(Draw!E102=0,"",Draw!E102) -> 
A104: =IF(Draw!E103=0,"",Draw!E103) -> 
A105: =IF(Draw!E104=0,"",Draw!E104) -> 
A106: =IF(Draw!E105=0,"",Draw!E105) -> 
A107: =IF(Draw!E106=0,"",Draw!E106) -> 
A108: =IF(Draw!E107=0,"",Draw!E107) -> 
A109: =IF(Draw!E108=0,"",Draw!E108) -> 
A110: =IF(Draw!E109=0,"",Draw!E109) -> 
A111: =IF(Draw!E110=0,"",Draw!E110) -> 
A112: =IF(Draw!E111=0,"",Draw!E111) -> 
A113: =IF(Draw!E112=0,"",Draw!E112) -> 
A114: =IF(Draw!E113=0,"",Draw!E113) -> 
A115: =IF(Draw!E114=0,"",Draw!E114) -> 
A116: =IF(Draw!E115=0,"",Draw!E115) -> 
A117: =IF(Draw!E116=0,"",Draw!E116) -> 
A118: =IF(Draw!E117=0,"",Draw!E117) -> 
A119: =IF(Draw!E118=0,"",Draw!E118) -> 
A120: =IF(Draw!E119=0,"",Draw!E119) -> 
A121: =IF(Draw!E120=0,"",Draw!E120) -> 
A122: =IF(Draw!E121=0,"",Draw!E121) -> 
A123: =IF(Draw!E122=0,"",Draw!E122) -> 
A124: =IF(Draw!E123=0,"",Draw!E123) -> 
A125: =IF(Draw!E124=0,"",Draw!E124) -> 
A126: =IF(Draw!E125=0,"",Draw!E125) -> 
A127: =IF(Draw!E126=0,"",Draw!E126) -> 
A128: =IF(Draw!E127=0,"",Draw!E127) -> 
A129: =IF(Draw!E128=0,"",Draw!E128) -> 
A130: =IF(Draw!E129=0,"",Draw!E129) -> 
A131: =IF(Draw!E130=0,"",Draw!E130) -> 
A132: =IF(Draw!E131=0,"",Draw!E131) -> 
A133: =IF(Draw!E132=0,"",Draw!E132) -> 
A134: =IF(Draw!E133=0,"",Draw!E133) ->  | B134: =IF(A134="","",B$3) ->  | H134: =IF(A134="","",(IF(F134>0,(SUM(C134:G134)-MAX(C134:G134)-MIN(C134:G134))/3,SUM(C134:E134)/3))*B134/7.6) -> 
A135: =IF(Draw!E134=0,"",Draw!E134) -> 
A136: =IF(Draw!E135=0,"",Draw!E135) -> 
A137: =IF(Draw!E136=0,"",Draw!E136) -> 
A138: =IF(Draw!E137=0,"",Draw!E137) -> 
A139: =IF(Draw!E138=0,"",Draw!E138) -> 
A140: =IF(Draw!E139=0,"",Draw!E139) -> 
A141: =IF(Draw!E140=0,"",Draw!E140) -> 
A142: =IF(Draw!E141=0,"",Draw!E141) -> 
A143: =IF(Draw!E142=0,"",Draw!E142) -> 
A144: =IF(Draw!E143=0,"",Draw!E143) -> 
A145: =IF(Draw!E144=0,"",Draw!E144) -> 
A146: =IF(Draw!E145=0,"",Draw!E145) -> 
A147: =IF(Draw!E146=0,"",Draw!E146) -> 
A148: =IF(Draw!E147=0,"",Draw!E147) -> 
A149: =IF(Draw!E148=0,"",Draw!E148) -> 
A150: =IF(Draw!E149=0,"",Draw!E149) -> 

Sheet Fig 4 Walkover
B1: Figure #4: | D1: 360 Walkover Front
A2: # | B2: Degree of Difficulty | C2: Figure | D2: Judge 1 | E2: Judge 2 | F2: Judge 3 | G2: Judge 4 | H2: Judge 5 | I2: Score | J2: Penalty
A3: =IF(Draw!E2=0,"",Draw!E2) -> 1 | B3: 2.1 | D3: 52 | E3: 53 | F3: 52 | I3: =(IF(G3>0,(SUM(D3:H3)-MAX(D3:H3)-MIN(D3:H3))/3,SUM(D3:F3)/3))*B3/7.6 -> 14.46052632
A4: =IF(Draw!E3=0,"",Draw!E3) -> 2 | B4: =IF(A4="","",B$3) -> 2.1 | D4: 53 | E4: 54 | F4: 53 | I4: =IF(B4="","",(IF(G4>0,(SUM(D4:H4)-MAX(D4:H4)-MIN(D4:H4))/3,SUM(D4:F4)/3))*B4/7.6) -> 14.73684211
A5: =IF(Draw!E4=0,"",Draw!E4) -> 3 | B5: 2.1 | D5: 50 | E5: 48 | F5: 51 | I5: =IF(B5="","",(IF(G5>0,(SUM(D5:H5)-MAX(D5:H5)-MIN(D5:H5))/3,SUM(D5:F5)/3))*B5/7.6) -> 13.72368421
A6: =IF(Draw!E5=0,"",Draw!E5) -> 4 | B6: =IF(A6="","",B$3) -> 2.1 | D6: x | E6: x | F6: x | G6: x | H6: x | I6: 0
A7: =IF(Draw!E6=0,"",Draw!E6) -> 5 | B7: 2.1 | D7: 46 | E7: 48 | F7: 46 | I7: =IF(B7="","",(IF(G7>0,(SUM(D7:H7)-MAX(D7:H7)-MIN(D7:H7))/3,SUM(D7:F7)/3))*B7/7.6) -> 12.89473684
A8: =IF(Draw!E7=0,"",Draw!E7) -> 6 | B8: 2.1 | D8: 43 | E8: 43 | F8: 44 | I8: 11.97368421
A9: =IF(Draw!E8=0,"",Draw!E8) -> 7 | B9: 2.1 | D9: 52 | E9: 53 | F9: 52 | I9: 14.46052632
A10: =IF(Draw!E9=0,"",Draw!E9) -> 8 | B10: 2.1 | D10: 49 | E10: 48 | F10: 48 | I10: 13.35526316
A11: =IF(Draw!E10=0,"",Draw!E10) -> 9 | B11: 2.1 | D11: 53 | E11: 53 | F11: 48 | I11: 14.18421053
A12: =IF(Draw!E11=0,"",Draw!E11) -> 10 | B12: 2.1 | D12: 51 | E12: 53 | F12: 52 | I12: 14.36842105
A13: =IF(Draw!E12=0,"",Draw!E12) -> 11 | B13: 2.1 | D13: 53 | E13: 54 | F13: 54 | I13: 14.82894737
A14: =IF(Draw!E13=0,"",Draw!E13) -> 12 | B14: 2.1 | D14: 54 | E14: 51 | F14: 51 | I14: 14.36842105
A15: =IF(Draw!E14=0,"",Draw!E14) -> 13 | B15: 2.1 | D15: 42 | E15: 30 | F15: 38 | I15: 10.13157895
A16: =IF(Draw!E15=0,"",Draw!E15) -> 14 | B16: 2.1 | D16: 40 | E16: 46 | F16: 40 | I16: 11.60526316
A17: =IF(Draw!E16=0,"",Draw!E16) -> 15 | B17: 2.1 | D17: 54 | E17: 55 | F17: 53 | I17: 14.92105263
A18: =IF(Draw!E17=0,"",Draw!E17) -> 16 | B18: 2.1 | D18: 48 | E18: 47 | F18: 44 | I18: 12.80263158
A19: =IF(Draw!E18=0,"",Draw!E18) -> 17 | B19: 2.1 | D19: 52 | E19: 50 | F19: 52 | I19: 14.18421053
A20: =IF(Draw!E19=0,"",Draw!E19) -> 18 | B20: 2.1 | D20: x | E20: x | F20: x | G20: x | H20: x | I20: 0
A21: =IF(Draw!E20=0,"",Draw!E20) -> 19 | B21: 2.1 | D21: 49 | E21: 50 | F21: 51 | I21: 13.81578947
A22: =IF(Draw!E21=0,"",Draw!E21) -> 20 | B22: 2.1 | D22: 45 | E22: 45 | F22: 47 | I22: 12.61842105
A23: =IF(Draw!E22=0,"",Draw!E22) -> 21 | B23: 2.1 | D23: 51 | E23: 52 | F23: 52 | I23: 14.27631579
A24: =IF(Draw!E23=0,"",Draw!E23) -> 22 | B24: 2.1 | D24: 44 | E24: 42 | F24: 44 | I24: 11.97368421
A25: =IF(Draw!E24=0,"",Draw!E24) -> 23 | B25: 2.1 | D25: 53 | E25: 52 | F25: 50 | I25: 14.27631579
A26: =IF(Draw!E25=0,"",Draw!E25) -> 24 | B26: 2.1 | D26: 50 | E26: 50 | F26: 50 | I26: 13.81578947
A27: =IF(Draw!E26=0,"",Draw!E26) -> 25 | B27: 2.1 | D27: 53 | E27: 52 | F27: 49 | I27: 14.18421053
A28: =IF(Draw!E27=0,"",Draw!E27) -> 26 | B28: 2.1 | D28: 47 | E28: 48 | F28: 50 | I28: 13.35526316
A29: =IF(Draw!E28=0,"",Draw!E28) -> 27 | B29: 2.1 | D29: 49 | E29: 47 | F29: 48 | I29: 13.26315789
A30: =IF(Draw!E29=0,"",Draw!E29) -> 28 | B30: 2.1 | D30: x | E30: x | F30: x | I30: 0
A31: =IF(Draw!E30=0,"",Draw!E30) -> 29 | B31: 2.1 | D31: 47 | E31: 47 | F31: 43 | I31: 12.61842105
A32: =IF(Draw!E31=0,"",Draw!E31) -> 30 | B32: 2.1 | D32: 45 | E32: 41 | F32: 45 | I32: 12.06578947
A33: =IF(Draw!E32=0,"",Draw!E32) -> 31 | B33: 2.1 | D33: 54 | E33: 53 | F33: 54 | I33: 14.82894737
A34: =IF(Draw!E33=0,"",Draw!E33) -> 32 | B34: 2.1 | D34: 49 | E34: 45 | F34: 45 | I34: 12.80263158
A35: =IF(Draw!E34=0,"",Draw!E34) -> 33 | B35: 2.1 | D35: x | E35: x | F35: x | G35: x | H35: x | I35: 0
A36: =IF(Draw!E35=0,"",Draw!E35) -> 
A37: =IF(Draw!E36=0,"",Draw!E36) -> 
A38: =IF(Draw!E37=0,"",Draw!E37) -> 
A39: =IF(Draw!E38=0,"",Draw!E38) -> 
A40: =IF(Draw!E39=0,"",Draw!E39) -> 
A41: =IF(Draw!E40=0,"",Draw!E40) -> 
A42: =IF(Draw!E41=0,"",Draw!E41) -> 
A43: =IF(Draw!E42=0,"",Draw!E42) -> 
A44: =IF(Draw!E43=0,"",Draw!E43) -> 
A45: =IF(Draw!E44=0,"",Draw!E44) -> 
A46: =IF(Draw!E45=0,"",Draw!E45) -> 
A47: =IF(Draw!E46=0,"",Draw!E46) -> 
A48: =IF(Draw!E47=0,"",Draw!E47) -> 
A49: =IF(Draw!E48=0,"",Draw!E48) -> 
A50: =IF(Draw!E49=0,"",Draw!E49) -> 
A51: =IF(Draw!E50=0,"",Draw!E50) -> 
A52: =IF(Draw!E51=0,"",Draw!E51) -> 
A53: =IF(Draw!E52=0,"",Draw!E52) -> 
A54: =IF(Draw!E53=0,"",Draw!E53) -> 
A55: =IF(Draw!E54=0,"",Draw!E54) -> 
A56: =IF(Draw!E55=0,"",Draw!E55) -> 
A57: =IF(Draw!E56=0,"",Draw!E56) -> 
A58: =IF(Draw!E57=0,"",Draw!E57) -> 
A59: =IF(Draw!E58=0,"",Draw!E58) -> 
A60: =IF(Draw!E59=0,"",Draw!E59) -> 
A61: =IF(Draw!E60=0,"",Draw!E60) -> 
A62: =IF(Draw!E61=0,"",Draw!E61) -> 
A63: =IF(Draw!E62=0,"",Draw!E62) -> 
A64: =IF(Draw!E63=0,"",Draw!E63) -> 
A65: =IF(Draw!E64=0,"",Draw!E64) -> 
A66: =IF(Draw!E65=0,"",Draw!E65) -> 
A67: =IF(Draw!E66=0,"",Draw!E66) -> 
A68: =IF(Draw!E67=0,"",Draw!E67) -> 
A69: =IF(Draw!E68=0,"",Draw!E68) -> 
A70: =IF(Draw!E69=0,"",Draw!E69) ->  | B70: =IF(A70="","",B$3) -> 
A71: =IF(Draw!E70=0,"",Draw!E70) ->  | I71: =IF(B71="","",(IF(G71>0,(SUM(D71:H71)-MAX(D71:H71)-MIN(D71:H71))/3,SUM(D71:F71)/3))*B71/7.6) -> 
A72: =IF(Draw!E71=0,"",Draw!E71) -> 
A73: =IF(Draw!E72=0,"",Draw!E72) -> 
A74: =IF(Draw!E73=0,"",Draw!E73) -> 
A75: =IF(Draw!E74=0,"",Draw!E74) -> 
A76: =IF(Draw!E75=0,"",Draw!E75) -> 
A77: =IF(Draw!E76=0,"",Draw!E76) -> 
A78: =IF(Draw!E77=0,"",Draw!E77) -> 
A79: =IF(Draw!E78=0,"",Draw!E78) -> 
A80: =IF(Draw!E79=0,"",Draw!E79) -> 
A81: =IF(Draw!E80=0,"",Draw!E80) -> 
A82: =IF(Draw!E81=0,"",Draw!E81) -> 
A83: =IF(Draw!E82=0,"",Draw!E82) -> 
A84: =IF(Draw!E83=0,"",Draw!E83) -> 
A85: =IF(Draw!E84=0,"",Draw!E84) -> 
A86: =IF(Draw!E85=0,"",Draw!E85) -> 
A87: =IF(Draw!E86=0,"",Draw!E86) -> 
A88: =IF(Draw!E87=0,"",Draw!E87) -> 
A89: =IF(Draw!E88=0,"",Draw!E88) -> 
A90: =IF(Draw!E89=0,"",Draw!E89) -> 
A91: =IF(Draw!E90=0,"",Draw!E90) -> 
A92: =IF(Draw!E91=0,"",Draw!E91) -> 
A93: =IF(Draw!E92=0,"",Draw!E92) -> 
A94: =IF(Draw!E93=0,"",Draw!E93) -> 
A95: =IF(Draw!E94=0,"",Draw!E94) -> 
A96: =IF(Draw!E95=0,"",Draw!E95) -> 
A97: =IF(Draw!E96=0,"",Draw!E96) -> 
A98: =IF(Draw!E97=0,"",Draw!E97) -> 
A99: =IF(Draw!E98=0,"",Draw!E98) -> 
A100: =IF(Draw!E99=0,"",Draw!E99) -> 
A101: =IF(Draw!E100=0,"",Draw!E100) -> 
A102: =IF(Draw!E101=0,"",Draw!E101) -> 
A103: =IF(Draw!E102=0,"",Draw!E102) -> 
A104: =IF(Draw!E103=0,"",Draw!E103) -> 
A105: =IF(Draw!E104=0,"",Draw!E104) -> 
A106: =IF(Draw!E105=0,"",Draw!E105) -> 
A107: =IF(Draw!E106=0,"",Draw!E106) -> 
A108: =IF(Draw!E107=0,"",Draw!E107) -> 
A109: =IF(Draw!E108=0,"",Draw!E108) -> 
A110: =IF(Draw!E109=0,"",Draw!E109) -> 
A111: =IF(Draw!E110=0,"",Draw!E110) -> 
A112: =IF(Draw!E111=0,"",Draw!E111) -> 
A113: =IF(Draw!E112=0,"",Draw!E112) -> 
A114: =IF(Draw!E113=0,"",Draw!E113) -> 
A115: =IF(Draw!E114=0,"",Draw!E114) -> 
A116: =IF(Draw!E115=0,"",Draw!E115) -> 
A117: =IF(Draw!E116=0,"",Draw!E116) -> 
A118: =IF(Draw!E117=0,"",Draw!E117) -> 
A119: =IF(Draw!E118=0,"",Draw!E118) -> 
A120: =IF(Draw!E119=0,"",Draw!E119) -> 
A121: =IF(Draw!E120=0,"",Draw!E120) -> 
A122: =IF(Draw!E121=0,"",Draw!E121) -> 
A123: =IF(Draw!E122=0,"",Draw!E122) -> 
A124: =IF(Draw!E123=0,"",Draw!E123) -> 
A125: =IF(Draw!E124=0,"",Draw!E124) -> 
A126: =IF(Draw!E125=0,"",Draw!E125) -> 
A127: =IF(Draw!E126=0,"",Draw!E126) -> 
A128: =IF(Draw!E127=0,"",Draw!E127) -> 
A129: =IF(Draw!E128=0,"",Draw!E128) -> 
A130: =IF(Draw!E129=0,"",Draw!E129) -> 
A131: =IF(Draw!E130=0,"",Draw!E130) -> 
A132: =IF(Draw!E131=0,"",Draw!E131) -> 
A133: =IF(Draw!E132=0,"",Draw!E132) -> 
A134: =IF(Draw!E133=0,"",Draw!E133) ->  | B134: =IF(A134="","",B$3) -> 
A135: =IF(Draw!E134=0,"",Draw!E134) ->  | I135: =IF(B135="","",(IF(G135>0,(SUM(D135:H135)-MAX(D135:H135)-MIN(D135:H135))/3,SUM(D135:F135)/3))*B135/7.6) -> 
A136: =IF(Draw!E135=0,"",Draw!E135) -> 
A137: =IF(Draw!E136=0,"",Draw!E136) -> 
A138: =IF(Draw!E137=0,"",Draw!E137) -> 
A139: =IF(Draw!E138=0,"",Draw!E138) -> 
A140: =IF(Draw!E139=0,"",Draw!E139) -> 
A141: =IF(Draw!E140=0,"",Draw!E140) -> 
A142: =IF(Draw!E141=0,"",Draw!E141) -> 
A143: =IF(Draw!E142=0,"",Draw!E142) -> 
A144: =IF(Draw!E143=0,"",Draw!E143) -> 
A145: =IF(Draw!E144=0,"",Draw!E144) -> 
A146: =IF(Draw!E145=0,"",Draw!E145) -> 
A147: =IF(Draw!E146=0,"",Draw!E146) -> 
A148: =IF(Draw!E147=0,"",Draw!E147) -> 
A149: =IF(Draw!E148=0,"",Draw!E148) -> 
A150: =IF(Draw!E149=0,"",Draw!E149) -> 

Sheet Totals
A1: # | B1: Swimmer | C1: School | D1: Total Score | E1: Place | F1: Figure 1 | G1: Figure 2 | H1: Figure 3 | I1: Figure 4 | J1: Penalties | K1: Score
A2: =IF(Draw!E5=0,"",Draw!E5) -> 4 | B2: Carolin LaBord | C2: Osseo-Maple Grove | D2: =IF($A2="","",SUM(F2:I2)-J2) -> 0 | E2: =IF($A2="","",RANK(D2,D$2:D$150)) -> 30 | F2: =IF($A2="","",'Fig 1 Ballet Leg'!H6) -> 0 | G2: =IF($A2="","",'Fig 2 Barracuda'!H6) -> 0 | H2: =IF($A2="","",'Fig 3 Neptunus'!H6) -> 0 | I2: =IF($A2="","",'Fig 4 Walkover'!I6) -> 0 | J2: =IF($A2="","",'Fig 1 Ballet Leg'!I6+'Fig 2 Barracuda'!I6+'Fig 3 Neptunus'!I6+'Fig 4 Walkover'!J6) -> 0 | K2: =IF($A2="","",IF(A2="","",VLOOKUP(E2,AX$3:AY$102,2,FALSE))) -> 0
A3: =IF(Draw!E19=0,"",Draw!E19) -> 18 | B3: Allison Hannann | C3: Osseo-Maple Grove | D3: =IF($A3="","",SUM(F3:I3)-J3) -> 0 | E3: =IF($A3="","",RANK(D3,D$2:D$150)) -> 30 | F3: =IF($A3="","",'Fig 1 Ballet Leg'!H20) -> 0 | G3: =IF($A3="","",'Fig 2 Barracuda'!H20) -> 0 | H3: =IF($A3="","",'Fig 3 Neptunus'!H20) -> 0 | I3: =IF($A3="","",'Fig 4 Walkover'!I20) -> 0 | J3: =IF($A3="","",'Fig 1 Ballet Leg'!I20+'Fig 2 Barracuda'!I20+'Fig 3 Neptunus'!I20+'Fig 4 Walkover'!J20) -> 0 | K3: =IF($A3="","",IF(A3="","",VLOOKUP(E3,AX$3:AY$102,2,FALSE))) -> 0 | AX3: 1 | AY3: 8
A4: =IF(Draw!E29=0,"",Draw!E29) -> 28 | B4: Rachel Knox | C4: Osseo-Maple Grove | D4: =IF($A4="","",SUM(F4:I4)-J4) -> 0 | E4: =IF($A4="","",RANK(D4,D$2:D$150)) -> 30 | F4: =IF($A4="","",'Fig 1 Ballet Leg'!H30) -> 0 | G4: =IF($A4="","",'Fig 2 Barracuda'!H30) -> 0 | H4: =IF($A4="","",'Fig 3 Neptunus'!H30) -> 0 | I4: =IF($A4="","",'Fig 4 Walkover'!I30) -> 0 | J4: =IF($A4="","",'Fig 1 Ballet Leg'!I30+'Fig 2 Barracuda'!I30+'Fig 3 Neptunus'!I30+'Fig 4 Walkover'!J30) -> 0 | K4: =IF($A4="","",IF(A4="","",VLOOKUP(E4,AX$3:AY$102,2,FALSE))) -> 0 | AX4: 2 | AY4: 6
A5: =IF(Draw!E34=0,"",Draw!E34) -> 33 | B5: Anneke DeLooze | C5: Osseo-Maple Grove | D5: =IF($A5="","",SUM(F5:I5)-J5) -> 0 | E5: =IF($A5="","",RANK(D5,D$2:D$150)) -> 30 | F5: =IF($A5="","",'Fig 1 Ballet Leg'!H35) -> 0 | G5: =IF($A5="","",'Fig 2 Barracuda'!H35) -> 0 | H5: =IF($A5="","",'Fig 3 Neptunus'!H35) -> 0 | I5: =IF($A5="","",'Fig 4 Walkover'!I35) -> 0 | J5: =IF($A5="","",'Fig 1 Ballet Leg'!I35+'Fig 2 Barracuda'!I35+'Fig 3 Neptunus'!I35+'Fig 4 Walkover'!J35) -> 0 | K5: =IF($A5="","",IF(A5="","",VLOOKUP(E5,AX$3:AY$102,2,FALSE))) -> 0 | AX5: 3 | AY5: 5
A6: =IF(Draw!E14=0,"",Draw!E14) -> 13 | B6: Rachel Milbauer | C6: Forest Lake | D6: =IF($A6="","",SUM(F6:I6)-J6) -> 38.09649123 | E6: =IF($A6="","",RANK(D6,D$2:D$150)) -> 29 | F6: =IF($A6="","",'Fig 1 Ballet Leg'!H15) -> 9.684210526 | G6: =IF($A6="","",'Fig 2 Barracuda'!H15) -> 9.122807018 | H6: =IF($A6="","",'Fig 3 Neptunus'!H15) -> 9.157894737 | I6: =IF($A6="","",'Fig 4 Walkover'!I15) -> 10.13157895 | J6: =IF($A6="","",'Fig 1 Ballet Leg'!I15+'Fig 2 Barracuda'!I15+'Fig 3 Neptunus'!I15+'Fig 4 Walkover'!J15) -> 0 | K6: =IF($A6="","",IF(A6="","",VLOOKUP(E6,AX$3:AY$102,2,FALSE))) -> 0 | AX6: 4 | AY6: 4
A7: =IF(Draw!E23=0,"",Draw!E23) -> 22 | B7: Kelly Sullivan | C7: Forest Lake | D7: =IF($A7="","",SUM(F7:I7)-J7) -> 40.44736842 | E7: =IF($A7="","",RANK(D7,D$2:D$150)) -> 28 | F7: =IF($A7="","",'Fig 1 Ballet Leg'!H24) -> 9.403508772 | G7: =IF($A7="","",'Fig 2 Barracuda'!H24) -> 9.912280702 | H7: =IF($A7="","",'Fig 3 Neptunus'!H24) -> 9.157894737 | I7: =IF($A7="","",'Fig 4 Walkover'!I24) -> 11.97368421 | J7: =IF($A7="","",'Fig 1 Ballet Leg'!I24+'Fig 2 Barracuda'!I24+'Fig 3 Neptunus'!I24+'Fig 4 Walkover'!J24) -> 0 | K7: =IF($A7="","",IF(A7="","",VLOOKUP(E7,AX$3:AY$102,2,FALSE))) -> 0 | AX7: 5 | AY7: 3
A8: =IF(Draw!E30=0,"",Draw!E30) -> 29 | B8: Emma Armitage | C8: Forest Lake | D8: =IF($A8="","",SUM(F8:I8)-J8) -> 41.32894737 | E8: =IF($A8="","",RANK(D8,D$2:D$150)) -> 27 | F8: =IF($A8="","",'Fig 1 Ballet Leg'!H31) -> 9.614035088 | G8: =IF($A8="","",'Fig 2 Barracuda'!H31) -> 9.385964912 | H8: =IF($A8="","",'Fig 3 Neptunus'!H31) -> 9.710526316 | I8: =IF($A8="","",'Fig 4 Walkover'!I31) -> 12.61842105 | J8: =IF($A8="","",'Fig 1 Ballet Leg'!I31+'Fig 2 Barracuda'!I31+'Fig 3 Neptunus'!I31+'Fig 4 Walkover'!J31) -> 0 | K8: =IF($A8="","",IF(A8="","",VLOOKUP(E8,AX$3:AY$102,2,FALSE))) -> 0 | AX8: 6 | AY8: 2
A9: =IF(Draw!E28=0,"",Draw!E28) -> 27 | B9: Emily Honnold | C9: Osseo-Maple Grove | D9: =IF($A9="","",SUM(F9:I9)-J9) -> 41.79824561 | E9: =IF($A9="","",RANK(D9,D$2:D$150)) -> 26 | F9: =IF($A9="","",'Fig 1 Ballet Leg'!H29) -> 9.403508772 | G9: =IF($A9="","",'Fig 2 Barracuda'!H29) -> 8.947368421 | H9: =IF($A9="","",'Fig 3 Neptunus'!H29) -> 10.18421053 | I9: =IF($A9="","",'Fig 4 Walkover'!I29) -> 13.26315789 | J9: =IF($A9="","",'Fig 1 Ballet Leg'!I29+'Fig 2 Barracuda'!I29+'Fig 3 Neptunus'!I29+'Fig 4 Walkover'!J29) -> 0 | K9: =IF($A9="","",IF(A9="","",VLOOKUP(E9,AX$3:AY$102,2,FALSE))) -> 0 | AX9: 7 | AY9: 1
A10: =IF(Draw!E21=0,"",Draw!E21) -> 20 | B10: Lizzy Hentges | C10: Forest Lake | D10: =IF($A10="","",SUM(F10:I10)-J10) -> 41.91666667 | E10: =IF($A10="","",RANK(D10,D$2:D$150)) -> 25 | F10: =IF($A10="","",'Fig 1 Ballet Leg'!H22) -> 10.03508772 | G10: =IF($A10="","",'Fig 2 Barracuda'!H22) -> 10.26315789 | H10: =IF($A10="","",'Fig 3 Neptunus'!H22) -> 9 | I10: =IF($A10="","",'Fig 4 Walkover'!I22) -> 12.61842105 | J10: =IF($A10="","",'Fig 1 Ballet Leg'!I22+'Fig 2 Barracuda'!I22+'Fig 3 Neptunus'!I22+'Fig 4 Walkover'!J22) -> 0 | K10: =IF($A10="","",IF(A10="","",VLOOKUP(E10,AX$3:AY$102,2,FALSE))) -> 0 | AX10: 8 | AY10: 0
A11: =IF(Draw!E15=0,"",Draw!E15) -> 14 | B11: Ashlyn Mackowick | C11: Forest Lake | D11: =IF($A11="","",SUM(F11:I11)-J11) -> 42.34210526 | E11: =IF($A11="","",RANK(D11,D$2:D$150)) -> 24 | F11: =IF($A11="","",'Fig 1 Ballet Leg'!H16) -> 9.614035088 | G11: =IF($A11="","",'Fig 2 Barracuda'!H16) -> 10.70175439 | H11: =IF($A11="","",'Fig 3 Neptunus'!H16) -> 10.42105263 | I11: =IF($A11="","",'Fig 4 Walkover'!I16) -> 11.60526316 | J11: =IF($A11="","",'Fig 1 Ballet Leg'!I16+'Fig 2 Barracuda'!I16+'Fig 3 Neptunus'!I16+'Fig 4 Walkover'!J16) -> 0 | K11: =IF($A11="","",IF(A11="","",VLOOKUP(E11,AX$3:AY$102,2,FALSE))) -> 0 | AX11: 9 | AY11: 0
A12: =IF(Draw!E33=0,"",Draw!E33) -> 32 | B12: Maggie Thompson | C12: Forest Lake | D12: =IF($A12="","",SUM(F12:I12)-J12) -> 42.48684211 | E12: =IF($A12="","",RANK(D12,D$2:D$150)) -> 23 | F12: =IF($A12="","",'Fig 1 Ballet Leg'!H34) -> 8.771929825 | G12: =IF($A12="","",'Fig 2 Barracuda'!H34) -> 11.75438596 | H12: =IF($A12="","",'Fig 3 Neptunus'!H34) -> 9.157894737 | I12: =IF($A12="","",'Fig 4 Walkover'!I34) -> 12.80263158 | J12: =IF($A12="","",'Fig 1 Ballet Leg'!I34+'Fig 2 Barracuda'!I34+'Fig 3 Neptunus'!I34+'Fig 4 Walkover'!J34) -> 0 | K12: =IF($A12="","",IF(A12="","",VLOOKUP(E12,AX$3:AY$102,2,FALSE))) -> 0 | AX12: 10 | AY12: 0
A13: =IF(Draw!E31=0,"",Draw!E31) -> 30 | B13: Johanna Livermore | C13: Forest Lake | D13: =IF($A13="","",SUM(F13:I13)-J13) -> 42.87280702 | E13: =IF($A13="","",RANK(D13,D$2:D$150)) -> 22 | F13: =IF($A13="","",'Fig 1 Ballet Leg'!H32) -> 10.24561404 | G13: =IF($A13="","",'Fig 2 Barracuda'!H32) -> 9.824561404 | H13: =IF($A13="","",'Fig 3 Neptunus'!H32) -> 10.73684211 | I13: =IF($A13="","",'Fig 4 Walkover'!I32) -> 12.06578947 | J13: =IF($A13="","",'Fig 1 Ballet Leg'!I32+'Fig 2 Barracuda'!I32+'Fig 3 Neptunus'!I32+'Fig 4 Walkover'!J32) -> 0 | K13: =IF($A13="","",IF(A13="","",VLOOKUP(E13,AX$3:AY$102,2,FALSE))) -> 0 | AX13: 11 | AY13: 0
A14: =IF(Draw!E7=0,"",Draw!E7) -> 6 | B14: Zoe Scholl | C14: Forest Lake | D14: =IF($A14="","",SUM(F14:I14)-J14) -> 42.9122807 | E14: =IF($A14="","",RANK(D14,D$2:D$150)) -> 21 | F14: =IF($A14="","",'Fig 1 Ballet Leg'!H8) -> 9.684210526 | G14: =IF($A14="","",'Fig 2 Barracuda'!H8) -> 11.22807018 | H14: =IF($A14="","",'Fig 3 Neptunus'!H8) -> 10.02631579 | I14: =IF($A14="","",'Fig 4 Walkover'!I8) -> 11.97368421 | J14: =IF($A14="","",'Fig 1 Ballet Leg'!I8+'Fig 2 Barracuda'!I8+'Fig 3 Neptunus'!I8+'Fig 4 Walkover'!J8) -> 0 | K14: =IF($A14="","",IF(A14="","",VLOOKUP(E14,AX$3:AY$102,2,FALSE))) -> 0 | AX14: 12 | AY14: 0
A15: =IF(Draw!E9=0,"",Draw!E9) -> 8 | B15: Lydia Zimmerman | C15: Forest Lake | D15: =IF($A15="","",SUM(F15:I15)-J15) -> 43.38157895 | E15: =IF($A15="","",RANK(D15,D$2:D$150)) -> 20 | F15: =IF($A15="","",'Fig 1 Ballet Leg'!H10) -> 9.824561404 | G15: =IF($A15="","",'Fig 2 Barracuda'!H10) -> 10.1754386 | H15: =IF($A15="","",'Fig 3 Neptunus'!H10) -> 10.02631579 | I15: =IF($A15="","",'Fig 4 Walkover'!I10) -> 13.35526316 | J15: =IF($A15="","",'Fig 1 Ballet Leg'!I10+'Fig 2 Barracuda'!I10+'Fig 3 Neptunus'!I10+'Fig 4 Walkover'!J10) -> 0 | K15: =IF($A15="","",IF(A15="","",VLOOKUP(E15,AX$3:AY$102,2,FALSE))) -> 0 | AX15: 13 | AY15: 0
A16: =IF(Draw!E4=0,"",Draw!E4) -> 3 | B16: Katherine Hildebrandt | C16: Osseo-Maple Grove | D16: =IF($A16="","",SUM(F16:I16)-J16) -> 45.36403509 | E16: =IF($A16="","",RANK(D16,D$2:D$150)) -> 19 | F16: =IF($A16="","",'Fig 1 Ballet Leg'!H5) -> 10.24561404 | G16: =IF($A16="","",'Fig 2 Barracuda'!H5) -> 11.84210526 | H16: =IF($A16="","",'Fig 3 Neptunus'!H5) -> 9.552631579 | I16: =IF($A16="","",'Fig 4 Walkover'!I5) -> 13.72368421 | J16: =IF($A16="","",'Fig 1 Ballet Leg'!I5+'Fig 2 Barracuda'!I5+'Fig 3 Neptunus'!I5+'Fig 4 Walkover'!J5) -> 0 | K16: =IF($A16="","",IF(A16="","",VLOOKUP(E16,AX$3:AY$102,2,FALSE))) -> 0 | AX16: 14 | AY16: 0
A17: =IF(Draw!E17=0,"",Draw!E17) -> 16 | B17: Ellie Thiele | C17: Forest Lake | D17: =IF($A17="","",SUM(F17:I17)-J17) -> 45.43421053 | E17: =IF($A17="","",RANK(D17,D$2:D$150)) -> 18 | F17: =IF($A17="","",'Fig 1 Ballet Leg'!H18) -> 9.473684211 | G17: =IF($A17="","",'Fig 2 Barracuda'!H18) -> 12.10526316 | H17: =IF($A17="","",'Fig 3 Neptunus'!H18) -> 11.05263158 | I17: =IF($A17="","",'Fig 4 Walkover'!I18) -> 12.80263158 | J17: =IF($A17="","",'Fig 1 Ballet Leg'!I18+'Fig 2 Barracuda'!I18+'Fig 3 Neptunus'!I18+'Fig 4 Walkover'!J18) -> 0 | K17: =IF($A17="","",IF(A17="","",VLOOKUP(E17,AX$3:AY$102,2,FALSE))) -> 0 | AX17: 15 | AY17: 0
A18: =IF(Draw!E6=0,"",Draw!E6) -> 5 | B18: Indy Walstrom | C18: Forest Lake | D18: =IF($A18="","",SUM(F18:I18)-J18) -> 46.13157895 | E18: =IF($A18="","",RANK(D18,D$2:D$150)) -> 17 | F18: =IF($A18="","",'Fig 1 Ballet Leg'!H7) -> 10.73684211 | G18: =IF($A18="","",'Fig 2 Barracuda'!H7) -> 12.63157895 | H18: =IF($A18="","",'Fig 3 Neptunus'!H7) -> 9.868421053 | I18: =IF($A18="","",'Fig 4 Walkover'!I7) -> 12.89473684 | J18: =IF($A18="","",'Fig 1 Ballet Leg'!I7+'Fig 2 Barracuda'!I7+'Fig 3 Neptunus'!I7+'Fig 4 Walkover'!J7) -> 0 | K18: =IF($A18="","",IF(A18="","",VLOOKUP(E18,AX$3:AY$102,2,FALSE))) -> 0 | AX18: 16 | AY18: 0
A19: =IF(Draw!E20=0,"",Draw!E20) -> 19 | B19: Rylie Sampson | C19: Forest Lake | D19: =IF($A19="","",SUM(F19:I19)-J19) -> 46.45614035 | E19: =IF($A19="","",RANK(D19,D$2:D$150)) -> 16 | F19: =IF($A19="","",'Fig 1 Ballet Leg'!H21) -> 10.73684211 | G19: =IF($A19="","",'Fig 2 Barracuda'!H21) -> 11.40350877 | H19: =IF($A19="","",'Fig 3 Neptunus'!H21) -> 10.5 | I19: =IF($A19="","",'Fig 4 Walkover'!I21) -> 13.81578947 | J19: =IF($A19="","",'Fig 1 Ballet Leg'!I21+'Fig 2 Barracuda'!I21+'Fig 3 Neptunus'!I21+'Fig 4 Walkover'!J21) -> 0 | K19: =IF($A19="","",IF(A19="","",VLOOKUP(E19,AX$3:AY$102,2,FALSE))) -> 0 | AX19: 17 | AY19: 0
A20: =IF(Draw!E3=0,"",Draw!E3) -> 2 | B20: Ellery Mason | C20: Osseo-Maple Grove | D20: =IF($A20="","",SUM(F20:I20)-J20) -> 46.86842105 | E20: =IF($A20="","",RANK(D20,D$2:D$150)) -> 15 | F20: =IF($A20="","",'Fig 1 Ballet Leg'!H4) -> 11.15789474 | G20: =IF($A20="","",'Fig 2 Barracuda'!H4) -> 10.78947368 | H20: =IF($A20="","",'Fig 3 Neptunus'!H4) -> 10.18421053 | I20: =IF($A20="","",'Fig 4 Walkover'!I4) -> 14.73684211 | J20: =IF($A20="","",'Fig 1 Ballet Leg'!I4+'Fig 2 Barracuda'!I4+'Fig 3 Neptunus'!I4+'Fig 4 Walkover'!J4) -> 0 | K20: =IF($A20="","",IF(A20="","",VLOOKUP(E20,AX$3:AY$102,2,FALSE))) -> 0 | AX20: 18 | AY20: 0
A21: =IF(Draw!E18=0,"",Draw!E18) -> 17 | B21: Ariel Ball | C21: Forest Lake | D21: =IF($A21="","",SUM(F21:I21)-J21) -> 47.86842105 | E21: =IF($A21="","",RANK(D21,D$2:D$150)) -> 14 | F21: =IF($A21="","",'Fig 1 Ballet Leg'!H19) -> 10.73684211 | G21: =IF($A21="","",'Fig 2 Barracuda'!H19) -> 11.57894737 | H21: =IF($A21="","",'Fig 3 Neptunus'!H19) -> 11.36842105 | I21: =IF($A21="","",'Fig 4 Walkover'!I19) -> 14.18421053 | J21: =IF($A21="","",'Fig 1 Ballet Leg'!I19+'Fig 2 Barracuda'!I19+'Fig 3 Neptunus'!I19+'Fig 4 Walkover'!J19) -> 0 | K21: =IF($A21="","",IF(A21="","",VLOOKUP(E21,AX$3:AY$102,2,FALSE))) -> 0 | AX21: 19 | AY21: 0
A22: =IF(Draw!E27=0,"",Draw!E27) -> 26 | B22: Alva Westher | C22: Forest Lake | D22: =IF($A22="","",SUM(F22:I22)-J22) -> 48.10087719 | E22: =IF($A22="","",RANK(D22,D$2:D$150)) -> 13 | F22: =IF($A22="","",'Fig 1 Ballet Leg'!H28) -> 10.38596491 | G22: =IF($A22="","",'Fig 2 Barracuda'!H28) -> 13.07017544 | H22: =IF($A22="","",'Fig 3 Neptunus'!H28) -> 11.28947368 | I22: =IF($A22="","",'Fig 4 Walkover'!I28) -> 13.35526316 | J22: =IF($A22="","",'Fig 1 Ballet Leg'!I28+'Fig 2 Barracuda'!I28+'Fig 3 Neptunus'!I28+'Fig 4 Walkover'!J28) -> 0 | K22: =IF($A22="","",IF(A22="","",VLOOKUP(E22,AX$3:AY$102,2,FALSE))) -> 0 | AX22: 20 | AY22: 0
A23: =IF(Draw!E10=0,"",Draw!E10) -> 9 | B23: Margo Prentice | C23: Osseo-Maple Grove | D23: =IF($A23="","",SUM(F23:I23)-J23) -> 48.35964912 | E23: =IF($A23="","",RANK(D23,D$2:D$150)) -> 12 | F23: =IF($A23="","",'Fig 1 Ballet Leg'!H11) -> 10.38596491 | G23: =IF($A23="","",'Fig 2 Barracuda'!H11) -> 12.10526316 | H23: =IF($A23="","",'Fig 3 Neptunus'!H11) -> 11.68421053 | I23: =IF($A23="","",'Fig 4 Walkover'!I11) -> 14.18421053 | J23: =IF($A23="","",'Fig 1 Ballet Leg'!I11+'Fig 2 Barracuda'!I11+'Fig 3 Neptunus'!I11+'Fig 4 Walkover'!J11) -> 0 | K23: =IF($A23="","",IF(A23="","",VLOOKUP(E23,AX$3:AY$102,2,FALSE))) -> 0 | AX23: 21 | AY23: 0
A24: =IF(Draw!E24=0,"",Draw!E24) -> 23 | B24: Haley Heiss | C24: Osseo-Maple Grove | D24: =IF($A24="","",SUM(F24:I24)-J24) -> 48.38157895 | E24: =IF($A24="","",RANK(D24,D$2:D$150)) -> 11 | F24: =IF($A24="","",'Fig 1 Ballet Leg'!H25) -> 10.66666667 | G24: =IF($A24="","",'Fig 2 Barracuda'!H25) -> 12.54385965 | H24: =IF($A24="","",'Fig 3 Neptunus'!H25) -> 10.89473684 | I24: =IF($A24="","",'Fig 4 Walkover'!I25) -> 14.27631579 | J24: =IF($A24="","",'Fig 1 Ballet Leg'!I25+'Fig 2 Barracuda'!I25+'Fig 3 Neptunus'!I25+'Fig 4 Walkover'!J25) -> 0 | K24: =IF($A24="","",IF(A24="","",VLOOKUP(E24,AX$3:AY$102,2,FALSE))) -> 0 | AX24: 22 | AY24: 0
A25: =IF(Draw!E22=0,"",Draw!E22) -> 21 | B25: Heidi Hyrkas | C25: Forest Lake | D25: =IF($A25="","",SUM(F25:I25)-J25) -> 48.54824561 | E25: =IF($A25="","",RANK(D25,D$2:D$150)) -> 10 | F25: =IF($A25="","",'Fig 1 Ballet Leg'!H23) -> 9.614035088 | G25: =IF($A25="","",'Fig 2 Barracuda'!H23) -> 12.89473684 | H25: =IF($A25="","",'Fig 3 Neptunus'!H23) -> 11.76315789 | I25: =IF($A25="","",'Fig 4 Walkover'!I23) -> 14.27631579 | J25: =IF($A25="","",'Fig 1 Ballet Leg'!I23+'Fig 2 Barracuda'!I23+'Fig 3 Neptunus'!I23+'Fig 4 Walkover'!J23) -> 0 | K25: =IF($A25="","",IF(A25="","",VLOOKUP(E25,AX$3:AY$102,2,FALSE))) -> 0 | AX25: 23 | AY25: 0
A26: =IF(Draw!E12=0,"",Draw!E12) -> 11 | B26: Heather Breidenbach | C26: Osseo-Maple Grove | D26: =IF($A26="","",SUM(F26:I26)-J26) -> 48.96929825 | E26: =IF($A26="","",RANK(D26,D$2:D$150)) -> 9 | F26: =IF($A26="","",'Fig 1 Ballet Leg'!H13) -> 9.614035088 | G26: =IF($A26="","",'Fig 2 Barracuda'!H13) -> 13.15789474 | H26: =IF($A26="","",'Fig 3 Neptunus'!H13) -> 11.36842105 | I26: =IF($A26="","",'Fig 4 Walkover'!I13) -> 14.82894737 | J26: =IF($A26="","",'Fig 1 Ballet Leg'!I13+'Fig 2 Barracuda'!I13+'Fig 3 Neptunus'!I13+'Fig 4 Walkover'!J13) -> 0 | K26: =IF($A26="","",IF(A26="","",VLOOKUP(E26,AX$3:AY$102,2,FALSE))) -> 0 | AX26: 24 | AY26: 0
A27: =IF(Draw!E26=0,"",Draw!E26) -> 25 | B27: Madison Peters | C27: Osseo-Maple Grove | D27: =IF($A27="","",SUM(F27:I27)-J27) -> 49.09649123 | E27: =IF($A27="","",RANK(D27,D$2:D$150)) -> 8 | F27: =IF($A27="","",'Fig 1 Ballet Leg'!H27) -> 10.10526316 | G27: =IF($A27="","",'Fig 2 Barracuda'!H27) -> 13.59649123 | H27: =IF($A27="","",'Fig 3 Neptunus'!H27) -> 11.21052632 | I27: =IF($A27="","",'Fig 4 Walkover'!I27) -> 14.18421053 | J27: =IF($A27="","",'Fig 1 Ballet Leg'!I27+'Fig 2 Barracuda'!I27+'Fig 3 Neptunus'!I27+'Fig 4 Walkover'!J27) -> 0 | K27: =IF($A27="","",IF(A27="","",VLOOKUP(E27,AX$3:AY$102,2,FALSE))) -> 0 | AX27: 25 | AY27: 0
A28: =IF(Draw!E25=0,"",Draw!E25) -> 24 | B28: Katelyn Molin | C28: Osseo-Maple Grove | D28: =IF($A28="","",SUM(F28:I28)-J28) -> 49.22807018 | E28: =IF($A28="","",RANK(D28,D$2:D$150)) -> 7 | F28: =IF($A28="","",'Fig 1 Ballet Leg'!H26) -> 11.0877193 | G28: =IF($A28="","",'Fig 2 Barracuda'!H26) -> 13.50877193 | H28: =IF($A28="","",'Fig 3 Neptunus'!H26) -> 10.81578947 | I28: =IF($A28="","",'Fig 4 Walkover'!I26) -> 13.81578947 | J28: =IF($A28="","",'Fig 1 Ballet Leg'!I26+'Fig 2 Barracuda'!I26+'Fig 3 Neptunus'!I26+'Fig 4 Walkover'!J26) -> 0 | K28: =IF($A28="","",IF(A28="","",VLOOKUP(E28,AX$3:AY$102,2,FALSE))) -> 1 | AX28: 26 | AY28: 0
A29: =IF(Draw!E13=0,"",Draw!E13) -> 12 | B29: Katherine Olsen | C29: Osseo-Maple Grove | D29: =IF($A29="","",SUM(F29:I29)-J29) -> 49.38596491 | E29: =IF($A29="","",RANK(D29,D$2:D$150)) -> 6 | F29: =IF($A29="","",'Fig 1 Ballet Leg'!H14) -> 11.01754386 | G29: =IF($A29="","",'Fig 2 Barracuda'!H14) -> 12.63157895 | H29: =IF($A29="","",'Fig 3 Neptunus'!H14) -> 11.36842105 | I29: =IF($A29="","",'Fig 4 Walkover'!I14) -> 14.36842105 | J29: =IF($A29="","",'Fig 1 Ballet Leg'!I14+'Fig 2 Barracuda'!I14+'Fig 3 Neptunus'!I14+'Fig 4 Walkover'!J14) -> 0 | K29: =IF($A29="","",IF(A29="","",VLOOKUP(E29,AX$3:AY$102,2,FALSE))) -> 2 | AX29: 27 | AY29: 0
A30: =IF(Draw!E8=0,"",Draw!E8) -> 7 | B30: Alexandra Trudeau | C30: Osseo-Maple Grove | D30: =IF($A30="","",SUM(F30:I30)-J30) -> 49.6622807 | E30: =IF($A30="","",RANK(D30,D$2:D$150)) -> 5 | F30: =IF($A30="","",'Fig 1 Ballet Leg'!H9) -> 11.01754386 | G30: =IF($A30="","",'Fig 2 Barracuda'!H9) -> 12.89473684 | H30: =IF($A30="","",'Fig 3 Neptunus'!H9) -> 11.28947368 | I30: =IF($A30="","",'Fig 4 Walkover'!I9) -> 14.46052632 | J30: =IF($A30="","",'Fig 1 Ballet Leg'!I9+'Fig 2 Barracuda'!I9+'Fig 3 Neptunus'!I9+'Fig 4 Walkover'!J9) -> 0 | K30: =IF($A30="","",IF(A30="","",VLOOKUP(E30,AX$3:AY$102,2,FALSE))) -> 3 | AX30: 28 | AY30: 0
A31: =IF(Draw!E2=0,"",Draw!E2) -> 1 | B31: Jenna Stockinger | C31: Forest Lake | D31: =IF($A31="","",SUM(F31:I31)-J31) -> 50.76754386 | E31: =IF($A31="","",RANK(D31,D$2:D$150)) -> 4 | F31: =IF($A31="","",'Fig 1 Ballet Leg'!H3) -> 10.73684211 | G31: =IF($A31="","",'Fig 2 Barracuda'!H3) -> 14.12280702 | H31: =IF($A31="","",'Fig 3 Neptunus'!H3) -> 11.44736842 | I31: =IF($A31="","",'Fig 4 Walkover'!I3) -> 14.46052632 | J31: =IF($A31="","",'Fig 1 Ballet Leg'!I3+'Fig 2 Barracuda'!I3+'Fig 3 Neptunus'!I3+'Fig 4 Walkover'!J3) -> 0 | K31: =IF($A31="","",IF(A31="","",VLOOKUP(E31,AX$3:AY$102,2,FALSE))) -> 4 | AX31: 29 | AY31: 0
A32: =IF(Draw!E32=0,"",Draw!E32) -> 31 | B32: Mckinley Leavitt | C32: Forest Lake | D32: =IF($A32="","",SUM(F32:I32)-J32) -> 52.09210526 | E32: =IF($A32="","",RANK(D32,D$2:D$150)) -> 3 | F32: =IF($A32="","",'Fig 1 Ballet Leg'!H33) -> 10.31578947 | G32: =IF($A32="","",'Fig 2 Barracuda'!H33) -> 14.47368421 | H32: =IF($A32="","",'Fig 3 Neptunus'!H33) -> 12.47368421 | I32: =IF($A32="","",'Fig 4 Walkover'!I33) -> 14.82894737 | J32: =IF($A32="","",'Fig 1 Ballet Leg'!I33+'Fig 2 Barracuda'!I33+'Fig 3 Neptunus'!I33+'Fig 4 Walkover'!J33) -> 0 | K32: =IF($A32="","",IF(A32="","",VLOOKUP(E32,AX$3:AY$102,2,FALSE))) -> 5 | AX32: 30 | AY32: 0
A33: =IF(Draw!E16=0,"",Draw!E16) -> 15 | B33: Zoe Waldron | C33: Osseo-Maple Grove | D33: =IF($A33="","",SUM(F33:I33)-J33) -> 52.59649123 | E33: =IF($A33="","",RANK(D33,D$2:D$150)) -> 2 | F33: =IF($A33="","",'Fig 1 Ballet Leg'!H17) -> 11.78947368 | G33: =IF($A33="","",'Fig 2 Barracuda'!H17) -> 14.12280702 | H33: =IF($A33="","",'Fig 3 Neptunus'!H17) -> 11.76315789 | I33: =IF($A33="","",'Fig 4 Walkover'!I17) -> 14.92105263 | J33: =IF($A33="","",'Fig 1 Ballet Leg'!I17+'Fig 2 Barracuda'!I17+'Fig 3 Neptunus'!I17+'Fig 4 Walkover'!J17) -> 0 | K33: =IF($A33="","",IF(A33="","",VLOOKUP(E33,AX$3:AY$102,2,FALSE))) -> 6 | AX33: 31 | AY33: 0
A34: =IF(Draw!E11=0,"",Draw!E11) -> 10 | B34: Paige Anderson | C34: Forest Lake | D34: =IF($A34="","",SUM(F34:I34)-J34) -> 52.88596491 | E34: =IF($A34="","",RANK(D34,D$2:D$150)) -> 1 | F34: =IF($A34="","",'Fig 1 Ballet Leg'!H12) -> 11.15789474 | G34: =IF($A34="","",'Fig 2 Barracuda'!H12) -> 14.64912281 | H34: =IF($A34="","",'Fig 3 Neptunus'!H12) -> 12.71052632 | I34: =IF($A34="","",'Fig 4 Walkover'!I12) -> 14.36842105 | J34: =IF($A34="","",'Fig 1 Ballet Leg'!I12+'Fig 2 Barracuda'!I12+'Fig 3 Neptunus'!I12+'Fig 4 Walkover'!J12) -> 0 | K34: =IF($A34="","",IF(A34="","",VLOOKUP(E34,AX$3:AY$102,2,FALSE))) -> 8 | AX34: 32 | AY34: 0
A35: =IF(Draw!E35=0,"",Draw!E35) ->  | D35: =IF($A35="","",SUM(F35:I35)-J35) ->  | E35: =IF($A35="","",RANK(D35,D$2:D$150)) ->  | F35: =IF($A35="","",'Fig 1 Ballet Leg'!H36) ->  | G35: =IF($A35="","",'Fig 2 Barracuda'!H36) ->  | H35: =IF($A35="","",'Fig 3 Neptunus'!H36) ->  | I35: =IF($A35="","",'Fig 4 Walkover'!I36) ->  | J35: =IF($A35="","",'Fig 1 Ballet Leg'!I36+'Fig 2 Barracuda'!I36+'Fig 3 Neptunus'!I36+'Fig 4 Walkover'!J36) ->  | K35: =IF($A35="","",IF(A35="","",VLOOKUP(E35,AX$3:AY$102,2,FALSE))) ->  | AX35: 33 | AY35: 0
A36: =IF(Draw!E36=0,"",Draw!E36) ->  | F36: =IF($A36="","",'Fig 1 Ballet Leg'!H37) ->  | G36: =IF($A36="","",'Fig 2 Barracuda'!H37) ->  | H36: =IF($A36="","",'Fig 3 Neptunus'!H37) ->  | I36: =IF($A36="","",'Fig 4 Walkover'!I37) ->  | J36: =IF($A36="","",'Fig 1 Ballet Leg'!I37+'Fig 2 Barracuda'!I37+'Fig 3 Neptunus'!I37+'Fig 4 Walkover'!J37) ->  | AX36: 34 | AY36: 0
A37: =IF(Draw!E37=0,"",Draw!E37) ->  | F37: =IF($A37="","",'Fig 1 Ballet Leg'!H38) ->  | G37: =IF($A37="","",'Fig 2 Barracuda'!H38) ->  | H37: =IF($A37="","",'Fig 3 Neptunus'!H38) ->  | I37: =IF($A37="","",'Fig 4 Walkover'!I38) ->  | J37: =IF($A37="","",'Fig 1 Ballet Leg'!I38+'Fig 2 Barracuda'!I38+'Fig 3 Neptunus'!I38+'Fig 4 Walkover'!J38) ->  | AX37: 35 | AY37: 0
A38: =IF(Draw!E38=0,"",Draw!E38) ->  | F38: =IF($A38="","",'Fig 1 Ballet Leg'!H39) ->  | G38: =IF($A38="","",'Fig 2 Barracuda'!H39) ->  | H38: =IF($A38="","",'Fig 3 Neptunus'!H39) ->  | I38: =IF($A38="","",'Fig 4 Walkover'!I39) ->  | J38: =IF($A38="","",'Fig 1 Ballet Leg'!I39+'Fig 2 Barracuda'!I39+'Fig 3 Neptunus'!I39+'Fig 4 Walkover'!J39) ->  | AX38: 36 | AY38: 0
A39: =IF(Draw!E39=0,"",Draw!E39) ->  | F39: =IF($A39="","",'Fig 1 Ballet Leg'!H40) ->  | G39: =IF($A39="","",'Fig 2 Barracuda'!H40) ->  | H39: =IF($A39="","",'Fig 3 Neptunus'!H40) ->  | I39: =IF($A39="","",'Fig 4 Walkover'!I40) ->  | J39: =IF($A39="","",'Fig 1 Ballet Leg'!I40+'Fig 2 Barracuda'!I40+'Fig 3 Neptunus'!I40+'Fig 4 Walkover'!J40) ->  | AX39: 37 | AY39: 0
A40: =IF(Draw!E40=0,"",Draw!E40) ->  | F40: =IF($A40="","",'Fig 1 Ballet Leg'!H41) ->  | G40: =IF($A40="","",'Fig 2 Barracuda'!H41) ->  | H40: =IF($A40="","",'Fig 3 Neptunus'!H41) ->  | I40: =IF($A40="","",'Fig 4 Walkover'!I41) ->  | J40: =IF($A40="","",'Fig 1 Ballet Leg'!I41+'Fig 2 Barracuda'!I41+'Fig 3 Neptunus'!I41+'Fig 4 Walkover'!J41) ->  | AX40: 38 | AY40: 0
A41: =IF(Draw!E41=0,"",Draw!E41) ->  | F41: =IF($A41="","",'Fig 1 Ballet Leg'!H42) ->  | G41: =IF($A41="","",'Fig 2 Barracuda'!H42) ->  | H41: =IF($A41="","",'Fig 3 Neptunus'!H42) ->  | I41: =IF($A41="","",'Fig 4 Walkover'!I42) ->  | J41: =IF($A41="","",'Fig 1 Ballet Leg'!I42+'Fig 2 Barracuda'!I42+'Fig 3 Neptunus'!I42+'Fig 4 Walkover'!J42) ->  | AX41: 39 | AY41: 0
A42: =IF(Draw!E42=0,"",Draw!E42) ->  | F42: =IF($A42="","",'Fig 1 Ballet Leg'!H43) ->  | G42: =IF($A42="","",'Fig 2 Barracuda'!H43) ->  | H42: =IF($A42="","",'Fig 3 Neptunus'!H43) ->  | I42: =IF($A42="","",'Fig 4 Walkover'!I43) ->  | J42: =IF($A42="","",'Fig 1 Ballet Leg'!I43+'Fig 2 Barracuda'!I43+'Fig 3 Neptunus'!I43+'Fig 4 Walkover'!J43) ->  | AX42: 40 | AY42: 0
A43: =IF(Draw!E43=0,"",Draw!E43) ->  | F43: =IF($A43="","",'Fig 1 Ballet Leg'!H44) ->  | G43: =IF($A43="","",'Fig 2 Barracuda'!H44) ->  | H43: =IF($A43="","",'Fig 3 Neptunus'!H44) ->  | I43: =IF($A43="","",'Fig 4 Walkover'!I44) ->  | J43: =IF($A43="","",'Fig 1 Ballet Leg'!I44+'Fig 2 Barracuda'!I44+'Fig 3 Neptunus'!I44+'Fig 4 Walkover'!J44) ->  | AX43: 41 | AY43: 0
A44: =IF(Draw!E44=0,"",Draw!E44) ->  | F44: =IF($A44="","",'Fig 1 Ballet Leg'!H45) ->  | G44: =IF($A44="","",'Fig 2 Barracuda'!H45) ->  | H44: =IF($A44="","",'Fig 3 Neptunus'!H45) ->  | I44: =IF($A44="","",'Fig 4 Walkover'!I45) ->  | J44: =IF($A44="","",'Fig 1 Ballet Leg'!I45+'Fig 2 Barracuda'!I45+'Fig 3 Neptunus'!I45+'Fig 4 Walkover'!J45) ->  | AX44: 42 | AY44: 0
A45: =IF(Draw!E45=0,"",Draw!E45) ->  | F45: =IF($A45="","",'Fig 1 Ballet Leg'!H46) ->  | G45: =IF($A45="","",'Fig 2 Barracuda'!H46) ->  | H45: =IF($A45="","",'Fig 3 Neptunus'!H46) ->  | I45: =IF($A45="","",'Fig 4 Walkover'!I46) ->  | J45: =IF($A45="","",'Fig 1 Ballet Leg'!I46+'Fig 2 Barracuda'!I46+'Fig 3 Neptunus'!I46+'Fig 4 Walkover'!J46) ->  | AX45: 43 | AY45: 0
A46: =IF(Draw!E46=0,"",Draw!E46) ->  | F46: =IF($A46="","",'Fig 1 Ballet Leg'!H47) ->  | G46: =IF($A46="","",'Fig 2 Barracuda'!H47) ->  | H46: =IF($A46="","",'Fig 3 Neptunus'!H47) ->  | I46: =IF($A46="","",'Fig 4 Walkover'!I47) ->  | J46: =IF($A46="","",'Fig 1 Ballet Leg'!I47+'Fig 2 Barracuda'!I47+'Fig 3 Neptunus'!I47+'Fig 4 Walkover'!J47) ->  | AX46: 44 | AY46: 0
A47: =IF(Draw!E47=0,"",Draw!E47) ->  | F47: =IF($A47="","",'Fig 1 Ballet Leg'!H48) ->  | G47: =IF($A47="","",'Fig 2 Barracuda'!H48) ->  | H47: =IF($A47="","",'Fig 3 Neptunus'!H48) ->  | I47: =IF($A47="","",'Fig 4 Walkover'!I48) ->  | J47: =IF($A47="","",'Fig 1 Ballet Leg'!I48+'Fig 2 Barracuda'!I48+'Fig 3 Neptunus'!I48+'Fig 4 Walkover'!J48) ->  | AX47: 45 | AY47: 0
A48: =IF(Draw!E48=0,"",Draw!E48) ->  | F48: =IF($A48="","",'Fig 1 Ballet Leg'!H49) ->  | G48: =IF($A48="","",'Fig 2 Barracuda'!H49) ->  | H48: =IF($A48="","",'Fig 3 Neptunus'!H49) ->  | I48: =IF($A48="","",'Fig 4 Walkover'!I49) ->  | J48: =IF($A48="","",'Fig 1 Ballet Leg'!I49+'Fig 2 Barracuda'!I49+'Fig 3 Neptunus'!I49+'Fig 4 Walkover'!J49) ->  | AX48: 46 | AY48: 0
A49: =IF(Draw!E49=0,"",Draw!E49) ->  | F49: =IF($A49="","",'Fig 1 Ballet Leg'!H50) ->  | G49: =IF($A49="","",'Fig 2 Barracuda'!H50) ->  | H49: =IF($A49="","",'Fig 3 Neptunus'!H50) ->  | I49: =IF($A49="","",'Fig 4 Walkover'!I50) ->  | J49: =IF($A49="","",'Fig 1 Ballet Leg'!I50+'Fig 2 Barracuda'!I50+'Fig 3 Neptunus'!I50+'Fig 4 Walkover'!J50) ->  | AX49: 47 | AY49: 0
A50: =IF(Draw!E50=0,"",Draw!E50) ->  | F50: =IF($A50="","",'Fig 1 Ballet Leg'!H51) ->  | G50: =IF($A50="","",'Fig 2 Barracuda'!H51) ->  | H50: =IF($A50="","",'Fig 3 Neptunus'!H51) ->  | I50: =IF($A50="","",'Fig 4 Walkover'!I51) ->  | J50: =IF($A50="","",'Fig 1 Ballet Leg'!I51+'Fig 2 Barracuda'!I51+'Fig 3 Neptunus'!I51+'Fig 4 Walkover'!J51) ->  | AX50: 48 | AY50: 0
A51: =IF(Draw!E51=0,"",Draw!E51) ->  | F51: =IF($A51="","",'Fig 1 Ballet Leg'!H52) ->  | G51: =IF($A51="","",'Fig 2 Barracuda'!H52) ->  | H51: =IF($A51="","",'Fig 3 Neptunus'!H52) ->  | I51: =IF($A51="","",'Fig 4 Walkover'!I52) ->  | J51: =IF($A51="","",'Fig 1 Ballet Leg'!I52+'Fig 2 Barracuda'!I52+'Fig 3 Neptunus'!I52+'Fig 4 Walkover'!J52) ->  | AX51: 49 | AY51: 0
A52: =IF(Draw!E52=0,"",Draw!E52) ->  | F52: =IF($A52="","",'Fig 1 Ballet Leg'!H53) ->  | G52: =IF($A52="","",'Fig 2 Barracuda'!H53) ->  | H52: =IF($A52="","",'Fig 3 Neptunus'!H53) ->  | I52: =IF($A52="","",'Fig 4 Walkover'!I53) ->  | J52: =IF($A52="","",'Fig 1 Ballet Leg'!I53+'Fig 2 Barracuda'!I53+'Fig 3 Neptunus'!I53+'Fig 4 Walkover'!J53) ->  | AX52: 50 | AY52: 0
A53: =IF(Draw!E53=0,"",Draw!E53) ->  | F53: =IF($A53="","",'Fig 1 Ballet Leg'!H54) ->  | G53: =IF($A53="","",'Fig 2 Barracuda'!H54) ->  | H53: =IF($A53="","",'Fig 3 Neptunus'!H54) ->  | I53: =IF($A53="","",'Fig 4 Walkover'!I54) ->  | J53: =IF($A53="","",'Fig 1 Ballet Leg'!I54+'Fig 2 Barracuda'!I54+'Fig 3 Neptunus'!I54+'Fig 4 Walkover'!J54) ->  | AX53: 51 | AY53: 0
A54: =IF(Draw!E54=0,"",Draw!E54) ->  | F54: =IF($A54="","",'Fig 1 Ballet Leg'!H55) ->  | G54: =IF($A54="","",'Fig 2 Barracuda'!H55) ->  | H54: =IF($A54="","",'Fig 3 Neptunus'!H55) ->  | I54: =IF($A54="","",'Fig 4 Walkover'!I55) ->  | J54: =IF($A54="","",'Fig 1 Ballet Leg'!I55+'Fig 2 Barracuda'!I55+'Fig 3 Neptunus'!I55+'Fig 4 Walkover'!J55) ->  | AX54: 52 | AY54: 0
A55: =IF(Draw!E55=0,"",Draw!E55) ->  | F55: =IF($A55="","",'Fig 1 Ballet Leg'!H56) ->  | G55: =IF($A55="","",'Fig 2 Barracuda'!H56) ->  | H55: =IF($A55="","",'Fig 3 Neptunus'!H56) ->  | I55: =IF($A55="","",'Fig 4 Walkover'!I56) ->  | J55: =IF($A55="","",'Fig 1 Ballet Leg'!I56+'Fig 2 Barracuda'!I56+'Fig 3 Neptunus'!I56+'Fig 4 Walkover'!J56) ->  | AX55: 53 | AY55: 0
A56: =IF(Draw!E56=0,"",Draw!E56) ->  | F56: =IF($A56="","",'Fig 1 Ballet Leg'!H57) ->  | G56: =IF($A56="","",'Fig 2 Barracuda'!H57) ->  | H56: =IF($A56="","",'Fig 3 Neptunus'!H57) ->  | I56: =IF($A56="","",'Fig 4 Walkover'!I57) ->  | J56: =IF($A56="","",'Fig 1 Ballet Leg'!I57+'Fig 2 Barracuda'!I57+'Fig 3 Neptunus'!I57+'Fig 4 Walkover'!J57) ->  | AX56: 54 | AY56: 0
A57: =IF(Draw!E57=0,"",Draw!E57) ->  | F57: =IF($A57="","",'Fig 1 Ballet Leg'!H58) ->  | G57: =IF($A57="","",'Fig 2 Barracuda'!H58) ->  | H57: =IF($A57="","",'Fig 3 Neptunus'!H58) ->  | I57: =IF($A57="","",'Fig 4 Walkover'!I58) ->  | J57: =IF($A57="","",'Fig 1 Ballet Leg'!I58+'Fig 2 Barracuda'!I58+'Fig 3 Neptunus'!I58+'Fig 4 Walkover'!J58) ->  | AX57: 55 | AY57: 0
A58: =IF(Draw!E58=0,"",Draw!E58) ->  | F58: =IF($A58="","",'Fig 1 Ballet Leg'!H59) ->  | G58: =IF($A58="","",'Fig 2 Barracuda'!H59) ->  | H58: =IF($A58="","",'Fig 3 Neptunus'!H59) ->  | I58: =IF($A58="","",'Fig 4 Walkover'!I59) ->  | J58: =IF($A58="","",'Fig 1 Ballet Leg'!I59+'Fig 2 Barracuda'!I59+'Fig 3 Neptunus'!I59+'Fig 4 Walkover'!J59) ->  | AX58: 56 | AY58: 0
A59: =IF(Draw!E59=0,"",Draw!E59) ->  | F59: =IF($A59="","",'Fig 1 Ballet Leg'!H60) ->  | G59: =IF($A59="","",'Fig 2 Barracuda'!H60) ->  | H59: =IF($A59="","",'Fig 3 Neptunus'!H60) ->  | I59: =IF($A59="","",'Fig 4 Walkover'!I60) ->  | J59: =IF($A59="","",'Fig 1 Ballet Leg'!I60+'Fig 2 Barracuda'!I60+'Fig 3 Neptunus'!I60+'Fig 4 Walkover'!J60) ->  | AX59: 57 | AY59: 0
A60: =IF(Draw!E60=0,"",Draw!E60) ->  | F60: =IF($A60="","",'Fig 1 Ballet Leg'!H61) ->  | G60: =IF($A60="","",'Fig 2 Barracuda'!H61) ->  | H60: =IF($A60="","",'Fig 3 Neptunus'!H61) ->  | I60: =IF($A60="","",'Fig 4 Walkover'!I61) ->  | J60: =IF($A60="","",'Fig 1 Ballet Leg'!I61+'Fig 2 Barracuda'!I61+'Fig 3 Neptunus'!I61+'Fig 4 Walkover'!J61) ->  | AX60: 58 | AY60: 0
A61: =IF(Draw!E61=0,"",Draw!E61) ->  | F61: =IF($A61="","",'Fig 1 Ballet Leg'!H62) ->  | G61: =IF($A61="","",'Fig 2 Barracuda'!H62) ->  | H61: =IF($A61="","",'Fig 3 Neptunus'!H62) ->  | I61: =IF($A61="","",'Fig 4 Walkover'!I62) ->  | J61: =IF($A61="","",'Fig 1 Ballet Leg'!I62+'Fig 2 Barracuda'!I62+'Fig 3 Neptunus'!I62+'Fig 4 Walkover'!J62) ->  | AX61: 59 | AY61: 0
A62: =IF(Draw!E62=0,"",Draw!E62) ->  | F62: =IF($A62="","",'Fig 1 Ballet Leg'!H63) ->  | G62: =IF($A62="","",'Fig 2 Barracuda'!H63) ->  | H62: =IF($A62="","",'Fig 3 Neptunus'!H63) ->  | I62: =IF($A62="","",'Fig 4 Walkover'!I63) ->  | J62: =IF($A62="","",'Fig 1 Ballet Leg'!I63+'Fig 2 Barracuda'!I63+'Fig 3 Neptunus'!I63+'Fig 4 Walkover'!J63) ->  | AX62: 60 | AY62: 0
A63: =IF(Draw!E63=0,"",Draw!E63) ->  | F63: =IF($A63="","",'Fig 1 Ballet Leg'!H64) ->  | G63: =IF($A63="","",'Fig 2 Barracuda'!H64) ->  | H63: =IF($A63="","",'Fig 3 Neptunus'!H64) ->  | I63: =IF($A63="","",'Fig 4 Walkover'!I64) ->  | J63: =IF($A63="","",'Fig 1 Ballet Leg'!I64+'Fig 2 Barracuda'!I64+'Fig 3 Neptunus'!I64+'Fig 4 Walkover'!J64) ->  | AX63: 61 | AY63: 0
A64: =IF(Draw!E64=0,"",Draw!E64) ->  | F64: =IF($A64="","",'Fig 1 Ballet Leg'!H65) ->  | G64: =IF($A64="","",'Fig 2 Barracuda'!H65) ->  | H64: =IF($A64="","",'Fig 3 Neptunus'!H65) ->  | I64: =IF($A64="","",'Fig 4 Walkover'!I65) ->  | J64: =IF($A64="","",'Fig 1 Ballet Leg'!I65+'Fig 2 Barracuda'!I65+'Fig 3 Neptunus'!I65+'Fig 4 Walkover'!J65) ->  | AX64: 62 | AY64: 0
A65: =IF(Draw!E65=0,"",Draw!E65) ->  | F65: =IF($A65="","",'Fig 1 Ballet Leg'!H66) ->  | G65: =IF($A65="","",'Fig 2 Barracuda'!H66) ->  | H65: =IF($A65="","",'Fig 3 Neptunus'!H66) ->  | I65: =IF($A65="","",'Fig 4 Walkover'!I66) ->  | J65: =IF($A65="","",'Fig 1 Ballet Leg'!I66+'Fig 2 Barracuda'!I66+'Fig 3 Neptunus'!I66+'Fig 4 Walkover'!J66) ->  | AX65: 63 | AY65: 0
A66: =IF(Draw!E66=0,"",Draw!E66) ->  | F66: =IF($A66="","",'Fig 1 Ballet Leg'!H67) ->  | G66: =IF($A66="","",'Fig 2 Barracuda'!H67) ->  | H66: =IF($A66="","",'Fig 3 Neptunus'!H67) ->  | I66: =IF($A66="","",'Fig 4 Walkover'!I67) ->  | J66: =IF($A66="","",'Fig 1 Ballet Leg'!I67+'Fig 2 Barracuda'!I67+'Fig 3 Neptunus'!I67+'Fig 4 Walkover'!J67) ->  | AX66: 64 | AY66: 0
A67: =IF(Draw!E67=0,"",Draw!E67) ->  | F67: =IF($A67="","",'Fig 1 Ballet Leg'!H68) ->  | G67: =IF($A67="","",'Fig 2 Barracuda'!H68) ->  | H67: =IF($A67="","",'Fig 3 Neptunus'!H68) ->  | I67: =IF($A67="","",'Fig 4 Walkover'!I68) ->  | J67: =IF($A67="","",'Fig 1 Ballet Leg'!I68+'Fig 2 Barracuda'!I68+'Fig 3 Neptunus'!I68+'Fig 4 Walkover'!J68) ->  | AX67: 65 | AY67: 0
A68: =IF(Draw!E68=0,"",Draw!E68) ->  | F68: =IF($A68="","",'Fig 1 Ballet Leg'!H69) ->  | G68: =IF($A68="","",'Fig 2 Barracuda'!H69) ->  | H68: =IF($A68="","",'Fig 3 Neptunus'!H69) ->  | I68: =IF($A68="","",'Fig 4 Walkover'!I69) ->  | J68: =IF($A68="","",'Fig 1 Ballet Leg'!I69+'Fig 2 Barracuda'!I69+'Fig 3 Neptunus'!I69+'Fig 4 Walkover'!J69) ->  | AX68: 66 | AY68: 0
A69: =IF(Draw!E69=0,"",Draw!E69) ->  | D69: =IF($A69="","",SUM(F69:I69)-J69) ->  | E69: =IF($A69="","",RANK(D69,D$2:D$150)) ->  | F69: =IF($A69="","",'Fig 1 Ballet Leg'!H70) ->  | G69: =IF($A69="","",'Fig 2 Barracuda'!H70) ->  | H69: =IF($A69="","",'Fig 3 Neptunus'!H70) ->  | I69: =IF($A69="","",'Fig 4 Walkover'!I70) ->  | J69: =IF($A69="","",'Fig 1 Ballet Leg'!I70+'Fig 2 Barracuda'!I70+'Fig 3 Neptunus'!I70+'Fig 4 Walkover'!J70) ->  | K69: =IF($A69="","",IF(A69="","",VLOOKUP(E69,AX$3:AY$102,2,FALSE))) ->  | AX69: 67 | AY69: 0
A70: =IF(Draw!E70=0,"",Draw!E70) ->  | F70: =IF($A70="","",'Fig 1 Ballet Leg'!H71) ->  | G70: =IF($A70="","",'Fig 2 Barracuda'!H71) ->  | H70: =IF($A70="","",'Fig 3 Neptunus'!H71) ->  | I70: =IF($A70="","",'Fig 4 Walkover'!I71) ->  | J70: =IF($A70="","",'Fig 1 Ballet Leg'!I71+'Fig 2 Barracuda'!I71+'Fig 3 Neptunus'!I71+'Fig 4 Walkover'!J71) ->  | AX70: 68 | AY70: 0
A71: =IF(Draw!E71=0,"",Draw!E71) ->  | F71: =IF($A71="","",'Fig 1 Ballet Leg'!H72) ->  | G71: =IF($A71="","",'Fig 2 Barracuda'!H72) ->  | H71: =IF($A71="","",'Fig 3 Neptunus'!H72) ->  | I71: =IF($A71="","",'Fig 4 Walkover'!I72) ->  | J71: =IF($A71="","",'Fig 1 Ballet Leg'!I72+'Fig 2 Barracuda'!I72+'Fig 3 Neptunus'!I72+'Fig 4 Walkover'!J72) ->  | AX71: 69 | AY71: 0
A72: =IF(Draw!E72=0,"",Draw!E72) ->  | F72: =IF($A72="","",'Fig 1 Ballet Leg'!H73) ->  | G72: =IF($A72="","",'Fig 2 Barracuda'!H73) ->  | H72: =IF($A72="","",'Fig 3 Neptunus'!H73) ->  | I72: =IF($A72="","",'Fig 4 Walkover'!I73) ->  | J72: =IF($A72="","",'Fig 1 Ballet Leg'!I73+'Fig 2 Barracuda'!I73+'Fig 3 Neptunus'!I73+'Fig 4 Walkover'!J73) ->  | AX72: 70 | AY72: 0
A73: =IF(Draw!E73=0,"",Draw!E73) ->  | F73: =IF($A73="","",'Fig 1 Ballet Leg'!H74) ->  | G73: =IF($A73="","",'Fig 2 Barracuda'!H74) ->  | H73: =IF($A73="","",'Fig 3 Neptunus'!H74) ->  | I73: =IF($A73="","",'Fig 4 Walkover'!I74) ->  | J73: =IF($A73="","",'Fig 1 Ballet Leg'!I74+'Fig 2 Barracuda'!I74+'Fig 3 Neptunus'!I74+'Fig 4 Walkover'!J74) ->  | AX73: 71 | AY73: 0
A74: =IF(Draw!E74=0,"",Draw!E74) ->  | F74: =IF($A74="","",'Fig 1 Ballet Leg'!H75) ->  | G74: =IF($A74="","",'Fig 2 Barracuda'!H75) ->  | H74: =IF($A74="","",'Fig 3 Neptunus'!H75) ->  | I74: =IF($A74="","",'Fig 4 Walkover'!I75) ->  | J74: =IF($A74="","",'Fig 1 Ballet Leg'!I75+'Fig 2 Barracuda'!I75+'Fig 3 Neptunus'!I75+'Fig 4 Walkover'!J75) ->  | AX74: 72 | AY74: 0
A75: =IF(Draw!E75=0,"",Draw!E75) ->  | F75: =IF($A75="","",'Fig 1 Ballet Leg'!H76) ->  | G75: =IF($A75="","",'Fig 2 Barracuda'!H76) ->  | H75: =IF($A75="","",'Fig 3 Neptunus'!H76) ->  | I75: =IF($A75="","",'Fig 4 Walkover'!I76) ->  | J75: =IF($A75="","",'Fig 1 Ballet Leg'!I76+'Fig 2 Barracuda'!I76+'Fig 3 Neptunus'!I76+'Fig 4 Walkover'!J76) ->  | AX75: 73 | AY75: 0
A76: =IF(Draw!E76=0,"",Draw!E76) ->  | F76: =IF($A76="","",'Fig 1 Ballet Leg'!H77) ->  | G76: =IF($A76="","",'Fig 2 Barracuda'!H77) ->  | H76: =IF($A76="","",'Fig 3 Neptunus'!H77) ->  | I76: =IF($A76="","",'Fig 4 Walkover'!I77) ->  | J76: =IF($A76="","",'Fig 1 Ballet Leg'!I77+'Fig 2 Barracuda'!I77+'Fig 3 Neptunus'!I77+'Fig 4 Walkover'!J77) ->  | AX76: 74 | AY76: 0
A77: =IF(Draw!E77=0,"",Draw!E77) ->  | F77: =IF($A77="","",'Fig 1 Ballet Leg'!H78) ->  | G77: =IF($A77="","",'Fig 2 Barracuda'!H78) ->  | H77: =IF($A77="","",'Fig 3 Neptunus'!H78) ->  | I77: =IF($A77="","",'Fig 4 Walkover'!I78) ->  | J77: =IF($A77="","",'Fig 1 Ballet Leg'!I78+'Fig 2 Barracuda'!I78+'Fig 3 Neptunus'!I78+'Fig 4 Walkover'!J78) ->  | AX77: 75 | AY77: 0
A78: =IF(Draw!E78=0,"",Draw!E78) ->  | F78: =IF($A78="","",'Fig 1 Ballet Leg'!H79) ->  | G78: =IF($A78="","",'Fig 2 Barracuda'!H79) ->  | H78: =IF($A78="","",'Fig 3 Neptunus'!H79) ->  | I78: =IF($A78="","",'Fig 4 Walkover'!I79) ->  | J78: =IF($A78="","",'Fig 1 Ballet Leg'!I79+'Fig 2 Barracuda'!I79+'Fig 3 Neptunus'!I79+'Fig 4 Walkover'!J79) ->  | AX78: 76 | AY78: 0
A79: =IF(Draw!E79=0,"",Draw!E79) ->  | F79: =IF($A79="","",'Fig 1 Ballet Leg'!H80) ->  | G79: =IF($A79="","",'Fig 2 Barracuda'!H80) ->  | H79: =IF($A79="","",'Fig 3 Neptunus'!H80) ->  | I79: =IF($A79="","",'Fig 4 Walkover'!I80) ->  | J79: =IF($A79="","",'Fig 1 Ballet Leg'!I80+'Fig 2 Barracuda'!I80+'Fig 3 Neptunus'!I80+'Fig 4 Walkover'!J80) ->  | AX79: 77 | AY79: 0
A80: =IF(Draw!E80=0,"",Draw!E80) ->  | F80: =IF($A80="","",'Fig 1 Ballet Leg'!H81) ->  | G80: =IF($A80="","",'Fig 2 Barracuda'!H81) ->  | H80: =IF($A80="","",'Fig 3 Neptunus'!H81) ->  | I80: =IF($A80="","",'Fig 4 Walkover'!I81) ->  | J80: =IF($A80="","",'Fig 1 Ballet Leg'!I81+'Fig 2 Barracuda'!I81+'Fig 3 Neptunus'!I81+'Fig 4 Walkover'!J81) ->  | AX80: 78 | AY80: 0
A81: =IF(Draw!E81=0,"",Draw!E81) ->  | F81: =IF($A81="","",'Fig 1 Ballet Leg'!H82) ->  | G81: =IF($A81="","",'Fig 2 Barracuda'!H82) ->  | H81: =IF($A81="","",'Fig 3 Neptunus'!H82) ->  | I81: =IF($A81="","",'Fig 4 Walkover'!I82) ->  | J81: =IF($A81="","",'Fig 1 Ballet Leg'!I82+'Fig 2 Barracuda'!I82+'Fig 3 Neptunus'!I82+'Fig 4 Walkover'!J82) ->  | AX81: 79 | AY81: 0
A82: =IF(Draw!E82=0,"",Draw!E82) ->  | F82: =IF($A82="","",'Fig 1 Ballet Leg'!H83) ->  | G82: =IF($A82="","",'Fig 2 Barracuda'!H83) ->  | H82: =IF($A82="","",'Fig 3 Neptunus'!H83) ->  | I82: =IF($A82="","",'Fig 4 Walkover'!I83) ->  | J82: =IF($A82="","",'Fig 1 Ballet Leg'!I83+'Fig 2 Barracuda'!I83+'Fig 3 Neptunus'!I83+'Fig 4 Walkover'!J83) ->  | AX82: 80 | AY82: 0
A83: =IF(Draw!E83=0,"",Draw!E83) ->  | F83: =IF($A83="","",'Fig 1 Ballet Leg'!H84) ->  | G83: =IF($A83="","",'Fig 2 Barracuda'!H84) ->  | H83: =IF($A83="","",'Fig 3 Neptunus'!H84) ->  | I83: =IF($A83="","",'Fig 4 Walkover'!I84) ->  | J83: =IF($A83="","",'Fig 1 Ballet Leg'!I84+'Fig 2 Barracuda'!I84+'Fig 3 Neptunus'!I84+'Fig 4 Walkover'!J84) ->  | AX83: 81 | AY83: 0
A84: =IF(Draw!E84=0,"",Draw!E84) ->  | F84: =IF($A84="","",'Fig 1 Ballet Leg'!H85) ->  | G84: =IF($A84="","",'Fig 2 Barracuda'!H85) ->  | H84: =IF($A84="","",'Fig 3 Neptunus'!H85) ->  | I84: =IF($A84="","",'Fig 4 Walkover'!I85) ->  | J84: =IF($A84="","",'Fig 1 Ballet Leg'!I85+'Fig 2 Barracuda'!I85+'Fig 3 Neptunus'!I85+'Fig 4 Walkover'!J85) ->  | AX84: 82 | AY84: 0
A85: =IF(Draw!E85=0,"",Draw!E85) ->  | F85: =IF($A85="","",'Fig 1 Ballet Leg'!H86) ->  | G85: =IF($A85="","",'Fig 2 Barracuda'!H86) ->  | H85: =IF($A85="","",'Fig 3 Neptunus'!H86) ->  | I85: =IF($A85="","",'Fig 4 Walkover'!I86) ->  | J85: =IF($A85="","",'Fig 1 Ballet Leg'!I86+'Fig 2 Barracuda'!I86+'Fig 3 Neptunus'!I86+'Fig 4 Walkover'!J86) ->  | AX85: 83 | AY85: 0
A86: =IF(Draw!E86=0,"",Draw!E86) ->  | F86: =IF($A86="","",'Fig 1 Ballet Leg'!H87) ->  | G86: =IF($A86="","",'Fig 2 Barracuda'!H87) ->  | H86: =IF($A86="","",'Fig 3 Neptunus'!H87) ->  | I86: =IF($A86="","",'Fig 4 Walkover'!I87) ->  | J86: =IF($A86="","",'Fig 1 Ballet Leg'!I87+'Fig 2 Barracuda'!I87+'Fig 3 Neptunus'!I87+'Fig 4 Walkover'!J87) ->  | AX86: 84 | AY86: 0
A87: =IF(Draw!E87=0,"",Draw!E87) ->  | F87: =IF($A87="","",'Fig 1 Ballet Leg'!H88) ->  | G87: =IF($A87="","",'Fig 2 Barracuda'!H88) ->  | H87: =IF($A87="","",'Fig 3 Neptunus'!H88) ->  | I87: =IF($A87="","",'Fig 4 Walkover'!I88) ->  | J87: =IF($A87="","",'Fig 1 Ballet Leg'!I88+'Fig 2 Barracuda'!I88+'Fig 3 Neptunus'!I88+'Fig 4 Walkover'!J88) ->  | AX87: 85 | AY87: 0
A88: =IF(Draw!E88=0,"",Draw!E88) ->  | F88: =IF($A88="","",'Fig 1 Ballet Leg'!H89) ->  | G88: =IF($A88="","",'Fig 2 Barracuda'!H89) ->  | H88: =IF($A88="","",'Fig 3 Neptunus'!H89) ->  | I88: =IF($A88="","",'Fig 4 Walkover'!I89) ->  | J88: =IF($A88="","",'Fig 1 Ballet Leg'!I89+'Fig 2 Barracuda'!I89+'Fig 3 Neptunus'!I89+'Fig 4 Walkover'!J89) ->  | AX88: 86 | AY88: 0
A89: =IF(Draw!E89=0,"",Draw!E89) ->  | F89: =IF($A89="","",'Fig 1 Ballet Leg'!H90) ->  | G89: =IF($A89="","",'Fig 2 Barracuda'!H90) ->  | H89: =IF($A89="","",'Fig 3 Neptunus'!H90) ->  | I89: =IF($A89="","",'Fig 4 Walkover'!I90) ->  | J89: =IF($A89="","",'Fig 1 Ballet Leg'!I90+'Fig 2 Barracuda'!I90+'Fig 3 Neptunus'!I90+'Fig 4 Walkover'!J90) ->  | AX89: 87 | AY89: 0
A90: =IF(Draw!E90=0,"",Draw!E90) ->  | F90: =IF($A90="","",'Fig 1 Ballet Leg'!H91) ->  | G90: =IF($A90="","",'Fig 2 Barracuda'!H91) ->  | H90: =IF($A90="","",'Fig 3 Neptunus'!H91) ->  | I90: =IF($A90="","",'Fig 4 Walkover'!I91) ->  | J90: =IF($A90="","",'Fig 1 Ballet Leg'!I91+'Fig 2 Barracuda'!I91+'Fig 3 Neptunus'!I91+'Fig 4 Walkover'!J91) ->  | AX90: 88 | AY90: 0
A91: =IF(Draw!E91=0,"",Draw!E91) ->  | F91: =IF($A91="","",'Fig 1 Ballet Leg'!H92) ->  | G91: =IF($A91="","",'Fig 2 Barracuda'!H92) ->  | H91: =IF($A91="","",'Fig 3 Neptunus'!H92) ->  | I91: =IF($A91="","",'Fig 4 Walkover'!I92) ->  | J91: =IF($A91="","",'Fig 1 Ballet Leg'!I92+'Fig 2 Barracuda'!I92+'Fig 3 Neptunus'!I92+'Fig 4 Walkover'!J92) ->  | AX91: 89 | AY91: 0
A92: =IF(Draw!E92=0,"",Draw!E92) ->  | F92: =IF($A92="","",'Fig 1 Ballet Leg'!H93) ->  | G92: =IF($A92="","",'Fig 2 Barracuda'!H93) ->  | H92: =IF($A92="","",'Fig 3 Neptunus'!H93) ->  | I92: =IF($A92="","",'Fig 4 Walkover'!I93) ->  | J92: =IF($A92="","",'Fig 1 Ballet Leg'!I93+'Fig 2 Barracuda'!I93+'Fig 3 Neptunus'!I93+'Fig 4 Walkover'!J93) ->  | AX92: 90 | AY92: 0
A93: =IF(Draw!E93=0,"",Draw!E93) ->  | F93: =IF($A93="","",'Fig 1 Ballet Leg'!H94) ->  | G93: =IF($A93="","",'Fig 2 Barracuda'!H94) ->  | H93: =IF($A93="","",'Fig 3 Neptunus'!H94) ->  | I93: =IF($A93="","",'Fig 4 Walkover'!I94) ->  | J93: =IF($A93="","",'Fig 1 Ballet Leg'!I94+'Fig 2 Barracuda'!I94+'Fig 3 Neptunus'!I94+'Fig 4 Walkover'!J94) ->  | AX93: 91 | AY93: 0
A94: =IF(Draw!E94=0,"",Draw!E94) ->  | F94: =IF($A94="","",'Fig 1 Ballet Leg'!H95) ->  | G94: =IF($A94="","",'Fig 2 Barracuda'!H95) ->  | H94: =IF($A94="","",'Fig 3 Neptunus'!H95) ->  | I94: =IF($A94="","",'Fig 4 Walkover'!I95) ->  | J94: =IF($A94="","",'Fig 1 Ballet Leg'!I95+'Fig 2 Barracuda'!I95+'Fig 3 Neptunus'!I95+'Fig 4 Walkover'!J95) ->  | AX94: 92 | AY94: 0
A95: =IF(Draw!E95=0,"",Draw!E95) ->  | F95: =IF($A95="","",'Fig 1 Ballet Leg'!H96) ->  | G95: =IF($A95="","",'Fig 2 Barracuda'!H96) ->  | H95: =IF($A95="","",'Fig 3 Neptunus'!H96) ->  | I95: =IF($A95="","",'Fig 4 Walkover'!I96) ->  | J95: =IF($A95="","",'Fig 1 Ballet Leg'!I96+'Fig 2 Barracuda'!I96+'Fig 3 Neptunus'!I96+'Fig 4 Walkover'!J96) ->  | AX95: 93 | AY95: 0
A96: =IF(Draw!E96=0,"",Draw!E96) ->  | F96: =IF($A96="","",'Fig 1 Ballet Leg'!H97) ->  | G96: =IF($A96="","",'Fig 2 Barracuda'!H97) ->  | H96: =IF($A96="","",'Fig 3 Neptunus'!H97) ->  | I96: =IF($A96="","",'Fig 4 Walkover'!I97) ->  | J96: =IF($A96="","",'Fig 1 Ballet Leg'!I97+'Fig 2 Barracuda'!I97+'Fig 3 Neptunus'!I97+'Fig 4 Walkover'!J97) ->  | AX96: 94 | AY96: 0
A97: =IF(Draw!E97=0,"",Draw!E97) ->  | F97: =IF($A97="","",'Fig 1 Ballet Leg'!H98) ->  | G97: =IF($A97="","",'Fig 2 Barracuda'!H98) ->  | H97: =IF($A97="","",'Fig 3 Neptunus'!H98) ->  | I97: =IF($A97="","",'Fig 4 Walkover'!I98) ->  | J97: =IF($A97="","",'Fig 1 Ballet Leg'!I98+'Fig 2 Barracuda'!I98+'Fig 3 Neptunus'!I98+'Fig 4 Walkover'!J98) ->  | AX97: 95 | AY97: 0
A98: =IF(Draw!E98=0,"",Draw!E98) ->  | F98: =IF($A98="","",'Fig 1 Ballet Leg'!H99) ->  | G98: =IF($A98="","",'Fig 2 Barracuda'!H99) ->  | H98: =IF($A98="","",'Fig 3 Neptunus'!H99) ->  | I98: =IF($A98="","",'Fig 4 Walkover'!I99) ->  | J98: =IF($A98="","",'Fig 1 Ballet Leg'!I99+'Fig 2 Barracuda'!I99+'Fig 3 Neptunus'!I99+'Fig 4 Walkover'!J99) ->  | AX98: 96 | AY98: 0
A99: =IF(Draw!E99=0,"",Draw!E99) ->  | F99: =IF($A99="","",'Fig 1 Ballet Leg'!H100) ->  | G99: =IF($A99="","",'Fig 2 Barracuda'!H100) ->  | H99: =IF($A99="","",'Fig 3 Neptunus'!H100) ->  | I99: =IF($A99="","",'Fig 4 Walkover'!I100) ->  | J99: =IF($A99="","",'Fig 1 Ballet Leg'!I100+'Fig 2 Barracuda'!I100+'Fig 3 Neptunus'!I100+'Fig 4 Walkover'!J100) ->  | AX99: 97 | AY99: 0
A100: =IF(Draw!E100=0,"",Draw!E100) ->  | F100: =IF($A100="","",'Fig 1 Ballet Leg'!H101) ->  | G100: =IF($A100="","",'Fig 2 Barracuda'!H101) ->  | H100: =IF($A100="","",'Fig 3 Neptunus'!H101) ->  | I100: =IF($A100="","",'Fig 4 Walkover'!I101) ->  | J100: =IF($A100="","",'Fig 1 Ballet Leg'!I101+'Fig 2 Barracuda'!I101+'Fig 3 Neptunus'!I101+'Fig 4 Walkover'!J101) ->  | AX100: 98 | AY100: 0
A101: =IF(Draw!E101=0,"",Draw!E101) ->  | F101: =IF($A101="","",'Fig 1 Ballet Leg'!H102) ->  | G101: =IF($A101="","",'Fig 2 Barracuda'!H102) ->  | H101: =IF($A101="","",'Fig 3 Neptunus'!H102) ->  | I101: =IF($A101="","",'Fig 4 Walkover'!I102) ->  | J101: =IF($A101="","",'Fig 1 Ballet Leg'!I102+'Fig 2 Barracuda'!I102+'Fig 3 Neptunus'!I102+'Fig 4 Walkover'!J102) ->  | AX101: 99 | AY101: 0
A102: =IF(Draw!E102=0,"",Draw!E102) ->  | F102: =IF($A102="","",'Fig 1 Ballet Leg'!H103) ->  | G102: =IF($A102="","",'Fig 2 Barracuda'!H103) ->  | H102: =IF($A102="","",'Fig 3 Neptunus'!H103) ->  | I102: =IF($A102="","",'Fig 4 Walkover'!I103) ->  | J102: =IF($A102="","",'Fig 1 Ballet Leg'!I103+'Fig 2 Barracuda'!I103+'Fig 3 Neptunus'!I103+'Fig 4 Walkover'!J103) ->  | AX102: 100 | AY102: 0
A103: =IF(Draw!E103=0,"",Draw!E103) ->  | F103: =IF($A103="","",'Fig 1 Ballet Leg'!H104) ->  | G103: =IF($A103="","",'Fig 2 Barracuda'!H104) ->  | H103: =IF($A103="","",'Fig 3 Neptunus'!H104) ->  | I103: =IF($A103="","",'Fig 4 Walkover'!I104) ->  | J103: =IF($A103="","",'Fig 1 Ballet Leg'!I104+'Fig 2 Barracuda'!I104+'Fig 3 Neptunus'!I104+'Fig 4 Walkover'!J104) -> 
A104: =IF(Draw!E104=0,"",Draw!E104) ->  | F104: =IF($A104="","",'Fig 1 Ballet Leg'!H105) ->  | G104: =IF($A104="","",'Fig 2 Barracuda'!H105) ->  | H104: =IF($A104="","",'Fig 3 Neptunus'!H105) ->  | I104: =IF($A104="","",'Fig 4 Walkover'!I105) ->  | J104: =IF($A104="","",'Fig 1 Ballet Leg'!I105+'Fig 2 Barracuda'!I105+'Fig 3 Neptunus'!I105+'Fig 4 Walkover'!J105) -> 
A105: =IF(Draw!E105=0,"",Draw!E105) ->  | F105: =IF($A105="","",'Fig 1 Ballet Leg'!H106) ->  | G105: =IF($A105="","",'Fig 2 Barracuda'!H106) ->  | H105: =IF($A105="","",'Fig 3 Neptunus'!H106) ->  | I105: =IF($A105="","",'Fig 4 Walkover'!I106) ->  | J105: =IF($A105="","",'Fig 1 Ballet Leg'!I106+'Fig 2 Barracuda'!I106+'Fig 3 Neptunus'!I106+'Fig 4 Walkover'!J106) -> 
A106: =IF(Draw!E106=0,"",Draw!E106) ->  | F106: =IF($A106="","",'Fig 1 Ballet Leg'!H107) ->  | G106: =IF($A106="","",'Fig 2 Barracuda'!H107) ->  | H106: =IF($A106="","",'Fig 3 Neptunus'!H107) ->  | I106: =IF($A106="","",'Fig 4 Walkover'!I107) ->  | J106: =IF($A106="","",'Fig 1 Ballet Leg'!I107+'Fig 2 Barracuda'!I107+'Fig 3 Neptunus'!I107+'Fig 4 Walkover'!J107) -> 
A107: =IF(Draw!E107=0,"",Draw!E107) ->  | F107: =IF($A107="","",'Fig 1 Ballet Leg'!H108) ->  | G107: =IF($A107="","",'Fig 2 Barracuda'!H108) ->  | H107: =IF($A107="","",'Fig 3 Neptunus'!H108) ->  | I107: =IF($A107="","",'Fig 4 Walkover'!I108) ->  | J107: =IF($A107="","",'Fig 1 Ballet Leg'!I108+'Fig 2 Barracuda'!I108+'Fig 3 Neptunus'!I108+'Fig 4 Walkover'!J108) -> 
A108: =IF(Draw!E108=0,"",Draw!E108) ->  | F108: =IF($A108="","",'Fig 1 Ballet Leg'!H109) ->  | G108: =IF($A108="","",'Fig 2 Barracuda'!H109) ->  | H108: =IF($A108="","",'Fig 3 Neptunus'!H109) ->  | I108: =IF($A108="","",'Fig 4 Walkover'!I109) ->  | J108: =IF($A108="","",'Fig 1 Ballet Leg'!I109+'Fig 2 Barracuda'!I109+'Fig 3 Neptunus'!I109+'Fig 4 Walkover'!J109) -> 
A109: =IF(Draw!E109=0,"",Draw!E109) ->  | F109: =IF($A109="","",'Fig 1 Ballet Leg'!H110) ->  | G109: =IF($A109="","",'Fig 2 Barracuda'!H110) ->  | H109: =IF($A109="","",'Fig 3 Neptunus'!H110) ->  | I109: =IF($A109="","",'Fig 4 Walkover'!I110) ->  | J109: =IF($A109="","",'Fig 1 Ballet Leg'!I110+'Fig 2 Barracuda'!I110+'Fig 3 Neptunus'!I110+'Fig 4 Walkover'!J110) -> 
A110: =IF(Draw!E110=0,"",Draw!E110) ->  | F110: =IF($A110="","",'Fig 1 Ballet Leg'!H111) ->  | G110: =IF($A110="","",'Fig 2 Barracuda'!H111) ->  | H110: =IF($A110="","",'Fig 3 Neptunus'!H111) ->  | I110: =IF($A110="","",'Fig 4 Walkover'!I111) ->  | J110: =IF($A110="","",'Fig 1 Ballet Leg'!I111+'Fig 2 Barracuda'!I111+'Fig 3 Neptunus'!I111+'Fig 4 Walkover'!J111) -> 
A111: =IF(Draw!E111=0,"",Draw!E111) ->  | F111: =IF($A111="","",'Fig 1 Ballet Leg'!H112) ->  | G111: =IF($A111="","",'Fig 2 Barracuda'!H112) ->  | H111: =IF($A111="","",'Fig 3 Neptunus'!H112) ->  | I111: =IF($A111="","",'Fig 4 Walkover'!I112) ->  | J111: =IF($A111="","",'Fig 1 Ballet Leg'!I112+'Fig 2 Barracuda'!I112+'Fig 3 Neptunus'!I112+'Fig 4 Walkover'!J112) -> 
A112: =IF(Draw!E112=0,"",Draw!E112) ->  | F112: =IF($A112="","",'Fig 1 Ballet Leg'!H113) ->  | G112: =IF($A112="","",'Fig 2 Barracuda'!H113) ->  | H112: =IF($A112="","",'Fig 3 Neptunus'!H113) ->  | I112: =IF($A112="","",'Fig 4 Walkover'!I113) ->  | J112: =IF($A112="","",'Fig 1 Ballet Leg'!I113+'Fig 2 Barracuda'!I113+'Fig 3 Neptunus'!I113+'Fig 4 Walkover'!J113) -> 
A113: =IF(Draw!E113=0,"",Draw!E113) ->  | F113: =IF($A113="","",'Fig 1 Ballet Leg'!H114) ->  | G113: =IF($A113="","",'Fig 2 Barracuda'!H114) ->  | H113: =IF($A113="","",'Fig 3 Neptunus'!H114) ->  | I113: =IF($A113="","",'Fig 4 Walkover'!I114) ->  | J113: =IF($A113="","",'Fig 1 Ballet Leg'!I114+'Fig 2 Barracuda'!I114+'Fig 3 Neptunus'!I114+'Fig 4 Walkover'!J114) -> 
A114: =IF(Draw!E114=0,"",Draw!E114) ->  | F114: =IF($A114="","",'Fig 1 Ballet Leg'!H115) ->  | G114: =IF($A114="","",'Fig 2 Barracuda'!H115) ->  | H114: =IF($A114="","",'Fig 3 Neptunus'!H115) ->  | I114: =IF($A114="","",'Fig 4 Walkover'!I115) ->  | J114: =IF($A114="","",'Fig 1 Ballet Leg'!I115+'Fig 2 Barracuda'!I115+'Fig 3 Neptunus'!I115+'Fig 4 Walkover'!J115) -> 
A115: =IF(Draw!E115=0,"",Draw!E115) ->  | F115: =IF($A115="","",'Fig 1 Ballet Leg'!H116) ->  | G115: =IF($A115="","",'Fig 2 Barracuda'!H116) ->  | H115: =IF($A115="","",'Fig 3 Neptunus'!H116) ->  | I115: =IF($A115="","",'Fig 4 Walkover'!I116) ->  | J115: =IF($A115="","",'Fig 1 Ballet Leg'!I116+'Fig 2 Barracuda'!I116+'Fig 3 Neptunus'!I116+'Fig 4 Walkover'!J116) -> 
A116: =IF(Draw!E116=0,"",Draw!E116) ->  | F116: =IF($A116="","",'Fig 1 Ballet Leg'!H117) ->  | G116: =IF($A116="","",'Fig 2 Barracuda'!H117) ->  | H116: =IF($A116="","",'Fig 3 Neptunus'!H117) ->  | I116: =IF($A116="","",'Fig 4 Walkover'!I117) ->  | J116: =IF($A116="","",'Fig 1 Ballet Leg'!I117+'Fig 2 Barracuda'!I117+'Fig 3 Neptunus'!I117+'Fig 4 Walkover'!J117) -> 
A117: =IF(Draw!E117=0,"",Draw!E117) ->  | F117: =IF($A117="","",'Fig 1 Ballet Leg'!H118) ->  | G117: =IF($A117="","",'Fig 2 Barracuda'!H118) ->  | H117: =IF($A117="","",'Fig 3 Neptunus'!H118) ->  | I117: =IF($A117="","",'Fig 4 Walkover'!I118) ->  | J117: =IF($A117="","",'Fig 1 Ballet Leg'!I118+'Fig 2 Barracuda'!I118+'Fig 3 Neptunus'!I118+'Fig 4 Walkover'!J118) -> 
A118: =IF(Draw!E118=0,"",Draw!E118) ->  | F118: =IF($A118="","",'Fig 1 Ballet Leg'!H119) ->  | G118: =IF($A118="","",'Fig 2 Barracuda'!H119) ->  | H118: =IF($A118="","",'Fig 3 Neptunus'!H119) ->  | I118: =IF($A118="","",'Fig 4 Walkover'!I119) ->  | J118: =IF($A118="","",'Fig 1 Ballet Leg'!I119+'Fig 2 Barracuda'!I119+'Fig 3 Neptunus'!I119+'Fig 4 Walkover'!J119) -> 
A119: =IF(Draw!E119=0,"",Draw!E119) ->  | F119: =IF($A119="","",'Fig 1 Ballet Leg'!H120) ->  | G119: =IF($A119="","",'Fig 2 Barracuda'!H120) ->  | H119: =IF($A119="","",'Fig 3 Neptunus'!H120) ->  | I119: =IF($A119="","",'Fig 4 Walkover'!I120) ->  | J119: =IF($A119="","",'Fig 1 Ballet Leg'!I120+'Fig 2 Barracuda'!I120+'Fig 3 Neptunus'!I120+'Fig 4 Walkover'!J120) -> 
A120: =IF(Draw!E120=0,"",Draw!E120) ->  | F120: =IF($A120="","",'Fig 1 Ballet Leg'!H121) ->  | G120: =IF($A120="","",'Fig 2 Barracuda'!H121) ->  | H120: =IF($A120="","",'Fig 3 Neptunus'!H121) ->  | I120: =IF($A120="","",'Fig 4 Walkover'!I121) ->  | J120: =IF($A120="","",'Fig 1 Ballet Leg'!I121+'Fig 2 Barracuda'!I121+'Fig 3 Neptunus'!I121+'Fig 4 Walkover'!J121) -> 
A121: =IF(Draw!E121=0,"",Draw!E121) ->  | F121: =IF($A121="","",'Fig 1 Ballet Leg'!H122) ->  | G121: =IF($A121="","",'Fig 2 Barracuda'!H122) ->  | H121: =IF($A121="","",'Fig 3 Neptunus'!H122) ->  | I121: =IF($A121="","",'Fig 4 Walkover'!I122) ->  | J121: =IF($A121="","",'Fig 1 Ballet Leg'!I122+'Fig 2 Barracuda'!I122+'Fig 3 Neptunus'!I122+'Fig 4 Walkover'!J122) -> 
A122: =IF(Draw!E122=0,"",Draw!E122) ->  | F122: =IF($A122="","",'Fig 1 Ballet Leg'!H123) ->  | G122: =IF($A122="","",'Fig 2 Barracuda'!H123) ->  | H122: =IF($A122="","",'Fig 3 Neptunus'!H123) ->  | I122: =IF($A122="","",'Fig 4 Walkover'!I123) ->  | J122: =IF($A122="","",'Fig 1 Ballet Leg'!I123+'Fig 2 Barracuda'!I123+'Fig 3 Neptunus'!I123+'Fig 4 Walkover'!J123) -> 
A123: =IF(Draw!E123=0,"",Draw!E123) ->  | F123: =IF($A123="","",'Fig 1 Ballet Leg'!H124) ->  | G123: =IF($A123="","",'Fig 2 Barracuda'!H124) ->  | H123: =IF($A123="","",'Fig 3 Neptunus'!H124) ->  | I123: =IF($A123="","",'Fig 4 Walkover'!I124) ->  | J123: =IF($A123="","",'Fig 1 Ballet Leg'!I124+'Fig 2 Barracuda'!I124+'Fig 3 Neptunus'!I124+'Fig 4 Walkover'!J124) -> 
A124: =IF(Draw!E124=0,"",Draw!E124) ->  | F124: =IF($A124="","",'Fig 1 Ballet Leg'!H125) ->  | G124: =IF($A124="","",'Fig 2 Barracuda'!H125) ->  | H124: =IF($A124="","",'Fig 3 Neptunus'!H125) ->  | I124: =IF($A124="","",'Fig 4 Walkover'!I125) ->  | J124: =IF($A124="","",'Fig 1 Ballet Leg'!I125+'Fig 2 Barracuda'!I125+'Fig 3 Neptunus'!I125+'Fig 4 Walkover'!J125) -> 
A125: =IF(Draw!E125=0,"",Draw!E125) ->  | F125: =IF($A125="","",'Fig 1 Ballet Leg'!H126) ->  | G125: =IF($A125="","",'Fig 2 Barracuda'!H126) ->  | H125: =IF($A125="","",'Fig 3 Neptunus'!H126) ->  | I125: =IF($A125="","",'Fig 4 Walkover'!I126) ->  | J125: =IF($A125="","",'Fig 1 Ballet Leg'!I126+'Fig 2 Barracuda'!I126+'Fig 3 Neptunus'!I126+'Fig 4 Walkover'!J126) -> 
A126: =IF(Draw!E126=0,"",Draw!E126) ->  | F126: =IF($A126="","",'Fig 1 Ballet Leg'!H127) ->  | G126: =IF($A126="","",'Fig 2 Barracuda'!H127) ->  | H126: =IF($A126="","",'Fig 3 Neptunus'!H127) ->  | I126: =IF($A126="","",'Fig 4 Walkover'!I127) ->  | J126: =IF($A126="","",'Fig 1 Ballet Leg'!I127+'Fig 2 Barracuda'!I127+'Fig 3 Neptunus'!I127+'Fig 4 Walkover'!J127) -> 
A127: =IF(Draw!E127=0,"",Draw!E127) ->  | F127: =IF($A127="","",'Fig 1 Ballet Leg'!H128) ->  | G127: =IF($A127="","",'Fig 2 Barracuda'!H128) ->  | H127: =IF($A127="","",'Fig 3 Neptunus'!H128) ->  | I127: =IF($A127="","",'Fig 4 Walkover'!I128) ->  | J127: =IF($A127="","",'Fig 1 Ballet Leg'!I128+'Fig 2 Barracuda'!I128+'Fig 3 Neptunus'!I128+'Fig 4 Walkover'!J128) -> 
A128: =IF(Draw!E128=0,"",Draw!E128) ->  | F128: =IF($A128="","",'Fig 1 Ballet Leg'!H129) ->  | G128: =IF($A128="","",'Fig 2 Barracuda'!H129) ->  | H128: =IF($A128="","",'Fig 3 Neptunus'!H129) ->  | I128: =IF($A128="","",'Fig 4 Walkover'!I129) ->  | J128: =IF($A128="","",'Fig 1 Ballet Leg'!I129+'Fig 2 Barracuda'!I129+'Fig 3 Neptunus'!I129+'Fig 4 Walkover'!J129) -> 
A129: =IF(Draw!E129=0,"",Draw!E129) ->  | F129: =IF($A129="","",'Fig 1 Ballet Leg'!H130) ->  | G129: =IF($A129="","",'Fig 2 Barracuda'!H130) ->  | H129: =IF($A129="","",'Fig 3 Neptunus'!H130) ->  | I129: =IF($A129="","",'Fig 4 Walkover'!I130) ->  | J129: =IF($A129="","",'Fig 1 Ballet Leg'!I130+'Fig 2 Barracuda'!I130+'Fig 3 Neptunus'!I130+'Fig 4 Walkover'!J130) -> 
A130: =IF(Draw!E130=0,"",Draw!E130) ->  | F130: =IF($A130="","",'Fig 1 Ballet Leg'!H131) ->  | G130: =IF($A130="","",'Fig 2 Barracuda'!H131) ->  | H130: =IF($A130="","",'Fig 3 Neptunus'!H131) ->  | I130: =IF($A130="","",'Fig 4 Walkover'!I131) ->  | J130: =IF($A130="","",'Fig 1 Ballet Leg'!I131+'Fig 2 Barracuda'!I131+'Fig 3 Neptunus'!I131+'Fig 4 Walkover'!J131) -> 
A131: =IF(Draw!E131=0,"",Draw!E131) ->  | F131: =IF($A131="","",'Fig 1 Ballet Leg'!H132) ->  | G131: =IF($A131="","",'Fig 2 Barracuda'!H132) ->  | H131: =IF($A131="","",'Fig 3 Neptunus'!H132) ->  | I131: =IF($A131="","",'Fig 4 Walkover'!I132) ->  | J131: =IF($A131="","",'Fig 1 Ballet Leg'!I132+'Fig 2 Barracuda'!I132+'Fig 3 Neptunus'!I132+'Fig 4 Walkover'!J132) -> 
A132: =IF(Draw!E132=0,"",Draw!E132) ->  | F132: =IF($A132="","",'Fig 1 Ballet Leg'!H133) ->  | G132: =IF($A132="","",'Fig 2 Barracuda'!H133) ->  | H132: =IF($A132="","",'Fig 3 Neptunus'!H133) ->  | I132: =IF($A132="","",'Fig 4 Walkover'!I133) ->  | J132: =IF($A132="","",'Fig 1 Ballet Leg'!I133+'Fig 2 Barracuda'!I133+'Fig 3 Neptunus'!I133+'Fig 4 Walkover'!J133) -> 
A133: =IF(Draw!E133=0,"",Draw!E133) ->  | D133: =IF($A133="","",SUM(F133:I133)-J133) ->  | E133: =IF($A133="","",RANK(D133,D$2:D$150)) ->  | F133: =IF($A133="","",'Fig 1 Ballet Leg'!H134) ->  | G133: =IF($A133="","",'Fig 2 Barracuda'!H134) ->  | H133: =IF($A133="","",'Fig 3 Neptunus'!H134) ->  | I133: =IF($A133="","",'Fig 4 Walkover'!I134) ->  | J133: =IF($A133="","",'Fig 1 Ballet Leg'!I134+'Fig 2 Barracuda'!I134+'Fig 3 Neptunus'!I134+'Fig 4 Walkover'!J134) ->  | K133: =IF($A133="","",IF(A133="","",VLOOKUP(E133,AX$3:AY$102,2,FALSE))) -> 
A134: =IF(Draw!E134=0,"",Draw!E134) ->  | F134: =IF($A134="","",'Fig 1 Ballet Leg'!H135) ->  | G134: =IF($A134="","",'Fig 2 Barracuda'!H135) ->  | H134: =IF($A134="","",'Fig 3 Neptunus'!H135) ->  | I134: =IF($A134="","",'Fig 4 Walkover'!I135) ->  | J134: =IF($A134="","",'Fig 1 Ballet Leg'!I135+'Fig 2 Barracuda'!I135+'Fig 3 Neptunus'!I135+'Fig 4 Walkover'!J135) -> 
A135: =IF(Draw!E135=0,"",Draw!E135) ->  | F135: =IF($A135="","",'Fig 1 Ballet Leg'!H136) ->  | G135: =IF($A135="","",'Fig 2 Barracuda'!H136) ->  | H135: =IF($A135="","",'Fig 3 Neptunus'!H136) ->  | I135: =IF($A135="","",'Fig 4 Walkover'!I136) ->  | J135: =IF($A135="","",'Fig 1 Ballet Leg'!I136+'Fig 2 Barracuda'!I136+'Fig 3 Neptunus'!I136+'Fig 4 Walkover'!J136) -> 
A136: =IF(Draw!E136=0,"",Draw!E136) ->  | F136: =IF($A136="","",'Fig 1 Ballet Leg'!H137) ->  | G136: =IF($A136="","",'Fig 2 Barracuda'!H137) ->  | H136: =IF($A136="","",'Fig 3 Neptunus'!H137) ->  | I136: =IF($A136="","",'Fig 4 Walkover'!I137) ->  | J136: =IF($A136="","",'Fig 1 Ballet Leg'!I137+'Fig 2 Barracuda'!I137+'Fig 3 Neptunus'!I137+'Fig 4 Walkover'!J137) -> 
A137: =IF(Draw!E137=0,"",Draw!E137) ->  | F137: =IF($A137="","",'Fig 1 Ballet Leg'!H138) ->  | G137: =IF($A137="","",'Fig 2 Barracuda'!H138) ->  | H137: =IF($A137="","",'Fig 3 Neptunus'!H138) ->  | I137: =IF($A137="","",'Fig 4 Walkover'!I138) ->  | J137: =IF($A137="","",'Fig 1 Ballet Leg'!I138+'Fig 2 Barracuda'!I138+'Fig 3 Neptunus'!I138+'Fig 4 Walkover'!J138) -> 
A138: =IF(Draw!E138=0,"",Draw!E138) ->  | F138: =IF($A138="","",'Fig 1 Ballet Leg'!H139) ->  | G138: =IF($A138="","",'Fig 2 Barracuda'!H139) ->  | H138: =IF($A138="","",'Fig 3 Neptunus'!H139) ->  | I138: =IF($A138="","",'Fig 4 Walkover'!I139) ->  | J138: =IF($A138="","",'Fig 1 Ballet Leg'!I139+'Fig 2 Barracuda'!I139+'Fig 3 Neptunus'!I139+'Fig 4 Walkover'!J139) -> 
A139: =IF(Draw!E139=0,"",Draw!E139) ->  | F139: =IF($A139="","",'Fig 1 Ballet Leg'!H140) ->  | G139: =IF($A139="","",'Fig 2 Barracuda'!H140) ->  | H139: =IF($A139="","",'Fig 3 Neptunus'!H140) ->  | I139: =IF($A139="","",'Fig 4 Walkover'!I140) ->  | J139: =IF($A139="","",'Fig 1 Ballet Leg'!I140+'Fig 2 Barracuda'!I140+'Fig 3 Neptunus'!I140+'Fig 4 Walkover'!J140) -> 
A140: =IF(Draw!E140=0,"",Draw!E140) ->  | F140: =IF($A140="","",'Fig 1 Ballet Leg'!H141) ->  | G140: =IF($A140="","",'Fig 2 Barracuda'!H141) ->  | H140: =IF($A140="","",'Fig 3 Neptunus'!H141) ->  | I140: =IF($A140="","",'Fig 4 Walkover'!I141) ->  | J140: =IF($A140="","",'Fig 1 Ballet Leg'!I141+'Fig 2 Barracuda'!I141+'Fig 3 Neptunus'!I141+'Fig 4 Walkover'!J141) -> 
A141: =IF(Draw!E141=0,"",Draw!E141) ->  | F141: =IF($A141="","",'Fig 1 Ballet Leg'!H142) ->  | G141: =IF($A141="","",'Fig 2 Barracuda'!H142) ->  | H141: =IF($A141="","",'Fig 3 Neptunus'!H142) ->  | I141: =IF($A141="","",'Fig 4 Walkover'!I142) ->  | J141: =IF($A141="","",'Fig 1 Ballet Leg'!I142+'Fig 2 Barracuda'!I142+'Fig 3 Neptunus'!I142+'Fig 4 Walkover'!J142) -> 
A142: =IF(Draw!E142=0,"",Draw!E142) ->  | F142: =IF($A142="","",'Fig 1 Ballet Leg'!H143) ->  | G142: =IF($A142="","",'Fig 2 Barracuda'!H143) ->  | H142: =IF($A142="","",'Fig 3 Neptunus'!H143) ->  | I142: =IF($A142="","",'Fig 4 Walkover'!I143) ->  | J142: =IF($A142="","",'Fig 1 Ballet Leg'!I143+'Fig 2 Barracuda'!I143+'Fig 3 Neptunus'!I143+'Fig 4 Walkover'!J143) -> 
A143: =IF(Draw!E143=0,"",Draw!E143) ->  | F143: =IF($A143="","",'Fig 1 Ballet Leg'!H144) ->  | G143: =IF($A143="","",'Fig 2 Barracuda'!H144) ->  | H143: =IF($A143="","",'Fig 3 Neptunus'!H144) ->  | I143: =IF($A143="","",'Fig 4 Walkover'!I144) ->  | J143: =IF($A143="","",'Fig 1 Ballet Leg'!I144+'Fig 2 Barracuda'!I144+'Fig 3 Neptunus'!I144+'Fig 4 Walkover'!J144) -> 
A144: =IF(Draw!E144=0,"",Draw!E144) ->  | F144: =IF($A144="","",'Fig 1 Ballet Leg'!H145) ->  | G144: =IF($A144="","",'Fig 2 Barracuda'!H145) ->  | H144: =IF($A144="","",'Fig 3 Neptunus'!H145) ->  | I144: =IF($A144="","",'Fig 4 Walkover'!I145) ->  | J144: =IF($A144="","",'Fig 1 Ballet Leg'!I145+'Fig 2 Barracuda'!I145+'Fig 3 Neptunus'!I145+'Fig 4 Walkover'!J145) -> 
A145: =IF(Draw!E145=0,"",Draw!E145) ->  | F145: =IF($A145="","",'Fig 1 Ballet Leg'!H146) ->  | G145: =IF($A145="","",'Fig 2 Barracuda'!H146) ->  | H145: =IF($A145="","",'Fig 3 Neptunus'!H146) ->  | I145: =IF($A145="","",'Fig 4 Walkover'!I146) ->  | J145: =IF($A145="","",'Fig 1 Ballet Leg'!I146+'Fig 2 Barracuda'!I146+'Fig 3 Neptunus'!I146+'Fig 4 Walkover'!J146) -> 
A146: =IF(Draw!E146=0,"",Draw!E146) ->  | F146: =IF($A146="","",'Fig 1 Ballet Leg'!H147) ->  | G146: =IF($A146="","",'Fig 2 Barracuda'!H147) ->  | H146: =IF($A146="","",'Fig 3 Neptunus'!H147) ->  | I146: =IF($A146="","",'Fig 4 Walkover'!I147) ->  | J146: =IF($A146="","",'Fig 1 Ballet Leg'!I147+'Fig 2 Barracuda'!I147+'Fig 3 Neptunus'!I147+'Fig 4 Walkover'!J147) -> 
A147: =IF(Draw!E147=0,"",Draw!E147) ->  | F147: =IF($A147="","",'Fig 1 Ballet Leg'!H148) ->  | G147: =IF($A147="","",'Fig 2 Barracuda'!H148) ->  | H147: =IF($A147="","",'Fig 3 Neptunus'!H148) ->  | I147: =IF($A147="","",'Fig 4 Walkover'!I148) ->  | J147: =IF($A147="","",'Fig 1 Ballet Leg'!I148+'Fig 2 Barracuda'!I148+'Fig 3 Neptunus'!I148+'Fig 4 Walkover'!J148) -> 
A148: =IF(Draw!E148=0,"",Draw!E148) ->  | F148: =IF($A148="","",'Fig 1 Ballet Leg'!H149) ->  | G148: =IF($A148="","",'Fig 2 Barracuda'!H149) ->  | H148: =IF($A148="","",'Fig 3 Neptunus'!H149) ->  | I148: =IF($A148="","",'Fig 4 Walkover'!I149) ->  | J148: =IF($A148="","",'Fig 1 Ballet Leg'!I149+'Fig 2 Barracuda'!I149+'Fig 3 Neptunus'!I149+'Fig 4 Walkover'!J149) -> 
A149: =IF(Draw!E149=0,"",Draw!E149) ->  | F149: =IF($A149="","",'Fig 1 Ballet Leg'!H150) ->  | G149: =IF($A149="","",'Fig 2 Barracuda'!H150) ->  | H149: =IF($A149="","",'Fig 3 Neptunus'!H150) ->  | I149: =IF($A149="","",'Fig 4 Walkover'!I150) ->  | J149: =IF($A149="","",'Fig 1 Ballet Leg'!I150+'Fig 2 Barracuda'!I150+'Fig 3 Neptunus'!I150+'Fig 4 Walkover'!J150) -> 
A150: =IF(Draw!E150=0,"",Draw!E150) ->  | F150: =IF($A150="","",'Fig 1 Ballet Leg'!H151) ->  | G150: =IF($A150="","",'Fig 2 Barracuda'!H151) ->  | H150: =IF($A150="","",'Fig 3 Neptunus'!H151) ->  | I150: =IF($A150="","",'Fig 4 Walkover'!I151) ->  | J150: =IF($A150="","",'Fig 1 Ballet Leg'!I151+'Fig 2 Barracuda'!I151+'Fig 3 Neptunus'!I151+'Fig 4 Walkover'!J151) -> 
K151: =IF($A151="","",IF(A151="","",VLOOKUP(E151,AX$3:AY$102,2,FALSE))) -> 

Sheet Draw (hidden)
A1: 1 | B1: Bloomington | C1: =RAND() -> 0.5785891869 | G1: School | H1: Name | I1: Draw # | J1: Name | K1: School
A2: Jenna Stockinger | B2: Forest Lake | C2: =RAND() -> 0.02014990782 | D2: =IF(ISNA(RANK(C2,C$2:C$150,1)),"",RANK(C2,C$2:C$150,1)) -> 2 | E2: =IF(B2<>"",F2,"") -> 1 | F2: 1 | G2: =B2 -> Forest Lake | H2: =A2 -> Jenna Stockinger | I2: =E2 -> 1 | J2: =IF(ISNA(VLOOKUP(I2,D$2:H$150,5,FALSE)),"",VLOOKUP(I2,D$2:H$150,5,FALSE)) -> Madison Peters | K2: =IF(ISNA(VLOOKUP(I2,D$2:G$150,4,FALSE)),"",VLOOKUP(I2,D$2:G$150,4,FALSE)) -> Osseo-Maple Grove | N2: 1 | O2: Jenna Stockinger | P2: Forest Lake
A3: Ellery Mason | B3: Osseo-Maple Grove | C3: 0.3989386143 | D3: =IF(ISNA(RANK(C3,C$2:C$150,1)),"",RANK(C3,C$2:C$150,1)) -> 14 | E3: =IF(B3<>"",F3,"") -> 2 | F3: 2 | G3: =B3 -> Osseo-Maple Grove | H3: =A3 -> Ellery Mason | I3: =E3 -> 2 | J3: =IF(ISNA(VLOOKUP(I3,D$2:H$150,5,FALSE)),"",VLOOKUP(I3,D$2:H$150,5,FALSE)) -> Jenna Stockinger | K3: =IF(ISNA(VLOOKUP(I3,D$2:G$150,4,FALSE)),"",VLOOKUP(I3,D$2:G$150,4,FALSE)) -> Forest Lake | N3: 2 | O3: Ellery Mason | P3: Osseo-Maple Grove
A4: Katherine Hildebrandt | B4: Osseo-Maple Grove | C4: 0.3282189426 | D4: 12 | E4: 3 | F4: 3 | G4: Osseo-Maple Grove | H4: Katherine Hildebrandt | I4: 3 | J4: Katelyn Molin | K4: Osseo-Maple Grove | N4: 3 | O4: Katherine Hildebrandt | P4: Osseo-Maple Grove
A5: Carolin LaBord | B5: Osseo-Maple Grove | C5: 0.9719263895 | D5: 30 | E5: 4 | F5: 4 | G5: Osseo-Maple Grove | H5: Carolin LaBord | I5: 4 | N5: 4 | O5: Carolin LaBord | P5: Osseo-Maple Grove
A6: Indy Walstrom | B6: Forest Lake | C6: 0.441416048 | D6: 17 | E6: 5 | F6: 5 | G6: Forest Lake | H6: Indy Walstrom | I6: 5 | N6: 5 | O6: Indy Walstrom | P6: Forest Lake
A7: Zoe Scholl | B7: Forest Lake | C7: 0.4210431484 | D7: 15 | E7: 6 | F7: 6 | G7: Forest Lake | H7: Zoe Scholl | I7: 6 | J7: Lizzy Hentges | K7: Forest Lake | N7: 6 | O7: Zoe Scholl | P7: Forest Lake
A8: Alexandra Trudeau | B8: Osseo-Maple Grove | C8: 0.4335885868 | D8: 16 | E8: 7 | F8: 7 | G8: Osseo-Maple Grove | H8: Alexandra Trudeau | I8: 7 | J8: Margo Prentice | K8: Osseo-Maple Grove | N8: 7 | O8: Alexandra Trudeau | P8: Osseo-Maple Grove
A9: Lydia Zimmerman | B9: Forest Lake | C9: 0.7484475538 | D9: 25 | E9: 8 | F9: 8 | G9: Forest Lake | H9: Lydia Zimmerman | I9: 8 | J9: Rachel Milbauer | K9: Forest Lake | N9: 8 | O9: Lydia Zimmerman | P9: Forest Lake
A10: Margo Prentice | B10: Osseo-Maple Grove | C10: 0.2083804616 | D10: 7 | E10: 9 | F10: 9 | G10: Osseo-Maple Grove | H10: Margo Prentice | I10: 9 | N10: 9 | O10: Margo Prentice | P10: Osseo-Maple Grove
A11: Paige Anderson | B11: Forest Lake | C11: 0.4556752975 | D11: 18 | E11: 10 | F11: 10 | G11: Forest Lake | H11: Paige Anderson | I11: 10 | J11: Allison Hannann | K11: Osseo-Maple Grove | N11: 10 | O11: Paige Anderson | P11: Forest Lake
A12: Heather Breidenbach | B12: Osseo-Maple Grove | C12: 0.5767260278 | D12: 21 | E12: 11 | F12: 11 | G12: Osseo-Maple Grove | H12: Heather Breidenbach | I12: 11 | J12: Ariel Ball | K12: Forest Lake | N12: 11 | O12: Heather Breidenbach | P12: Osseo-Maple Grove
A13: Katherine Olsen | B13: Osseo-Maple Grove | C13: 0.9970994059 | D13: 33 | E13: 12 | F13: 12 | G13: Osseo-Maple Grove | H13: Katherine Olsen | I13: 12 | J13: Katherine Hildebrandt | K13: Osseo-Maple Grove | N13: 12 | O13: Katherine Olsen | P13: Osseo-Maple Grove
A14: Rachel Milbauer | B14: Forest Lake | C14: 0.215801448 | D14: 8 | E14: 13 | F14: 13 | G14: Forest Lake | H14: Rachel Milbauer | I14: 13 | J14: Ellie Thiele | K14: Forest Lake | N14: 13 | O14: Rachel Milbauer | P14: Forest Lake
A15: Ashlyn Mackowick | B15: Forest Lake | C15: 0.9806296996 | D15: 31 | E15: 14 | F15: 14 | G15: Forest Lake | H15: Ashlyn Mackowick | I15: 14 | J15: Ellery Mason | K15: Osseo-Maple Grove | N15: 14 | O15: Ashlyn Mackowick | P15: Forest Lake
A16: Zoe Waldron | B16: Osseo-Maple Grove | C16: 0.9918732638 | D16: 32 | E16: 15 | F16: 15 | G16: Osseo-Maple Grove | H16: Zoe Waldron | I16: 15 | J16: Zoe Scholl | K16: Forest Lake | N16: 15 | O16: Zoe Waldron | P16: Osseo-Maple Grove
A17: Ellie Thiele | B17: Forest Lake | C17: 0.3420466079 | D17: 13 | E17: 16 | F17: 16 | G17: Forest Lake | H17: Ellie Thiele | I17: 16 | J17: Alexandra Trudeau | K17: Osseo-Maple Grove | N17: 16 | O17: Ellie Thiele | P17: Forest Lake
A18: Ariel Ball | B18: Forest Lake | C18: 0.2653868072 | D18: 11 | E18: 17 | F18: 17 | G18: Forest Lake | H18: Ariel Ball | I18: 17 | J18: Indy Walstrom | K18: Forest Lake | N18: 17 | O18: Ariel Ball | P18: Forest Lake
A19: Allison Hannann | B19: Osseo-Maple Grove | C19: 0.2558997095 | D19: 10 | E19: 18 | F19: 18 | G19: Osseo-Maple Grove | H19: Allison Hannann | I19: 18 | J19: Paige Anderson | K19: Forest Lake | N19: 18 | O19: Allison Hannann | P19: Osseo-Maple Grove
A20: Rylie Sampson | B20: Forest Lake | C20: 0.6142284235 | D20: 23 | E20: 19 | F20: 19 | G20: Forest Lake | H20: Rylie Sampson | I20: 19 | J20: Johanna Livermore | K20: Forest Lake | N20: 19 | O20: Rylie Sampson | P20: Forest Lake
A21: Lizzy Hentges | B21: Forest Lake | C21: 0.1823799322 | D21: 6 | E21: 20 | F21: 20 | G21: Forest Lake | H21: Lizzy Hentges | I21: 20 | J21: Emily Honnold | K21: Osseo-Maple Grove | N21: 20 | O21: Lizzy Hentges | P21: Forest Lake
A22: Heidi Hyrkas | B22: Forest Lake | C22: 0.9386995152 | D22: 29 | E22: 21 | F22: 21 | G22: Forest Lake | H22: Heidi Hyrkas | I22: 21 | J22: Heather Breidenbach | K22: Osseo-Maple Grove | N22: 21 | O22: Heidi Hyrkas | P22: Forest Lake
A23: Kelly Sullivan | B23: Forest Lake | C23: 0.6855585876 | D23: 24 | E23: 22 | F23: 22 | G23: Forest Lake | H23: Kelly Sullivan | I23: 22 | J23: Rachel Knox | K23: Osseo-Maple Grove | N23: 22 | O23: Kelly Sullivan | P23: Forest Lake
A24: Haley Heiss | B24: Osseo-Maple Grove | C24: 0.9193881798 | D24: 28 | E24: 23 | F24: 23 | G24: Osseo-Maple Grove | H24: Haley Heiss | I24: 23 | J24: Rylie Sampson | K24: Forest Lake | N24: 23 | O24: Haley Heiss | P24: Osseo-Maple Grove
A25: Katelyn Molin | B25: Osseo-Maple Grove | C25: 0.04304203998 | D25: 3 | E25: 24 | F25: 24 | G25: Osseo-Maple Grove | H25: Katelyn Molin | I25: 24 | J25: Kelly Sullivan | K25: Forest Lake | N25: 24 | O25: Katelyn Molin | P25: Osseo-Maple Grove
A26: Madison Peters | B26: Osseo-Maple Grove | C26: 0.01418940007 | D26: 1 | E26: 25 | F26: 25 | G26: Osseo-Maple Grove | H26: Madison Peters | I26: 25 | J26: Lydia Zimmerman | K26: Forest Lake | N26: 25 | O26: Madison Peters | P26: Osseo-Maple Grove
A27: Alva Westher | B27: Forest Lake | C27: 0.7841577638 | D27: 26 | E27: 26 | F27: 26 | G27: Forest Lake | H27: Alva Westher | I27: 26 | J27: Alva Westher | K27: Forest Lake | N27: 26 | O27: Alva Westher | P27: Forest Lake
A28: Emily Honnold | B28: Osseo-Maple Grove | C28: 0.5574494523 | D28: 20 | E28: 27 | F28: 27 | G28: Osseo-Maple Grove | H28: Emily Honnold | I28: 27 | J28: Emma Armitage | K28: Forest Lake | N28: 27 | O28: Emily Honnold | P28: Osseo-Maple Grove
A29: Rachel Knox | B29: Osseo-Maple Grove | C29: 0.5776265428 | D29: 22 | E29: 28 | F29: 28 | G29: Osseo-Maple Grove | H29: Rachel Knox | I29: 28 | J29: Haley Heiss | K29: Osseo-Maple Grove | N29: 28 | O29: Rachel Knox | P29: Osseo-Maple Grove
A30: Emma Armitage | B30: Forest Lake | C30: 0.8195504953 | D30: 27 | E30: 29 | F30: 29 | G30: Forest Lake | H30: Emma Armitage | I30: 29 | J30: Heidi Hyrkas | K30: Forest Lake | N30: 29 | O30: Emma Armitage | P30: Forest Lake
A31: Johanna Livermore | B31: Forest Lake | C31: 0.5137317732 | D31: 19 | E31: 30 | F31: 30 | G31: Forest Lake | H31: Johanna Livermore | I31: 30 | J31: Carolin LaBord | K31: Osseo-Maple Grove | N31: 30 | O31: Johanna Livermore | P31: Forest Lake
A32: Mckinley Leavitt | B32: Forest Lake | C32: 0.2361422503 | E32: =IF(B32<>"",F32,"") -> 31 | F32: 31 | G32: Forest Lake | H32: Mckinley Leavitt | I32: 31 | J32: Ashlyn Mackowick | K32: Forest Lake | N32: 31 | O32: Mckinley Leavitt | P32: Forest Lake
A33: Maggie Thompson | B33: Forest Lake | C33: 0.1366870008 | E33: 32 | F33: 32 | G33: Forest Lake | H33: Maggie Thompson | I33: 32 | J33: Zoe Waldron | K33: Osseo-Maple Grove | N33: 32 | O33: Maggie Thompson | P33: Forest Lake
A34: Anneke DeLooze | B34: Osseo-Maple Grove | C34: 0.1748071369 | E34: 33 | F34: 33 | G34: Osseo-Maple Grove | H34: Anneke DeLooze | I34: 33 | J34: Katherine Olsen | K34: Osseo-Maple Grove | N34: 33 | O34: Anneke DeLooze | P34: Osseo-Maple Grove
F35: 34 | G35: 0 | H35: 0 | J35: 0 | K35: 0
F36: 35 | G36: 0 | H36: 0 | J36: 0 | K36: 0
F37: 36 | G37: 0 | H37: 0 | J37: 0 | K37: 0
F38: 37 | G38: 0 | H38: 0 | J38: 0 | K38: 0
F39: 38 | G39: 0 | H39: 0 | J39: 0 | K39: 0
F40: 39 | G40: 0 | H40: 0 | J40: 0 | K40: 0
F41: 40 | G41: 0 | H41: 0 | J41: 0 | K41: 0
F42: 41 | G42: 0 | H42: 0 | J42: 0 | K42: 0
F43: 42 | G43: 0 | H43: 0 | J43: 0 | K43: 0
F44: 43 | G44: 0 | H44: 0 | J44: 0 | K44: 0
F45: 44 | G45: 0 | H45: 0 | J45: 0 | K45: 0
F46: 45 | G46: 0 | H46: 0 | J46: 0 | K46: 0
F47: 46 | G47: 0 | H47: 0 | J47: 0 | K47: 0
F48: 47 | G48: 0 | H48: 0 | J48: 0 | K48: 0
F49: 48 | G49: 0 | H49: 0 | J49: 0 | K49: 0
F50: 49 | G50: 0 | H50: 0 | J50: 0 | K50: 0
F51: 50 | G51: 0 | H51: 0 | J51: 0 | K51: 0
F52: 51 | G52: 0 | H52: 0 | J52: 0 | K52: 0
F53: 52 | G53: 0 | H53: 0 | J53: 0 | K53: 0
F54: 53 | G54: 0 | H54: 0 | J54: 0 | K54: 0
F55: 54 | G55: 0 | H55: 0 | J55: 0 | K55: 0
F56: 55 | G56: 0 | H56: 0 | J56: 0 | K56: 0
F57: 56 | G57: 0 | H57: 0 | J57: 0 | K57: 0
F58: 57 | G58: 0 | H58: 0 | J58: 0 | K58: 0
F59: 58 | G59: 0 | H59: 0 | J59: 0 | K59: 0
F60: 59 | G60: 0 | H60: 0 | J60: 0 | K60: 0
F61: 60 | G61: 0 | H61: 0 | J61: 0 | K61: 0
F62: 61 | G62: 0 | H62: 0 | J62: 0 | K62: 0
F63: 62 | G63: 0 | H63: 0 | J63: 0 | K63: 0
F64: 63 | G64: 0 | H64: 0 | J64: 0 | K64: 0
F65: 64 | G65: 0 | H65: 0 | J65: 0 | K65: 0
F66: 65 | G66: 0 | H66: 0 | J66: 0 | K66: 0
F67: 66 | G67: =B67 -> 0 | H67: =A67 -> 0 | I67: =E67 ->  | J67: =IF(ISNA(VLOOKUP(I67,D$2:H$150,5,FALSE)),"",VLOOKUP(I67,D$2:H$150,5,FALSE)) -> 0 | K67: =IF(ISNA(VLOOKUP(I67,D$2:G$150,4,FALSE)),"",VLOOKUP(I67,D$2:G$150,4,FALSE)) -> 0
F68: 67 | G68: 0 | H68: 0 | J68: 0 | K68: 0
F69: 68 | G69: 0 | H69: 0 | J69: 0 | K69: 0
F70: 69 | G70: 0 | H70: 0 | J70: 0 | K70: 0
F71: 70 | G71: 0 | H71: 0 | J71: 0 | K71: 0
F72: 71 | G72: 0 | H72: 0 | J72: 0 | K72: 0
F73: 72 | G73: 0 | H73: 0 | J73: 0 | K73: 0
F74: 73 | G74: 0 | H74: 0 | J74: 0 | K74: 0
F75: 74 | G75: 0 | H75: 0 | J75: 0 | K75: 0
F76: 75 | G76: 0 | H76: 0 | J76: 0 | K76: 0
F77: 76 | G77: 0 | H77: 0 | J77: 0 | K77: 0
F78: 77 | G78: 0 | H78: 0 | J78: 0 | K78: 0
F79: 78 | G79: 0 | H79: 0 | J79: 0 | K79: 0
F80: 79 | G80: 0 | H80: 0 | J80: 0 | K80: 0
F81: 80 | G81: 0 | H81: 0 | J81: 0 | K81: 0
F82: 81 | G82: 0 | H82: 0 | J82: 0 | K82: 0
F83: 82 | G83: 0 | H83: 0 | J83: 0 | K83: 0
F84: 83 | G84: 0 | H84: 0 | J84: 0 | K84: 0
F85: 84 | G85: 0 | H85: 0 | J85: 0 | K85: 0
F86: 85 | G86: 0 | H86: 0 | J86: 0 | K86: 0
F87: 86 | G87: 0 | H87: 0 | J87: 0 | K87: 0
F88: 87 | G88: 0 | H88: 0 | J88: 0 | K88: 0
F89: 88 | G89: 0 | H89: 0 | J89: 0 | K89: 0
F90: 89 | G90: 0 | H90: 0 | J90: 0 | K90: 0
F91: 90 | G91: 0 | H91: 0 | J91: 0 | K91: 0
F92: 91 | G92: 0 | H92: 0 | J92: 0 | K92: 0
F93: 92 | G93: 0 | H93: 0 | J93: 0 | K93: 0
F94: 93 | G94: 0 | H94: 0 | J94: 0 | K94: 0
F95: 94 | G95: =B95 -> 0 | H95: =A95 -> 0 | I95: =E95 ->  | J95: 0 | K95: 0
E96: =IF(B96<>"",F96,"") ->  | F96: 95 | G96: 0 | H96: 0 | J96: 0 | K96: 0
F97: 96 | G97: 0 | H97: 0 | J97: 0 | K97: 0
F98: 97 | G98: 0 | H98: 0 | J98: 0 | K98: 0
F99: 98 | G99: 0 | H99: 0 | J99: 0 | K99: 0
F100: 99 | G100: 0 | H100: 0 | J100: 0 | K100: 0
F101: 100 | G101: 0 | H101: 0 | J101: 0 | K101: 0
F102: 101 | G102: 0 | H102: 0 | J102: 0 | K102: 0
F103: 102 | G103: 0 | H103: 0 | J103: 0 | K103: 0
F104: 103 | G104: 0 | H104: 0 | J104: 0 | K104: 0
F105: 104 | G105: 0 | H105: 0 | J105: 0 | K105: 0
F106: 105 | G106: 0 | H106: 0 | J106: 0 | K106: 0
F107: 106 | G107: 0 | H107: 0 | J107: 0 | K107: 0
F108: 107 | G108: 0 | H108: 0 | J108: 0 | K108: 0
F109: 108 | G109: 0 | H109: 0 | J109: 0 | K109: 0
F110: 109 | G110: 0 | H110: 0 | J110: 0 | K110: 0
F111: 110 | G111: 0 | H111: 0 | J111: 0 | K111: 0
F112: 111 | G112: 0 | H112: 0 | J112: 0 | K112: 0
F113: 112 | G113: 0 | H113: 0 | J113: 0 | K113: 0
F114: 113 | G114: 0 | H114: 0 | J114: 0 | K114: 0
F115: 114 | G115: 0 | H115: 0 | J115: 0 | K115: 0
F116: 115 | G116: 0 | H116: 0 | J116: 0 | K116: 0
F117: 116 | G117: 0 | H117: 0 | J117: 0 | K117: 0
F118: 117 | G118: 0 | H118: 0 | J118: 0 | K118: 0
F119: 118 | G119: 0 | H119: 0 | J119: 0 | K119: 0
F120: 119 | G120: 0 | H120: 0 | J120: 0 | K120: 0
F121: 120 | G121: 0 | H121: 0 | J121: 0 | K121: 0
F122: 121 | G122: 0 | H122: 0 | J122: 0 | K122: 0
F123: 122 | G123: 0 | H123: 0 | J123: 0 | K123: 0
F124: 123 | G124: 0 | H124: 0 | J124: 0 | K124: 0
F125: 124 | G125: 0 | H125: 0 | J125: 0 | K125: 0
F126: 125 | G126: 0 | H126: 0 | J126: 0 | K126: 0
F127: 126 | G127: 0 | H127: 0 | J127: 0 | K127: 0
F128: 127 | G128: 0 | H128: 0 | J128: 0 | K128: 0
F129: 128 | G129: 0 | H129: 0 | J129: 0 | K129: 0
F130: 129 | G130: 0 | H130: 0 | J130: 0 | K130: 0
F131: 130 | G131: 0 | H131: 0 | J131: =IF(ISNA(VLOOKUP(I131,D$2:H$150,5,FALSE)),"",VLOOKUP(I131,D$2:H$150,5,FALSE)) -> 0 | K131: =IF(ISNA(VLOOKUP(I131,D$2:G$150,4,FALSE)),"",VLOOKUP(I131,D$2:G$150,4,FALSE)) -> 0
F132: 131 | G132: 0 | H132: 0 | J132: 0 | K132: 0
F133: 132 | G133: 0 | H133: 0 | J133: 0 | K133: 0
F134: 133 | G134: 0 | H134: 0 | J134: 0 | K134: 0
D135: =IF(ISNA(RANK(C135,C$2:C$150,1)),"",RANK(C135,C$2:C$150,1)) ->  | F135: 134 | G135: 0 | H135: 0 | J135: 0 | K135: 0
F136: 135 | G136: 0 | H136: 0 | J136: 0 | K136: 0
F137: 136 | G137: 0 | H137: 0 | J137: 0 | K137: 0
F138: 137 | G138: 0 | H138: 0 | J138: 0 | K138: 0
F139: 138 | G139: 0 | H139: 0 | J139: 0 | K139: 0
F140: 139 | G140: 0 | H140: 0 | J140: 0 | K140: 0
F141: 140 | G141: 0 | H141: 0 | J141: 0 | K141: 0
F142: 141 | G142: 0 | H142: 0 | J142: 0 | K142: 0
F143: 142 | G143: 0 | H143: 0 | J143: 0 | K143: 0
F144: 143 | G144: 0 | H144: 0 | J144: 0 | K144: 0
F145: 144 | G145: 0 | H145: 0 | J145: 0 | K145: 0
F146: 145 | G146: 0 | H146: 0 | J146: 0 | K146: 0
F147: 146 | G147: 0 | H147: 0 | J147: 0 | K147: 0
F148: 147 | G148: 0 | H148: 0 | J148: 0 | K148: 0
F149: 148 | G149: 0 | H149: 0 | J149: 0 | K149: 0
F150: 149 | G150: 0 | H150: 0 | J150: 0 | K150: 0

Sheet Schools (hidden)
A1: List of Schools:
A2: Bloomington
A3: Columbia Heights
A4: Eden Prairie
A5: Edina
A6: Forest Lake
A7: Hopkins
A8: Itasca
A9: Osseo-Maple Grove
A10: Prior Lake
A11: Richfield
A12: St. Louis Park
A13: Stillwater
A14: Wayzata

Sheet Official Draw
B2: =Draw!I1 -> Draw # | C2: =Draw!J1 -> Name | D2: =Draw!K1 -> School
B3: =Draw!N2 -> 1 | C3: =Draw!O2 -> Jenna Stockinger | D3: =Draw!P2 -> Forest Lake
B4: =Draw!N3 -> 2 | C4: =Draw!O3 -> Ellery Mason | D4: =Draw!P3 -> Osseo-Maple Grove
B5: =Draw!N4 -> 3 | C5: =Draw!O4 -> Katherine Hildebrandt | D5: =Draw!P4 -> Osseo-Maple Grove
B6: =Draw!N5 -> 4 | C6: =Draw!O5 -> Carolin LaBord | D6: =Draw!P5 -> Osseo-Maple Grove
B7: =Draw!N6 -> 5 | C7: =Draw!O6 -> Indy Walstrom | D7: =Draw!P6 -> Forest Lake
B8: =Draw!N7 -> 6 | C8: =Draw!O7 -> Zoe Scholl | D8: =Draw!P7 -> Forest Lake
B9: =Draw!N8 -> 7 | C9: =Draw!O8 -> Alexandra Trudeau | D9: =Draw!P8 -> Osseo-Maple Grove
B10: =Draw!N9 -> 8 | C10: =Draw!O9 -> Lydia Zimmerman | D10: =Draw!P9 -> Forest Lake
B11: =Draw!N10 -> 9 | C11: =Draw!O10 -> Margo Prentice | D11: =Draw!P10 -> Osseo-Maple Grove
B12: =Draw!N11 -> 10 | C12: =Draw!O11 -> Paige Anderson | D12: =Draw!P11 -> Forest Lake
B13: =Draw!N12 -> 11 | C13: =Draw!O12 -> Heather Breidenbach | D13: =Draw!P12 -> Osseo-Maple Grove
B14: =Draw!N13 -> 12 | C14: =Draw!O13 -> Katherine Olsen | D14: =Draw!P13 -> Osseo-Maple Grove
B15: =Draw!N14 -> 13 | C15: =Draw!O14 -> Rachel Milbauer | D15: =Draw!P14 -> Forest Lake
B16: =Draw!N15 -> 14 | C16: =Draw!O15 -> Ashlyn Mackowick | D16: =Draw!P15 -> Forest Lake
B17: =Draw!N16 -> 15 | C17: =Draw!O16 -> Zoe Waldron | D17: =Draw!P16 -> Osseo-Maple Grove
B18: =Draw!N17 -> 16 | C18: =Draw!O17 -> Ellie Thiele | D18: =Draw!P17 -> Forest Lake
B19: =Draw!N18 -> 17 | C19: =Draw!O18 -> Ariel Ball | D19: =Draw!P18 -> Forest Lake
B20: =Draw!N19 -> 18 | C20: =Draw!O19 -> Allison Hannann | D20: =Draw!P19 -> Osseo-Maple Grove
B21: =Draw!N20 -> 19 | C21: =Draw!O20 -> Rylie Sampson | D21: =Draw!P20 -> Forest Lake
B22: =Draw!N21 -> 20 | C22: =Draw!O21 -> Lizzy Hentges | D22: =Draw!P21 -> Forest Lake
B23: =Draw!N22 -> 21 | C23: =Draw!O22 -> Heidi Hyrkas | D23: =Draw!P22 -> Forest Lake
B24: =Draw!N23 -> 22 | C24: =Draw!O23 -> Kelly Sullivan | D24: =Draw!P23 -> Forest Lake
B25: =Draw!N24 -> 23 | C25: =Draw!O24 -> Haley Heiss | D25: =Draw!P24 -> Osseo-Maple Grove
B26: =Draw!N25 -> 24 | C26: =Draw!O25 -> Katelyn Molin | D26: =Draw!P25 -> Osseo-Maple Grove
B27: =Draw!N26 -> 25 | C27: =Draw!O26 -> Madison Peters | D27: =Draw!P26 -> Osseo-Maple Grove
B28: =Draw!N27 -> 26 | C28: =Draw!O27 -> Alva Westher | D28: =Draw!P27 -> Forest Lake
B29: =Draw!N28 -> 27 | C29: =Draw!O28 -> Emily Honnold | D29: =Draw!P28 -> Osseo-Maple Grove
B30: =Draw!N29 -> 28 | C30: =Draw!O29 -> Rachel Knox | D30: =Draw!P29 -> Osseo-Maple Grove
B31: =Draw!N30 -> 29 | C31: =Draw!O30 -> Emma Armitage | D31: =Draw!P30 -> Forest Lake
B32: =Draw!N31 -> 30 | C32: =Draw!O31 -> Johanna Livermore | D32: =Draw!P31 -> Forest Lake
B33: =Draw!N32 -> 31 | C33: =Draw!O32 -> Mckinley Leavitt | D33: =Draw!P32 -> Forest Lake
B34: =Draw!N33 -> 32 | C34: =Draw!O33 -> Maggie Thompson | D34: =Draw!P33 -> Forest Lake
B35: =Draw!N34 -> 33 | C35: =Draw!O34 -> Anneke DeLooze | D35: =Draw!P34 -> Osseo-Maple Grove
B36: =Draw!N35 ->  | C36: =Draw!O35 -> 0 | D36: =Draw!P35 -> 0
B37: =Draw!N36 ->  | C37: =Draw!O36 -> 0 | D37: =Draw!P36 -> 0
B38: =Draw!N37 ->  | C38: =Draw!O37 -> 0 | D38: =Draw!P37 -> 0
B39: =Draw!N38 ->  | C39: =Draw!O38 -> 0 | D39: =Draw!P38 -> 0
B40: =Draw!N39 ->  | C40: =Draw!O39 -> 0 | D40: =Draw!P39 -> 0
B41: =Draw!N40 ->  | C41: =Draw!O40 -> 0 | D41: =Draw!P40 -> 0
B42: =Draw!N41 ->  | C42: =Draw!O41 -> 0 | D42: =Draw!P41 -> 0
B43: =Draw!N42 ->  | C43: =Draw!O42 -> 0 | D43: =Draw!P42 -> 0
B44: =Draw!N43 ->  | C44: =Draw!O43 -> 0 | D44: =Draw!P43 -> 0
B45: =Draw!N44 ->  | C45: =Draw!O44 -> 0 | D45: =Draw!P44 -> 0
B46: =Draw!N45 ->  | C46: =Draw!O45 -> 0 | D46: =Draw!P45 -> 0
B47: =Draw!N46 ->  | C47: =Draw!O46 -> 0 | D47: =Draw!P46 -> 0
B48: =Draw!N47 ->  | C48: =Draw!O47 -> 0 | D48: =Draw!P47 -> 0
B49: =Draw!N48 ->  | C49: =Draw!O48 -> 0 | D49: =Draw!P48 -> 0
B50: =Draw!N49 ->  | C50: =Draw!O49 -> 0 | D50: =Draw!P49 -> 0
B51: =Draw!N50 ->  | C51: =Draw!O50 -> 0 | D51: =Draw!P50 -> 0
B52: =Draw!N51 ->  | C52: =Draw!O51 -> 0 | D52: =Draw!P51 -> 0
B53: =Draw!N52 ->  | C53: =Draw!O52 -> 0 | D53: =Draw!P52 -> 0
B54: =Draw!N53 ->  | C54: =Draw!O53 -> 0 | D54: =Draw!P53 -> 0
B55: =Draw!N54 ->  | C55: =Draw!O54 -> 0 | D55: =Draw!P54 -> 0
B56: =Draw!N55 ->  | C56: =Draw!O55 -> 0 | D56: =Draw!P55 -> 0
B57: =Draw!N56 ->  | C57: =Draw!O56 -> 0 | D57: =Draw!P56 -> 0
B58: =Draw!N57 ->  | C58: =Draw!O57 -> 0 | D58: =Draw!P57 -> 0
B59: =Draw!N58 ->  | C59: =Draw!O58 -> 0 | D59: =Draw!P58 -> 0
B60: =Draw!N59 ->  | C60: =Draw!O59 -> 0 | D60: =Draw!P59 -> 0
B61: =Draw!N60 ->  | C61: =Draw!O60 -> 0 | D61: =Draw!P60 -> 0
B62: =Draw!N61 ->  | C62: =Draw!O61 -> 0 | D62: =Draw!P61 -> 0
B63: =Draw!N62 ->  | C63: =Draw!O62 -> 0 | D63: =Draw!P62 -> 0
B64: =Draw!N63 ->  | C64: =Draw!O63 -> 0 | D64: =Draw!P63 -> 0
B65: =Draw!N64 ->  | C65: =Draw!O64 -> 0 | D65: =Draw!P64 -> 0
B66: =Draw!N65 ->  | C66: =Draw!O65 -> 0 | D66: =Draw!P65 -> 0
B67: =Draw!N66 ->  | C67: =Draw!O66 -> 0 | D67: =Draw!P66 -> 0
B68: =Draw!N67 ->  | C68: =Draw!O67 -> 0 | D68: =Draw!P67 -> 0
B69: =Draw!N68 ->  | C69: =Draw!O68 -> 0 | D69: =Draw!P68 -> 0
B70: =Draw!N69 ->  | C70: =Draw!O69 -> 0 | D70: =Draw!P69 -> 0
B71: =Draw!N70 ->  | C71: =Draw!O70 -> 0 | D71: =Draw!P70 -> 0
B72: =Draw!N71 ->  | C72: =Draw!O71 -> 0 | D72: =Draw!P71 -> 0
B73: =Draw!N72 ->  | C73: =Draw!O72 -> 0 | D73: =Draw!P72 -> 0
B74: =Draw!N73 ->  | C74: =Draw!O73 -> 0 | D74: =Draw!P73 -> 0
B75: =Draw!N74 ->  | C75: =Draw!O74 -> 0 | D75: =Draw!P74 -> 0
B76: =Draw!N75 ->  | C76: =Draw!O75 -> 0 | D76: =Draw!P75 -> 0
B77: =Draw!N76 ->  | C77: =Draw!O76 -> 0 | D77: =Draw!P76 -> 0
B78: =Draw!N77 ->  | C78: =Draw!O77 -> 0 | D78: =Draw!P77 -> 0
B79: =Draw!N78 ->  | C79: =Draw!O78 -> 0 | D79: =Draw!P78 -> 0
B80: =Draw!N79 ->  | C80: =Draw!O79 -> 0 | D80: =Draw!P79 -> 0
B81: =Draw!N80 ->  | C81: =Draw!O80 -> 0 | D81: =Draw!P80 -> 0
B82: =Draw!N81 ->  | C82: =Draw!O81 -> 0 | D82: =Draw!P81 -> 0
B83: =Draw!N82 ->  | C83: =Draw!O82 -> 0 | D83: =Draw!P82 -> 0
B84: =Draw!N83 ->  | C84: =Draw!O83 -> 0 | D84: =Draw!P83 -> 0
B85: =Draw!N84 ->  | C85: =Draw!O84 -> 0 | D85: =Draw!P84 -> 0
B86: =Draw!N85 ->  | C86: =Draw!O85 -> 0 | D86: =Draw!P85 -> 0
B87: =Draw!N86 ->  | C87: =Draw!O86 -> 0 | D87: =Draw!P86 -> 0
B88: =Draw!N87 ->  | C88: =Draw!O87 -> 0 | D88: =Draw!P87 -> 0
B89: =Draw!N88 ->  | C89: =Draw!O88 -> 0 | D89: =Draw!P88 -> 0
B90: =Draw!N89 ->  | C90: =Draw!O89 -> 0 | D90: =Draw!P89 -> 0
B91: =Draw!N90 ->  | C91: =Draw!O90 -> 0 | D91: =Draw!P90 -> 0
B92: =Draw!N91 ->  | C92: =Draw!O91 -> 0 | D92: =Draw!P91 -> 0
B93: =Draw!N92 ->  | C93: =Draw!O92 -> 0 | D93: =Draw!P92 -> 0
B94: =Draw!N93 ->  | C94: =Draw!O93 -> 0 | D94: =Draw!P93 -> 0
B95: =Draw!N94 ->  | C95: =Draw!O94 -> 0 | D95: =Draw!P94 -> 0
B96: =Draw!N95 ->  | C96: =Draw!O95 -> 0 | D96: =Draw!P95 -> 0
B97: =Draw!N96 ->  | C97: =Draw!O96 -> 0 | D97: =Draw!P96 -> 0
B98: =Draw!N97 ->  | C98: =Draw!O97 -> 0 | D98: =Draw!P97 -> 0
B99: =Draw!N98 ->  | C99: =Draw!O98 -> 0 | D99: =Draw!P98 -> 0
B100: =Draw!N99 ->  | C100: =Draw!O99 -> 0 | D100: =Draw!P99 -> 0
B101: =Draw!N100 ->  | C101: =Draw!O100 -> 0 | D101: =Draw!P100 -> 0
B102: =Draw!N101 ->  | C102: =Draw!O101 -> 0 | D102: =Draw!P101 -> 0
B103: =Draw!N102 ->  | C103: =Draw!O102 -> 0 | D103: =Draw!P102 -> 0
B104: =Draw!N103 ->  | C104: =Draw!O103 -> 0 | D104: =Draw!P103 -> 0
B105: =Draw!N104 ->  | C105: =Draw!O104 -> 0 | D105: =Draw!P104 -> 0
B106: =Draw!N105 ->  | C106: =Draw!O105 -> 0 | D106: =Draw!P105 -> 0
B107: =Draw!N106 ->  | C107: =Draw!O106 -> 0 | D107: =Draw!P106 -> 0
B108: =Draw!N107 ->  | C108: =Draw!O107 -> 0 | D108: =Draw!P107 -> 0
B109: =Draw!N108 ->  | C109: =Draw!O108 -> 0 | D109: =Draw!P108 -> 0
B110: =Draw!N109 ->  | C110: =Draw!O109 -> 0 | D110: =Draw!P109 -> 0
B111: =Draw!N110 ->  | C111: =Draw!O110 -> 0 | D111: =Draw!P110 -> 0
B112: =Draw!N111 ->  | C112: =Draw!O111 -> 0 | D112: =Draw!P111 -> 0
B113: =Draw!N112 ->  | C113: =Draw!O112 -> 0 | D113: =Draw!P112 -> 0
B114: =Draw!N113 ->  | C114: =Draw!O113 -> 0 | D114: =Draw!P113 -> 0
B115: =Draw!N114 ->  | C115: =Draw!O114 -> 0 | D115: =Draw!P114 -> 0
B116: =Draw!N115 ->  | C116: =Draw!O115 -> 0 | D116: =Draw!P115 -> 0
B117: =Draw!N116 ->  | C117: =Draw!O116 -> 0 | D117: =Draw!P116 -> 0
B118: =Draw!N117 ->  | C118: =Draw!O117 -> 0 | D118: =Draw!P117 -> 0
B119: =Draw!N118 ->  | C119: =Draw!O118 -> 0 | D119: =Draw!P118 -> 0
B120: =Draw!N119 ->  | C120: =Draw!O119 -> 0 | D120: =Draw!P119 -> 0
B121: =Draw!N120 ->  | C121: =Draw!O120 -> 0 | D121: =Draw!P120 -> 0
B122: =Draw!N121 ->  | C122: =Draw!O121 -> 0 | D122: =Draw!P121 -> 0
B123: =Draw!N122 ->  | C123: =Draw!O122 -> 0 | D123: =Draw!P122 -> 0
B124: =Draw!N123 ->  | C124: =Draw!O123 -> 0 | D124: =Draw!P123 -> 0
B125: =Draw!N124 ->  | C125: =Draw!O124 -> 0 | D125: =Draw!P124 -> 0
B126: =Draw!N125 ->  | C126: =Draw!O125 -> 0 | D126: =Draw!P125 -> 0
B127: =Draw!N126 ->  | C127: =Draw!O126 -> 0 | D127: =Draw!P126 -> 0
B128: =Draw!N127 ->  | C128: =Draw!O127 -> 0 | D128: =Draw!P127 -> 0
B129: =Draw!N128 ->  | C129: =Draw!O128 -> 0 | D129: =Draw!P128 -> 0
B130: =Draw!N129 ->  | C130: =Draw!O129 -> 0 | D130: =Draw!P129 -> 0
B131: =Draw!N130 ->  | C131: =Draw!O130 -> 0 | D131: =Draw!P130 -> 0
B132: =Draw!N131 ->  | C132: =Draw!O131 -> 0 | D132: =Draw!P131 -> 0
B133: =Draw!N132 ->  | C133: =Draw!O132 -> 0 | D133: =Draw!P132 -> 0
B134: =Draw!N133 ->  | C134: =Draw!O133 -> 0 | D134: =Draw!P133 -> 0
B135: =Draw!N134 ->  | C135: =Draw!O134 -> 0 | D135: =Draw!P134 -> 0
B136: =Draw!N135 ->  | C136: =Draw!O135 -> 0 | D136: =Draw!P135 -> 0
B137: =Draw!N136 ->  | C137: =Draw!O136 -> 0 | D137: =Draw!P136 -> 0
B138: =Draw!N137 ->  | C138: =Draw!O137 -> 0 | D138: =Draw!P137 -> 0
B139: =Draw!N138 ->  | C139: =Draw!O138 -> 0 | D139: =Draw!P138 -> 0
B140: =Draw!N139 ->  | C140: =Draw!O139 -> 0 | D140: =Draw!P139 -> 0
B141: =Draw!N140 ->  | C141: =Draw!O140 -> 0 | D141: =Draw!P140 -> 0
B142: =Draw!N141 ->  | C142: =Draw!O141 -> 0 | D142: =Draw!P141 -> 0
B143: =Draw!N142 ->  | C143: =Draw!O142 -> 0 | D143: =Draw!P142 -> 0
B144: =Draw!N143 ->  | C144: =Draw!O143 -> 0 | D144: =Draw!P143 -> 0
B145: =Draw!N144 ->  | C145: =Draw!O144 -> 0 | D145: =Draw!P144 -> 0
B146: =Draw!N145 ->  | C146: =Draw!O145 -> 0 | D146: =Draw!P145 -> 0
B147: =Draw!N146 ->  | C147: =Draw!O146 -> 0 | D147: =Draw!P146 -> 0
B148: =Draw!N147 ->  | C148: =Draw!O147 -> 0 | D148: =Draw!P147 -> 0
B149: =Draw!N148 ->  | C149: =Draw!O148 -> 0 | D149: =Draw!P148 -> 0
B150: =Draw!N149 ->  | C150: =Draw!O149 -> 0 | D150: =Draw!P149 -> 0
B151: =Draw!N150 ->  | C151: =Draw!O150 -> 0 | D151: =Draw!P150 -> 0

Sheet Meet Results
D2: Forest Lake | E2: =SUMIF($F5:$G24,D2,$H5:$H24) -> 17 | F2: Osseo-Maple Grove | G2: =SUMIF($F5:$G24,F2,$H5:$H24) -> 12 | K2: Edina | L2: =SUMIF($M5:$N24,K2,$O5:$O24) -> 0 | M2: Edina | N2: =SUMIF($M5:$N24,M2,$O5:$O24) -> 0 | R2: Edina | S2: =SUMIF($T5:$U24,R2,$V5:$V24) -> 0 | T2: Edina | U2: =SUMIF($T5:$U24,T2,$V5:$V24) -> 0
D3: Total Score | K3: Total Score | R3: Total Score
D4: # | E4: Swimmer | F4: School | G4: Total | H4: SCORE | I4: PLACE | K4: # | L4: Swimmer | M4: School | N4: Total | O4: SCORE | P4: PLACE | R4: # | S4: Swimmer | T4: School | U4: Total | V4: SCORE | W4: PLACE
D5: 10 | E5: Paige Anderson | F5: Forest Lake | G5: 52.88596491 | H5: =IF(ISNA(VLOOKUP(I5,Totals!$AX$3:$AY$102,2,FALSE)),"",VLOOKUP(I5,Totals!$AX$3:$AY$102,2,FALSE)) -> 8 | I5: =IF(ISNA(RANK(G5,G$5:G$150)),"",RANK(G5,G$5:G$150)) -> 1 | K5: 10 | L5: Paige Anderson | M5: Forest Lake | N5: 52.88596491 | O5: =IF(ISNA(VLOOKUP(P5,Totals!$AX$3:$AY$102,2,FALSE)),"",VLOOKUP(P5,Totals!$AX$3:$AY$102,2,FALSE)) -> 8 | P5: =IF(ISNA(RANK(N5,N$5:N$150)),"",RANK(N5,N$5:N$150)) -> 1 | R5: 10 | S5: Paige Anderson | T5: Forest Lake | U5: 52.88596491 | V5: =IF(ISNA(VLOOKUP(W5,Totals!$AX$3:$AY$102,2,FALSE)),"",VLOOKUP(W5,Totals!$AX$3:$AY$102,2,FALSE)) -> 8 | W5: =IF(ISNA(RANK(U5,U$5:U$150)),"",RANK(U5,U$5:U$150)) -> 1
D6: 15 | E6: Zoe Waldron | F6: Osseo-Maple Grove | G6: 52.59649123 | H6: =IF(ISNA(VLOOKUP(I6,Totals!$AX$3:$AY$102,2,FALSE)),"",VLOOKUP(I6,Totals!$AX$3:$AY$102,2,FALSE)) -> 6 | I6: =IF(G6=G5,I5,IF(ISNA(RANK(G6,G$5:G$150)),"",RANK(G6,G$5:G$150))) -> 2 | K6: 15 | L6: Zoe Waldron | M6: Osseo-Maple Grove | N6: 52.59649123 | O6: =IF(ISNA(VLOOKUP(P6,Totals!$AX$3:$AY$102,2,FALSE)),"",VLOOKUP(P6,Totals!$AX$3:$AY$102,2,FALSE)) -> 6 | P6: =IF(ISNA(RANK(N6,N$5:N$150)),"",RANK(N6,N$5:N$150)) -> 2 | R6: 15 | S6: Zoe Waldron | T6: Osseo-Maple Grove | U6: 52.59649123 | V6: =IF(ISNA(VLOOKUP(W6,Totals!$AX$3:$AY$102,2,FALSE)),"",VLOOKUP(W6,Totals!$AX$3:$AY$102,2,FALSE)) -> 6 | W6: =IF(ISNA(RANK(U6,U$5:U$150)),"",RANK(U6,U$5:U$150)) -> 2
D7: 31 | E7: Mckinley Leavitt | F7: Forest Lake | G7: 52.09210526 | H7: =IF(ISNA(VLOOKUP(I7,Totals!$AX$3:$AY$102,2,FALSE)),"",VLOOKUP(I7,Totals!$AX$3:$AY$102,2,FALSE)) -> 5 | I7: =IF(G7=G6,I6,IF(ISNA(RANK(G7,G$5:G$150)),"",RANK(G7,G$5:G$150))) -> 3 | K7: 31 | L7: Mckinley Leavitt | M7: Forest Lake | N7: 52.09210526 | O7: =IF(ISNA(VLOOKUP(P7,Totals!$AX$3:$AY$102,2,FALSE)),"",VLOOKUP(P7,Totals!$AX$3:$AY$102,2,FALSE)) -> 5 | P7: 3 | R7: 31 | S7: Mckinley Leavitt | T7: Forest Lake | U7: 52.09210526 | V7: =IF(ISNA(VLOOKUP(W7,Totals!$AX$3:$AY$102,2,FALSE)),"",VLOOKUP(W7,Totals!$AX$3:$AY$102,2,FALSE)) -> 5 | W7: 3
D8: 1 | E8: Jenna Stockinger | F8: Forest Lake | G8: 50.76754386 | H8: =IF(ISNA(VLOOKUP(I8,Totals!$AX$3:$AY$102,2,FALSE)),"",VLOOKUP(I8,Totals!$AX$3:$AY$102,2,FALSE)) -> 4 | I8: 4 | K8: 1 | L8: Jenna Stockinger | M8: Forest Lake | N8: 50.76754386 | O8: =IF(ISNA(VLOOKUP(P8,Totals!$AX$3:$AY$102,2,FALSE)),"",VLOOKUP(P8,Totals!$AX$3:$AY$102,2,FALSE)) -> 4 | P8: 4 | R8: 1 | S8: Jenna Stockinger | T8: Forest Lake | U8: 50.76754386 | V8: =IF(ISNA(VLOOKUP(W8,Totals!$AX$3:$AY$102,2,FALSE)),"",VLOOKUP(W8,Totals!$AX$3:$AY$102,2,FALSE)) -> 4 | W8: 4
D9: 7 | E9: Alexandra Trudeau | F9: Osseo-Maple Grove | G9: 49.6622807 | H9: =IF(ISNA(VLOOKUP(I9,Totals!$AX$3:$AY$102,2,FALSE)),"",VLOOKUP(I9,Totals!$AX$3:$AY$102,2,FALSE)) -> 3 | I9: 5 | K9: 7 | L9: Alexandra Trudeau | M9: Osseo-Maple Grove | N9: 49.6622807 | O9: =IF(ISNA(VLOOKUP(P9,Totals!$AX$3:$AY$102,2,FALSE)),"",VLOOKUP(P9,Totals!$AX$3:$AY$102,2,FALSE)) -> 3 | P9: 5 | R9: 7 | S9: Alexandra Trudeau | T9: Osseo-Maple Grove | U9: 49.6622807 | V9: =IF(ISNA(VLOOKUP(W9,Totals!$AX$3:$AY$102,2,FALSE)),"",VLOOKUP(W9,Totals!$AX$3:$AY$102,2,FALSE)) -> 3 | W9: 5
D10: 12 | E10: Katherine Olsen | F10: Osseo-Maple Grove | G10: 49.38596491 | H10: =IF(ISNA(VLOOKUP(I10,Totals!$AX$3:$AY$102,2,FALSE)),"",VLOOKUP(I10,Totals!$AX$3:$AY$102,2,FALSE)) -> 2 | I10: 6 | K10: 12 | L10: Katherine Olsen | M10: Osseo-Maple Grove | N10: 49.38596491 | O10: =IF(ISNA(VLOOKUP(P10,Totals!$AX$3:$AY$102,2,FALSE)),"",VLOOKUP(P10,Totals!$AX$3:$AY$102,2,FALSE)) -> 2 | P10: 6 | R10: 12 | S10: Katherine Olsen | T10: Osseo-Maple Grove | U10: 49.38596491 | V10: =IF(ISNA(VLOOKUP(W10,Totals!$AX$3:$AY$102,2,FALSE)),"",VLOOKUP(W10,Totals!$AX$3:$AY$102,2,FALSE)) -> 2 | W10: 6
D11: 24 | E11: Katelyn Molin | F11: Osseo-Maple Grove | G11: 49.22807018 | H11: =IF(ISNA(VLOOKUP(I11,Totals!$AX$3:$AY$102,2,FALSE)),"",VLOOKUP(I11,Totals!$AX$3:$AY$102,2,FALSE)) -> 1 | I11: 7 | K11: 24 | L11: Katelyn Molin | M11: Osseo-Maple Grove | N11: 49.22807018 | O11: =IF(ISNA(VLOOKUP(P11,Totals!$AX$3:$AY$102,2,FALSE)),"",VLOOKUP(P11,Totals!$AX$3:$AY$102,2,FALSE)) -> 1 | P11: 7 | R11: 24 | S11: Katelyn Molin | T11: Osseo-Maple Grove | U11: 49.22807018 | V11: =IF(ISNA(VLOOKUP(W11,Totals!$AX$3:$AY$102,2,FALSE)),"",VLOOKUP(W11,Totals!$AX$3:$AY$102,2,FALSE)) -> 1 | W11: 7
D12: 25 | E12: Madison Peters | F12: Osseo-Maple Grove | G12: 49.09649123 | H12: =IF(ISNA(VLOOKUP(I12,Totals!$AX$3:$AY$102,2,FALSE)),"",VLOOKUP(I12,Totals!$AX$3:$AY$102,2,FALSE)) -> 0 | I12: 8 | K12: 25 | L12: Madison Peters | M12: Osseo-Maple Grove | N12: 49.09649123 | O12: =IF(ISNA(VLOOKUP(P12,Totals!$AX$3:$AY$102,2,FALSE)),"",VLOOKUP(P12,Totals!$AX$3:$AY$102,2,FALSE)) -> 0 | P12: 8 | R12: 25 | S12: Madison Peters | T12: Osseo-Maple Grove | U12: 49.09649123 | V12: =IF(ISNA(VLOOKUP(W12,Totals!$AX$3:$AY$102,2,FALSE)),"",VLOOKUP(W12,Totals!$AX$3:$AY$102,2,FALSE)) -> 0 | W12: 8
D13: 11 | E13: Heather Breidenbach | F13: Osseo-Maple Grove | G13: 48.96929825 | H13: =IF(ISNA(VLOOKUP(I13,Totals!$AX$3:$AY$102,2,FALSE)),"",VLOOKUP(I13,Totals!$AX$3:$AY$102,2,FALSE)) -> 0 | I13: 9 | K13: 11 | L13: Heather Breidenbach | M13: Osseo-Maple Grove | N13: 48.96929825 | O13: =IF(ISNA(VLOOKUP(P13,Totals!$AX$3:$AY$102,2,FALSE)),"",VLOOKUP(P13,Totals!$AX$3:$AY$102,2,FALSE)) -> 0 | P13: 9 | R13: 11 | S13: Heather Breidenbach | T13: Osseo-Maple Grove | U13: 48.96929825 | V13: =IF(ISNA(VLOOKUP(W13,Totals!$AX$3:$AY$102,2,FALSE)),"",VLOOKUP(W13,Totals!$AX$3:$AY$102,2,FALSE)) -> 0 | W13: 9
D14: 21 | E14: Heidi Hyrkas | F14: Forest Lake | G14: 48.54824561 | H14: =IF(ISNA(VLOOKUP(I14,Totals!$AX$3:$AY$102,2,FALSE)),"",VLOOKUP(I14,Totals!$AX$3:$AY$102,2,FALSE)) -> 0 | I14: 10 | K14: 21 | L14: Heidi Hyrkas | M14: Forest Lake | N14: 48.54824561 | O14: =IF(ISNA(VLOOKUP(P14,Totals!$AX$3:$AY$102,2,FALSE)),"",VLOOKUP(P14,Totals!$AX$3:$AY$102,2,FALSE)) -> 0 | P14: 10 | R14: 21 | S14: Heidi Hyrkas | T14: Forest Lake | U14: 48.54824561 | V14: =IF(ISNA(VLOOKUP(W14,Totals!$AX$3:$AY$102,2,FALSE)),"",VLOOKUP(W14,Totals!$AX$3:$AY$102,2,FALSE)) -> 0 | W14: 10
D15: 23 | E15: Haley Heiss | F15: Osseo-Maple Grove | G15: 48.38157895 | H15: =IF(ISNA(VLOOKUP(I15,Totals!$AX$3:$AY$102,2,FALSE)),"",VLOOKUP(I15,Totals!$AX$3:$AY$102,2,FALSE)) -> 0 | I15: 11 | K15: 23 | L15: Haley Heiss | M15: Osseo-Maple Grove | N15: 48.38157895 | O15: =IF(ISNA(VLOOKUP(P15,Totals!$AX$3:$AY$102,2,FALSE)),"",VLOOKUP(P15,Totals!$AX$3:$AY$102,2,FALSE)) -> 0 | P15: 11 | R15: 23 | S15: Haley Heiss | T15: Osseo-Maple Grove | U15: 48.38157895 | V15: =IF(ISNA(VLOOKUP(W15,Totals!$AX$3:$AY$102,2,FALSE)),"",VLOOKUP(W15,Totals!$AX$3:$AY$102,2,FALSE)) -> 0 | W15: 11
D16: 9 | E16: Margo Prentice | F16: Osseo-Maple Grove | G16: 48.35964912 | H16: =IF(ISNA(VLOOKUP(I16,Totals!$AX$3:$AY$102,2,FALSE)),"",VLOOKUP(I16,Totals!$AX$3:$AY$102,2,FALSE)) -> 0 | I16: 12 | K16: 9 | L16: Margo Prentice | M16: Osseo-Maple Grove | N16: 48.35964912 | O16: =IF(ISNA(VLOOKUP(P16,Totals!$AX$3:$AY$102,2,FALSE)),"",VLOOKUP(P16,Totals!$AX$3:$AY$102,2,FALSE)) -> 0 | P16: 12 | R16: 9 | S16: Margo Prentice | T16: Osseo-Maple Grove | U16: 48.35964912 | V16: =IF(ISNA(VLOOKUP(W16,Totals!$AX$3:$AY$102,2,FALSE)),"",VLOOKUP(W16,Totals!$AX$3:$AY$102,2,FALSE)) -> 0 | W16: 12
D17: 26 | E17: Alva Westher | F17: Forest Lake | G17: 48.10087719 | H17: =IF(ISNA(VLOOKUP(I17,Totals!$AX$3:$AY$102,2,FALSE)),"",VLOOKUP(I17,Totals!$AX$3:$AY$102,2,FALSE)) -> 0 | I17: 13 | K17: 26 | L17: Alva Westher | M17: Forest Lake | N17: 48.10087719 | O17: =IF(ISNA(VLOOKUP(P17,Totals!$AX$3:$AY$102,2,FALSE)),"",VLOOKUP(P17,Totals!$AX$3:$AY$102,2,FALSE)) -> 0 | P17: 13 | R17: 26 | S17: Alva Westher | T17: Forest Lake | U17: 48.10087719 | V17: =IF(ISNA(VLOOKUP(W17,Totals!$AX$3:$AY$102,2,FALSE)),"",VLOOKUP(W17,Totals!$AX$3:$AY$102,2,FALSE)) -> 0 | W17: 13
D18: 17 | E18: Ariel Ball | F18: Forest Lake | G18: 47.86842105 | H18: =IF(ISNA(VLOOKUP(I18,Totals!$AX$3:$AY$102,2,FALSE)),"",VLOOKUP(I18,Totals!$AX$3:$AY$102,2,FALSE)) -> 0 | I18: 14 | K18: 17 | L18: Ariel Ball | M18: Forest Lake | N18: 47.86842105 | O18: =IF(ISNA(VLOOKUP(P18,Totals!$AX$3:$AY$102,2,FALSE)),"",VLOOKUP(P18,Totals!$AX$3:$AY$102,2,FALSE)) -> 0 | P18: 14 | R18: 17 | S18: Ariel Ball | T18: Forest Lake | U18: 47.86842105 | V18: =IF(ISNA(VLOOKUP(W18,Totals!$AX$3:$AY$102,2,FALSE)),"",VLOOKUP(W18,Totals!$AX$3:$AY$102,2,FALSE)) -> 0 | W18: 14
D19: 2 | E19: Ellery Mason | F19: Osseo-Maple Grove | G19: 46.86842105 | H19: =IF(ISNA(VLOOKUP(I19,Totals!$AX$3:$AY$102,2,FALSE)),"",VLOOKUP(I19,Totals!$AX$3:$AY$102,2,FALSE)) -> 0 | I19: 15 | K19: 2 | L19: Ellery Mason | M19: Osseo-Maple Grove | N19: 46.86842105 | O19: =IF(ISNA(VLOOKUP(P19,Totals!$AX$3:$AY$102,2,FALSE)),"",VLOOKUP(P19,Totals!$AX$3:$AY$102,2,FALSE)) -> 0 | P19: 15 | R19: 2 | S19: Ellery Mason | T19: Osseo-Maple Grove | U19: 46.86842105 | V19: =IF(ISNA(VLOOKUP(W19,Totals!$AX$3:$AY$102,2,FALSE)),"",VLOOKUP(W19,Totals!$AX$3:$AY$102,2,FALSE)) -> 0 | W19: 15
D20: 19 | E20: Rylie Sampson | F20: Forest Lake | G20: 46.45614035 | H20: =IF(ISNA(VLOOKUP(I20,Totals!$AX$3:$AY$102,2,FALSE)),"",VLOOKUP(I20,Totals!$AX$3:$AY$102,2,FALSE)) -> 0 | I20: 16 | K20: 19 | L20: Rylie Sampson | M20: Forest Lake | N20: 46.45614035 | O20: =IF(ISNA(VLOOKUP(P20,Totals!$AX$3:$AY$102,2,FALSE)),"",VLOOKUP(P20,Totals!$AX$3:$AY$102,2,FALSE)) -> 0 | P20: 16 | R20: 19 | S20: Rylie Sampson | T20: Forest Lake | U20: 46.45614035 | V20: =IF(ISNA(VLOOKUP(W20,Totals!$AX$3:$AY$102,2,FALSE)),"",VLOOKUP(W20,Totals!$AX$3:$AY$102,2,FALSE)) -> 0 | W20: 16
D21: 5 | E21: Indy Walstrom | F21: Forest Lake | G21: 46.13157895 | H21: =IF(ISNA(VLOOKUP(I21,Totals!$AX$3:$AY$102,2,FALSE)),"",VLOOKUP(I21,Totals!$AX$3:$AY$102,2,FALSE)) -> 0 | I21: 17 | K21: 5 | L21: Indy Walstrom | M21: Forest Lake | N21: 46.13157895 | O21: =IF(ISNA(VLOOKUP(P21,Totals!$AX$3:$AY$102,2,FALSE)),"",VLOOKUP(P21,Totals!$AX$3:$AY$102,2,FALSE)) -> 0 | P21: 17 | R21: 5 | S21: Indy Walstrom | T21: Forest Lake | U21: 46.13157895 | V21: =IF(ISNA(VLOOKUP(W21,Totals!$AX$3:$AY$102,2,FALSE)),"",VLOOKUP(W21,Totals!$AX$3:$AY$102,2,FALSE)) -> 0 | W21: 17
D22: 16 | E22: Ellie Thiele | F22: Forest Lake | G22: 45.43421053 | H22: =IF(ISNA(VLOOKUP(I22,Totals!$AX$3:$AY$102,2,FALSE)),"",VLOOKUP(I22,Totals!$AX$3:$AY$102,2,FALSE)) -> 0 | I22: 18 | K22: 16 | L22: Ellie Thiele | M22: Forest Lake | N22: 45.43421053 | O22: =IF(ISNA(VLOOKUP(P22,Totals!$AX$3:$AY$102,2,FALSE)),"",VLOOKUP(P22,Totals!$AX$3:$AY$102,2,FALSE)) -> 0 | P22: 18 | R22: 16 | S22: Ellie Thiele | T22: Forest Lake | U22: 45.43421053 | V22: =IF(ISNA(VLOOKUP(W22,Totals!$AX$3:$AY$102,2,FALSE)),"",VLOOKUP(W22,Totals!$AX$3:$AY$102,2,FALSE)) -> 0 | W22: 18
D23: 3 | E23: Katherine Hildebrandt | F23: Osseo-Maple Grove | G23: 45.36403509 | H23: =IF(ISNA(VLOOKUP(I23,Totals!$AX$3:$AY$102,2,FALSE)),"",VLOOKUP(I23,Totals!$AX$3:$AY$102,2,FALSE)) -> 0 | I23: 19 | K23: 3 | L23: Katherine Hildebrandt | M23: Osseo-Maple Grove | N23: 45.36403509 | O23: =IF(ISNA(VLOOKUP(P23,Totals!$AX$3:$AY$102,2,FALSE)),"",VLOOKUP(P23,Totals!$AX$3:$AY$102,2,FALSE)) -> 0 | P23: 19 | R23: 3 | S23: Katherine Hildebrandt | T23: Osseo-Maple Grove | U23: 45.36403509 | V23: =IF(ISNA(VLOOKUP(W23,Totals!$AX$3:$AY$102,2,FALSE)),"",VLOOKUP(W23,Totals!$AX$3:$AY$102,2,FALSE)) -> 0 | W23: 19
D24: 8 | E24: Lydia Zimmerman | F24: Forest Lake | G24: 43.38157895 | H24: =IF(ISNA(VLOOKUP(I24,Totals!$AX$3:$AY$102,2,FALSE)),"",VLOOKUP(I24,Totals!$AX$3:$AY$102,2,FALSE)) -> 0 | I24: 20 | K24: 8 | L24: Lydia Zimmerman | M24: Forest Lake | N24: 43.38157895 | O24: =IF(ISNA(VLOOKUP(P24,Totals!$AX$3:$AY$102,2,FALSE)),"",VLOOKUP(P24,Totals!$AX$3:$AY$102,2,FALSE)) -> 0 | P24: 20 | R24: 8 | S24: Lydia Zimmerman | T24: Forest Lake | U24: 43.38157895 | V24: =IF(ISNA(VLOOKUP(W24,Totals!$AX$3:$AY$102,2,FALSE)),"",VLOOKUP(W24,Totals!$AX$3:$AY$102,2,FALSE)) -> 0 | W24: 20
D25: 6 | E25: Zoe Scholl | F25: Forest Lake | G25: 42.9122807 | H25: =IF(ISNA(VLOOKUP(I25,Totals!$AX$3:$AY$102,2,FALSE)),"",VLOOKUP(I25,Totals!$AX$3:$AY$102,2,FALSE)) -> 0 | I25: 21 | K25: 6 | L25: Zoe Scholl | M25: Forest Lake | N25: 42.9122807 | O25: =IF(ISNA(VLOOKUP(P25,Totals!$AX$3:$AY$102,2,FALSE)),"",VLOOKUP(P25,Totals!$AX$3:$AY$102,2,FALSE)) -> 0 | P25: 21 | R25: 6 | S25: Zoe Scholl | T25: Forest Lake | U25: 42.9122807 | V25: =IF(ISNA(VLOOKUP(W25,Totals!$AX$3:$AY$102,2,FALSE)),"",VLOOKUP(W25,Totals!$AX$3:$AY$102,2,FALSE)) -> 0 | W25: 21
D26: 30 | E26: Johanna Livermore | F26: Forest Lake | G26: 42.87280702 | H26: =IF(ISNA(VLOOKUP(I26,Totals!$AX$3:$AY$102,2,FALSE)),"",VLOOKUP(I26,Totals!$AX$3:$AY$102,2,FALSE)) -> 0 | I26: 22 | K26: 30 | L26: Johanna Livermore | M26: Forest Lake | N26: 42.87280702 | O26: =IF(ISNA(VLOOKUP(P26,Totals!$AX$3:$AY$102,2,FALSE)),"",VLOOKUP(P26,Totals!$AX$3:$AY$102,2,FALSE)) -> 0 | P26: 22 | R26: 30 | S26: Johanna Livermore | T26: Forest Lake | U26: 42.87280702 | V26: =IF(ISNA(VLOOKUP(W26,Totals!$AX$3:$AY$102,2,FALSE)),"",VLOOKUP(W26,Totals!$AX$3:$AY$102,2,FALSE)) -> 0 | W26: 22
D27: 32 | E27: Maggie Thompson | F27: Forest Lake | G27: 42.48684211 | H27: =IF(ISNA(VLOOKUP(I27,Totals!$AX$3:$AY$102,2,FALSE)),"",VLOOKUP(I27,Totals!$AX$3:$AY$102,2,FALSE)) -> 0 | I27: 23 | K27: 32 | L27: Maggie Thompson | M27: Forest Lake | N27: 42.48684211 | O27: =IF(ISNA(VLOOKUP(P27,Totals!$AX$3:$AY$102,2,FALSE)),"",VLOOKUP(P27,Totals!$AX$3:$AY$102,2,FALSE)) -> 0 | P27: 23 | R27: 32 | S27: Maggie Thompson | T27: Forest Lake | U27: 42.48684211 | V27: =IF(ISNA(VLOOKUP(W27,Totals!$AX$3:$AY$102,2,FALSE)),"",VLOOKUP(W27,Totals!$AX$3:$AY$102,2,FALSE)) -> 0 | W27: 23
D28: 14 | E28: Ashlyn Mackowick | F28: Forest Lake | G28: 42.34210526 | H28: =IF(ISNA(VLOOKUP(I28,Totals!$AX$3:$AY$102,2,FALSE)),"",VLOOKUP(I28,Totals!$AX$3:$AY$102,2,FALSE)) -> 0 | I28: 24 | K28: 14 | L28: Ashlyn Mackowick | M28: Forest Lake | N28: 42.34210526 | O28: =IF(ISNA(VLOOKUP(P28,Totals!$AX$3:$AY$102,2,FALSE)),"",VLOOKUP(P28,Totals!$AX$3:$AY$102,2,FALSE)) -> 0 | P28: 24 | R28: 14 | S28: Ashlyn Mackowick | T28: Forest Lake | U28: 42.34210526 | V28: =IF(ISNA(VLOOKUP(W28,Totals!$AX$3:$AY$102,2,FALSE)),"",VLOOKUP(W28,Totals!$AX$3:$AY$102,2,FALSE)) -> 0 | W28: 24
D29: 20 | E29: Lizzy Hentges | F29: Forest Lake | G29: 41.91666667 | H29: =IF(ISNA(VLOOKUP(I29,Totals!$AX$3:$AY$102,2,FALSE)),"",VLOOKUP(I29,Totals!$AX$3:$AY$102,2,FALSE)) -> 0 | I29: 25 | K29: 20 | L29: Lizzy Hentges | M29: Forest Lake | N29: 41.91666667 | O29: =IF(ISNA(VLOOKUP(P29,Totals!$AX$3:$AY$102,2,FALSE)),"",VLOOKUP(P29,Totals!$AX$3:$AY$102,2,FALSE)) -> 0 | P29: 25 | R29: 20 | S29: Lizzy Hentges | T29: Forest Lake | U29: 41.91666667 | V29: =IF(ISNA(VLOOKUP(W29,Totals!$AX$3:$AY$102,2,FALSE)),"",VLOOKUP(W29,Totals!$AX$3:$AY$102,2,FALSE)) -> 0 | W29: 25
D30: 27 | E30: Emily Honnold | F30: Osseo-Maple Grove | G30: 41.79824561 | H30: =IF(ISNA(VLOOKUP(I30,Totals!$AX$3:$AY$102,2,FALSE)),"",VLOOKUP(I30,Totals!$AX$3:$AY$102,2,FALSE)) -> 0 | I30: 26 | K30: 27 | L30: Emily Honnold | M30: Osseo-Maple Grove | N30: 41.79824561 | O30: =IF(ISNA(VLOOKUP(P30,Totals!$AX$3:$AY$102,2,FALSE)),"",VLOOKUP(P30,Totals!$AX$3:$AY$102,2,FALSE)) -> 0 | P30: 26 | R30: 27 | S30: Emily Honnold | T30: Osseo-Maple Grove | U30: 41.79824561 | V30: =IF(ISNA(VLOOKUP(W30,Totals!$AX$3:$AY$102,2,FALSE)),"",VLOOKUP(W30,Totals!$AX$3:$AY$102,2,FALSE)) -> 0 | W30: 26
D31: 29 | E31: Emma Armitage | F31: Forest Lake | G31: 41.32894737 | H31: =IF(ISNA(VLOOKUP(I31,Totals!$AX$3:$AY$102,2,FALSE)),"",VLOOKUP(I31,Totals!$AX$3:$AY$102,2,FALSE)) -> 0 | I31: 27 | K31: 29 | L31: Emma Armitage | M31: Forest Lake | N31: 41.32894737 | O31: =IF(ISNA(VLOOKUP(P31,Totals!$AX$3:$AY$102,2,FALSE)),"",VLOOKUP(P31,Totals!$AX$3:$AY$102,2,FALSE)) -> 0 | P31: 27 | R31: 29 | S31: Emma Armitage | T31: Forest Lake | U31: 41.32894737 | V31: =IF(ISNA(VLOOKUP(W31,Totals!$AX$3:$AY$102,2,FALSE)),"",VLOOKUP(W31,Totals!$AX$3:$AY$102,2,FALSE)) -> 0 | W31: 27
D32: 22 | E32: Kelly Sullivan | F32: Forest Lake | G32: 40.44736842 | H32: =IF(ISNA(VLOOKUP(I32,Totals!$AX$3:$AY$102,2,FALSE)),"",VLOOKUP(I32,Totals!$AX$3:$AY$102,2,FALSE)) -> 0 | I32: 28 | K32: 22 | L32: Kelly Sullivan | M32: Forest Lake | N32: 40.44736842 | O32: =IF(ISNA(VLOOKUP(P32,Totals!$AX$3:$AY$102,2,FALSE)),"",VLOOKUP(P32,Totals!$AX$3:$AY$102,2,FALSE)) -> 0 | P32: 28 | R32: 22 | S32: Kelly Sullivan | T32: Forest Lake | U32: 40.44736842 | V32: =IF(ISNA(VLOOKUP(W32,Totals!$AX$3:$AY$102,2,FALSE)),"",VLOOKUP(W32,Totals!$AX$3:$AY$102,2,FALSE)) -> 0 | W32: 28
D33: 13 | E33: Rachel Milbauer | F33: Forest Lake | G33: 38.09649123 | H33: =IF(ISNA(VLOOKUP(I33,Totals!$AX$3:$AY$102,2,FALSE)),"",VLOOKUP(I33,Totals!$AX$3:$AY$102,2,FALSE)) -> 0 | I33: 29 | K33: 13 | L33: Rachel Milbauer | M33: Forest Lake | N33: 38.09649123 | O33: =IF(ISNA(VLOOKUP(P33,Totals!$AX$3:$AY$102,2,FALSE)),"",VLOOKUP(P33,Totals!$AX$3:$AY$102,2,FALSE)) -> 0 | P33: 29 | R33: 13 | S33: Rachel Milbauer | T33: Forest Lake | U33: 38.09649123 | V33: =IF(ISNA(VLOOKUP(W33,Totals!$AX$3:$AY$102,2,FALSE)),"",VLOOKUP(W33,Totals!$AX$3:$AY$102,2,FALSE)) -> 0 | W33: 29
D34: 18 | E34: Allison Hannann | F34: Osseo-Maple Grove | G34: 0 | H34: =IF(ISNA(VLOOKUP(I34,Totals!$AX$3:$AY$102,2,FALSE)),"",VLOOKUP(I34,Totals!$AX$3:$AY$102,2,FALSE)) -> 0 | I34: 30 | K34: 18 | L34: Allison Hannann | M34: Osseo-Maple Grove | N34: 0 | O34: =IF(ISNA(VLOOKUP(P34,Totals!$AX$3:$AY$102,2,FALSE)),"",VLOOKUP(P34,Totals!$AX$3:$AY$102,2,FALSE)) -> 0 | P34: 30 | R34: 18 | S34: Allison Hannann | T34: Osseo-Maple Grove | U34: 0 | V34: =IF(ISNA(VLOOKUP(W34,Totals!$AX$3:$AY$102,2,FALSE)),"",VLOOKUP(W34,Totals!$AX$3:$AY$102,2,FALSE)) -> 0 | W34: 30
D35: 33 | E35: Anneke DeLooze | F35: Osseo-Maple Grove | G35: 0 | H35: =IF(ISNA(VLOOKUP(I35,Totals!$AX$3:$AY$102,2,FALSE)),"",VLOOKUP(I35,Totals!$AX$3:$AY$102,2,FALSE)) -> 0 | I35: 30 | K35: 33 | L35: Anneke DeLooze | M35: Osseo-Maple Grove | N35: 0 | O35: =IF(ISNA(VLOOKUP(P35,Totals!$AX$3:$AY$102,2,FALSE)),"",VLOOKUP(P35,Totals!$AX$3:$AY$102,2,FALSE)) -> 0 | P35: 30 | R35: 33 | S35: Anneke DeLooze | T35: Osseo-Maple Grove | U35: 0 | V35: =IF(ISNA(VLOOKUP(W35,Totals!$AX$3:$AY$102,2,FALSE)),"",VLOOKUP(W35,Totals!$AX$3:$AY$102,2,FALSE)) -> 0 | W35: 30
D36: 28 | E36: Rachel Knox | F36: Osseo-Maple Grove | G36: 0 | H36: =IF(ISNA(VLOOKUP(I36,Totals!$AX$3:$AY$102,2,FALSE)),"",VLOOKUP(I36,Totals!$AX$3:$AY$102,2,FALSE)) -> 0 | I36: 30 | K36: 28 | L36: Rachel Knox | M36: Osseo-Maple Grove | N36: 0 | O36: =IF(ISNA(VLOOKUP(P36,Totals!$AX$3:$AY$102,2,FALSE)),"",VLOOKUP(P36,Totals!$AX$3:$AY$102,2,FALSE)) -> 0 | P36: 30 | R36: 28 | S36: Rachel Knox | T36: Osseo-Maple Grove | U36: 0 | V36: =IF(ISNA(VLOOKUP(W36,Totals!$AX$3:$AY$102,2,FALSE)),"",VLOOKUP(W36,Totals!$AX$3:$AY$102,2,FALSE)) -> 0 | W36: 30
D37: 4 | E37: Carolin LaBord | F37: Osseo-Maple Grove | G37: 0 | H37: =IF(ISNA(VLOOKUP(I37,Totals!$AX$3:$AY$102,2,FALSE)),"",VLOOKUP(I37,Totals!$AX$3:$AY$102,2,FALSE)) -> 0 | I37: 30 | K37: 4 | L37: Carolin LaBord | M37: Osseo-Maple Grove | N37: 0 | O37: =IF(ISNA(VLOOKUP(P37,Totals!$AX$3:$AY$102,2,FALSE)),"",VLOOKUP(P37,Totals!$AX$3:$AY$102,2,FALSE)) -> 0 | P37: 30 | R37: 4 | S37: Carolin LaBord | T37: Osseo-Maple Grove | U37: 0 | V37: =IF(ISNA(VLOOKUP(W37,Totals!$AX$3:$AY$102,2,FALSE)),"",VLOOKUP(W37,Totals!$AX$3:$AY$102,2,FALSE)) -> 0 | W37: 30
H38: =IF(ISNA(VLOOKUP(I38,Totals!$AX$3:$AY$102,2,FALSE)),"",VLOOKUP(I38,Totals!$AX$3:$AY$102,2,FALSE)) -> 0 | I38: =IF(G38=G37,I37,IF(ISNA(RANK(G38,G$5:G$150)),"",RANK(G38,G$5:G$150))) -> 30 | O38: =IF(ISNA(VLOOKUP(P38,Totals!$AX$3:$AY$102,2,FALSE)),"",VLOOKUP(P38,Totals!$AX$3:$AY$102,2,FALSE)) -> 0 | P38: 30 | V38: =IF(ISNA(VLOOKUP(W38,Totals!$AX$3:$AY$102,2,FALSE)),"",VLOOKUP(W38,Totals!$AX$3:$AY$102,2,FALSE)) -> 0 | W38: 30
H39: =IF(ISNA(VLOOKUP(I39,Totals!$AX$3:$AY$102,2,FALSE)),"",VLOOKUP(I39,Totals!$AX$3:$AY$102,2,FALSE)) -> 0 | I39: 30 | O39: =IF(ISNA(VLOOKUP(P39,Totals!$AX$3:$AY$102,2,FALSE)),"",VLOOKUP(P39,Totals!$AX$3:$AY$102,2,FALSE)) -> 0 | P39: 30 | V39: =IF(ISNA(VLOOKUP(W39,Totals!$AX$3:$AY$102,2,FALSE)),"",VLOOKUP(W39,Totals!$AX$3:$AY$102,2,FALSE)) -> 0 | W39: 30
H40: =IF(ISNA(VLOOKUP(I40,Totals!$AX$3:$AY$102,2,FALSE)),"",VLOOKUP(I40,Totals!$AX$3:$AY$102,2,FALSE)) -> 0 | I40: 30 | O40: =IF(ISNA(VLOOKUP(P40,Totals!$AX$3:$AY$102,2,FALSE)),"",VLOOKUP(P40,Totals!$AX$3:$AY$102,2,FALSE)) -> 0 | P40: 30 | V40: =IF(ISNA(VLOOKUP(W40,Totals!$AX$3:$AY$102,2,FALSE)),"",VLOOKUP(W40,Totals!$AX$3:$AY$102,2,FALSE)) -> 0 | W40: 30
H41: =IF(ISNA(VLOOKUP(I41,Totals!$AX$3:$AY$102,2,FALSE)),"",VLOOKUP(I41,Totals!$AX$3:$AY$102,2,FALSE)) -> 0 | I41: 30 | O41: =IF(ISNA(VLOOKUP(P41,Totals!$AX$3:$AY$102,2,FALSE)),"",VLOOKUP(P41,Totals!$AX$3:$AY$102,2,FALSE)) -> 0 | P41: 30 | V41: =IF(ISNA(VLOOKUP(W41,Totals!$AX$3:$AY$102,2,FALSE)),"",VLOOKUP(W41,Totals!$AX$3:$AY$102,2,FALSE)) -> 0 | W41: 30
H42: =IF(ISNA(VLOOKUP(I42,Totals!$AX$3:$AY$102,2,FALSE)),"",VLOOKUP(I42,Totals!$AX$3:$AY$102,2,FALSE)) -> 0 | I42: 30 | O42: =IF(ISNA(VLOOKUP(P42,Totals!$AX$3:$AY$102,2,FALSE)),"",VLOOKUP(P42,Totals!$AX$3:$AY$102,2,FALSE)) -> 0 | P42: 30 | V42: =IF(ISNA(VLOOKUP(W42,Totals!$AX$3:$AY$102,2,FALSE)),"",VLOOKUP(W42,Totals!$AX$3:$AY$102,2,FALSE)) -> 0 | W42: 30
H43: =IF(ISNA(VLOOKUP(I43,Totals!$AX$3:$AY$102,2,FALSE)),"",VLOOKUP(I43,Totals!$AX$3:$AY$102,2,FALSE)) -> 0 | I43: 30 | O43: =IF(ISNA(VLOOKUP(P43,Totals!$AX$3:$AY$102,2,FALSE)),"",VLOOKUP(P43,Totals!$AX$3:$AY$102,2,FALSE)) -> 0 | P43: 30 | V43: =IF(ISNA(VLOOKUP(W43,Totals!$AX$3:$AY$102,2,FALSE)),"",VLOOKUP(W43,Totals!$AX$3:$AY$102,2,FALSE)) -> 0 | W43: 30
H44: =IF(ISNA(VLOOKUP(I44,Totals!$AX$3:$AY$102,2,FALSE)),"",VLOOKUP(I44,Totals!$AX$3:$AY$102,2,FALSE)) -> 0 | I44: 30 | O44: =IF(ISNA(VLOOKUP(P44,Totals!$AX$3:$AY$102,2,FALSE)),"",VLOOKUP(P44,Totals!$AX$3:$AY$102,2,FALSE)) -> 0 | P44: 30 | V44: =IF(ISNA(VLOOKUP(W44,Totals!$AX$3:$AY$102,2,FALSE)),"",VLOOKUP(W44,Totals!$AX$3:$AY$102,2,FALSE)) -> 0 | W44: 30
H45: =IF(ISNA(VLOOKUP(I45,Totals!$AX$3:$AY$102,2,FALSE)),"",VLOOKUP(I45,Totals!$AX$3:$AY$102,2,FALSE)) -> 0 | I45: 30 | O45: =IF(ISNA(VLOOKUP(P45,Totals!$AX$3:$AY$102,2,FALSE)),"",VLOOKUP(P45,Totals!$AX$3:$AY$102,2,FALSE)) -> 0 | P45: 30 | V45: =IF(ISNA(VLOOKUP(W45,Totals!$AX$3:$AY$102,2,FALSE)),"",VLOOKUP(W45,Totals!$AX$3:$AY$102,2,FALSE)) -> 0 | W45: 30
H46: =IF(ISNA(VLOOKUP(I46,Totals!$AX$3:$AY$102,2,FALSE)),"",VLOOKUP(I46,Totals!$AX$3:$AY$102,2,FALSE)) -> 0 | I46: 30 | O46: =IF(ISNA(VLOOKUP(P46,Totals!$AX$3:$AY$102,2,FALSE)),"",VLOOKUP(P46,Totals!$AX$3:$AY$102,2,FALSE)) -> 0 | P46: 30 | V46: =IF(ISNA(VLOOKUP(W46,Totals!$AX$3:$AY$102,2,FALSE)),"",VLOOKUP(W46,Totals!$AX$3:$AY$102,2,FALSE)) -> 0 | W46: 30
H47: =IF(ISNA(VLOOKUP(I47,Totals!$AX$3:$AY$102,2,FALSE)),"",VLOOKUP(I47,Totals!$AX$3:$AY$102,2,FALSE)) -> 0 | I47: 30 | O47: =IF(ISNA(VLOOKUP(P47,Totals!$AX$3:$AY$102,2,FALSE)),"",VLOOKUP(P47,Totals!$AX$3:$AY$102,2,FALSE)) -> 0 | P47: 30 | V47: =IF(ISNA(VLOOKUP(W47,Totals!$AX$3:$AY$102,2,FALSE)),"",VLOOKUP(W47,Totals!$AX$3:$AY$102,2,FALSE)) -> 0 | W47: 30
H48: =IF(ISNA(VLOOKUP(I48,Totals!$AX$3:$AY$102,2,FALSE)),"",VLOOKUP(I48,Totals!$AX$3:$AY$102,2,FALSE)) -> 0 | I48: 30 | O48: =IF(ISNA(VLOOKUP(P48,Totals!$AX$3:$AY$102,2,FALSE)),"",VLOOKUP(P48,Totals!$AX$3:$AY$102,2,FALSE)) -> 0 | P48: 30 | V48: =IF(ISNA(VLOOKUP(W48,Totals!$AX$3:$AY$102,2,FALSE)),"",VLOOKUP(W48,Totals!$AX$3:$AY$102,2,FALSE)) -> 0 | W48: 30
H49: =IF(ISNA(VLOOKUP(I49,Totals!$AX$3:$AY$102,2,FALSE)),"",VLOOKUP(I49,Totals!$AX$3:$AY$102,2,FALSE)) -> 0 | I49: 30 | O49: =IF(ISNA(VLOOKUP(P49,Totals!$AX$3:$AY$102,2,FALSE)),"",VLOOKUP(P49,Totals!$AX$3:$AY$102,2,FALSE)) -> 0 | P49: 30 | V49: =IF(ISNA(VLOOKUP(W49,Totals!$AX$3:$AY$102,2,FALSE)),"",VLOOKUP(W49,Totals!$AX$3:$AY$102,2,FALSE)) -> 0 | W49: 30
H50: =IF(ISNA(VLOOKUP(I50,Totals!$AX$3:$AY$102,2,FALSE)),"",VLOOKUP(I50,Totals!$AX$3:$AY$102,2,FALSE)) -> 0 | I50: 30 | O50: =IF(ISNA(VLOOKUP(P50,Totals!$AX$3:$AY$102,2,FALSE)),"",VLOOKUP(P50,Totals!$AX$3:$AY$102,2,FALSE)) -> 0 | P50: 30 | V50: =IF(ISNA(VLOOKUP(W50,Totals!$AX$3:$AY$102,2,FALSE)),"",VLOOKUP(W50,Totals!$AX$3:$AY$102,2,FALSE)) -> 0 | W50: 30
H51: =IF(ISNA(VLOOKUP(I51,Totals!$AX$3:$AY$102,2,FALSE)),"",VLOOKUP(I51,Totals!$AX$3:$AY$102,2,FALSE)) -> 0 | I51: 30 | O51: =IF(ISNA(VLOOKUP(P51,Totals!$AX$3:$AY$102,2,FALSE)),"",VLOOKUP(P51,Totals!$AX$3:$AY$102,2,FALSE)) -> 0 | P51: 30 | V51: =IF(ISNA(VLOOKUP(W51,Totals!$AX$3:$AY$102,2,FALSE)),"",VLOOKUP(W51,Totals!$AX$3:$AY$102,2,FALSE)) -> 0 | W51: 30
H52: =IF(ISNA(VLOOKUP(I52,Totals!$AX$3:$AY$102,2,FALSE)),"",VLOOKUP(I52,Totals!$AX$3:$AY$102,2,FALSE)) -> 0 | I52: 30 | O52: =IF(ISNA(VLOOKUP(P52,Totals!$AX$3:$AY$102,2,FALSE)),"",VLOOKUP(P52,Totals!$AX$3:$AY$102,2,FALSE)) -> 0 | P52: 30 | V52: =IF(ISNA(VLOOKUP(W52,Totals!$AX$3:$AY$102,2,FALSE)),"",VLOOKUP(W52,Totals!$AX$3:$AY$102,2,FALSE)) -> 0 | W52: 30
H53: =IF(ISNA(VLOOKUP(I53,Totals!$AX$3:$AY$102,2,FALSE)),"",VLOOKUP(I53,Totals!$AX$3:$AY$102,2,FALSE)) -> 0 | I53: 30 | O53: =IF(ISNA(VLOOKUP(P53,Totals!$AX$3:$AY$102,2,FALSE)),"",VLOOKUP(P53,Totals!$AX$3:$AY$102,2,FALSE)) -> 0 | P53: 30 | V53: =IF(ISNA(VLOOKUP(W53,Totals!$AX$3:$AY$102,2,FALSE)),"",VLOOKUP(W53,Totals!$AX$3:$AY$102,2,FALSE)) -> 0 | W53: 30
H54: =IF(ISNA(VLOOKUP(I54,Totals!$AX$3:$AY$102,2,FALSE)),"",VLOOKUP(I54,Totals!$AX$3:$AY$102,2,FALSE)) -> 0 | I54: 30 | O54: =IF(ISNA(VLOOKUP(P54,Totals!$AX$3:$AY$102,2,FALSE)),"",VLOOKUP(P54,Totals!$AX$3:$AY$102,2,FALSE)) -> 0 | P54: 30 | V54: =IF(ISNA(VLOOKUP(W54,Totals!$AX$3:$AY$102,2,FALSE)),"",VLOOKUP(W54,Totals!$AX$3:$AY$102,2,FALSE)) -> 0 | W54: 30
H55: =IF(ISNA(VLOOKUP(I55,Totals!$AX$3:$AY$102,2,FALSE)),"",VLOOKUP(I55,Totals!$AX$3:$AY$102,2,FALSE)) -> 0 | I55: 30 | O55: =IF(ISNA(VLOOKUP(P55,Totals!$AX$3:$AY$102,2,FALSE)),"",VLOOKUP(P55,Totals!$AX$3:$AY$102,2,FALSE)) -> 0 | P55: 30 | V55: =IF(ISNA(VLOOKUP(W55,Totals!$AX$3:$AY$102,2,FALSE)),"",VLOOKUP(W55,Totals!$AX$3:$AY$102,2,FALSE)) -> 0 | W55: 30
H56: =IF(ISNA(VLOOKUP(I56,Totals!$AX$3:$AY$102,2,FALSE)),"",VLOOKUP(I56,Totals!$AX$3:$AY$102,2,FALSE)) -> 0 | I56: 30 | O56: =IF(ISNA(VLOOKUP(P56,Totals!$AX$3:$AY$102,2,FALSE)),"",VLOOKUP(P56,Totals!$AX$3:$AY$102,2,FALSE)) -> 0 | P56: 30 | V56: =IF(ISNA(VLOOKUP(W56,Totals!$AX$3:$AY$102,2,FALSE)),"",VLOOKUP(W56,Totals!$AX$3:$AY$102,2,FALSE)) -> 0 | W56: 30
H57: =IF(ISNA(VLOOKUP(I57,Totals!$AX$3:$AY$102,2,FALSE)),"",VLOOKUP(I57,Totals!$AX$3:$AY$102,2,FALSE)) -> 0 | I57: 30 | O57: =IF(ISNA(VLOOKUP(P57,Totals!$AX$3:$AY$102,2,FALSE)),"",VLOOKUP(P57,Totals!$AX$3:$AY$102,2,FALSE)) -> 0 | P57: 30 | V57: =IF(ISNA(VLOOKUP(W57,Totals!$AX$3:$AY$102,2,FALSE)),"",VLOOKUP(W57,Totals!$AX$3:$AY$102,2,FALSE)) -> 0 | W57: 30
H58: =IF(ISNA(VLOOKUP(I58,Totals!$AX$3:$AY$102,2,FALSE)),"",VLOOKUP(I58,Totals!$AX$3:$AY$102,2,FALSE)) -> 0 | I58: 30 | O58: =IF(ISNA(VLOOKUP(P58,Totals!$AX$3:$AY$102,2,FALSE)),"",VLOOKUP(P58,Totals!$AX$3:$AY$102,2,FALSE)) -> 0 | P58: 30 | V58: =IF(ISNA(VLOOKUP(W58,Totals!$AX$3:$AY$102,2,FALSE)),"",VLOOKUP(W58,Totals!$AX$3:$AY$102,2,FALSE)) -> 0 | W58: 30
H59: =IF(ISNA(VLOOKUP(I59,Totals!$AX$3:$AY$102,2,FALSE)),"",VLOOKUP(I59,Totals!$AX$3:$AY$102,2,FALSE)) -> 0 | I59: 30 | O59: =IF(ISNA(VLOOKUP(P59,Totals!$AX$3:$AY$102,2,FALSE)),"",VLOOKUP(P59,Totals!$AX$3:$AY$102,2,FALSE)) -> 0 | P59: 30 | V59: =IF(ISNA(VLOOKUP(W59,Totals!$AX$3:$AY$102,2,FALSE)),"",VLOOKUP(W59,Totals!$AX$3:$AY$102,2,FALSE)) -> 0 | W59: 30
H60: =IF(ISNA(VLOOKUP(I60,Totals!$AX$3:$AY$102,2,FALSE)),"",VLOOKUP(I60,Totals!$AX$3:$AY$102,2,FALSE)) -> 0 | I60: 30 | O60: =IF(ISNA(VLOOKUP(P60,Totals!$AX$3:$AY$102,2,FALSE)),"",VLOOKUP(P60,Totals!$AX$3:$AY$102,2,FALSE)) -> 0 | P60: 30 | V60: =IF(ISNA(VLOOKUP(W60,Totals!$AX$3:$AY$102,2,FALSE)),"",VLOOKUP(W60,Totals!$AX$3:$AY$102,2,FALSE)) -> 0 | W60: 30
H61: =IF(ISNA(VLOOKUP(I61,Totals!$AX$3:$AY$102,2,FALSE)),"",VLOOKUP(I61,Totals!$AX$3:$AY$102,2,FALSE)) -> 0 | I61: 30 | O61: =IF(ISNA(VLOOKUP(P61,Totals!$AX$3:$AY$102,2,FALSE)),"",VLOOKUP(P61,Totals!$AX$3:$AY$102,2,FALSE)) -> 0 | P61: 30 | V61: =IF(ISNA(VLOOKUP(W61,Totals!$AX$3:$AY$102,2,FALSE)),"",VLOOKUP(W61,Totals!$AX$3:$AY$102,2,FALSE)) -> 0 | W61: 30
H62: =IF(ISNA(VLOOKUP(I62,Totals!$AX$3:$AY$102,2,FALSE)),"",VLOOKUP(I62,Totals!$AX$3:$AY$102,2,FALSE)) -> 0 | I62: 30 | O62: =IF(ISNA(VLOOKUP(P62,Totals!$AX$3:$AY$102,2,FALSE)),"",VLOOKUP(P62,Totals!$AX$3:$AY$102,2,FALSE)) -> 0 | P62: 30 | V62: =IF(ISNA(VLOOKUP(W62,Totals!$AX$3:$AY$102,2,FALSE)),"",VLOOKUP(W62,Totals!$AX$3:$AY$102,2,FALSE)) -> 0 | W62: 30
H63: =IF(ISNA(VLOOKUP(I63,Totals!$AX$3:$AY$102,2,FALSE)),"",VLOOKUP(I63,Totals!$AX$3:$AY$102,2,FALSE)) -> 0 | I63: 30 | O63: =IF(ISNA(VLOOKUP(P63,Totals!$AX$3:$AY$102,2,FALSE)),"",VLOOKUP(P63,Totals!$AX$3:$AY$102,2,FALSE)) -> 0 | P63: 30 | V63: =IF(ISNA(VLOOKUP(W63,Totals!$AX$3:$AY$102,2,FALSE)),"",VLOOKUP(W63,Totals!$AX$3:$AY$102,2,FALSE)) -> 0 | W63: 30
H64: =IF(ISNA(VLOOKUP(I64,Totals!$AX$3:$AY$102,2,FALSE)),"",VLOOKUP(I64,Totals!$AX$3:$AY$102,2,FALSE)) -> 0 | I64: 30 | O64: =IF(ISNA(VLOOKUP(P64,Totals!$AX$3:$AY$102,2,FALSE)),"",VLOOKUP(P64,Totals!$AX$3:$AY$102,2,FALSE)) -> 0 | P64: 30 | V64: =IF(ISNA(VLOOKUP(W64,Totals!$AX$3:$AY$102,2,FALSE)),"",VLOOKUP(W64,Totals!$AX$3:$AY$102,2,FALSE)) -> 0 | W64: 30
H65: =IF(ISNA(VLOOKUP(I65,Totals!$AX$3:$AY$102,2,FALSE)),"",VLOOKUP(I65,Totals!$AX$3:$AY$102,2,FALSE)) -> 0 | I65: 30 | O65: =IF(ISNA(VLOOKUP(P65,Totals!$AX$3:$AY$102,2,FALSE)),"",VLOOKUP(P65,Totals!$AX$3:$AY$102,2,FALSE)) -> 0 | P65: 30 | V65: =IF(ISNA(VLOOKUP(W65,Totals!$AX$3:$AY$102,2,FALSE)),"",VLOOKUP(W65,Totals!$AX$3:$AY$102,2,FALSE)) -> 0 | W65: 30
H66: =IF(ISNA(VLOOKUP(I66,Totals!$AX$3:$AY$102,2,FALSE)),"",VLOOKUP(I66,Totals!$AX$3:$AY$102,2,FALSE)) -> 0 | I66: 30 | O66: =IF(ISNA(VLOOKUP(P66,Totals!$AX$3:$AY$102,2,FALSE)),"",VLOOKUP(P66,Totals!$AX$3:$AY$102,2,FALSE)) -> 0 | P66: 30 | V66: =IF(ISNA(VLOOKUP(W66,Totals!$AX$3:$AY$102,2,FALSE)),"",VLOOKUP(W66,Totals!$AX$3:$AY$102,2,FALSE)) -> 0 | W66: 30
H67: =IF(ISNA(VLOOKUP(I67,Totals!$AX$3:$AY$102,2,FALSE)),"",VLOOKUP(I67,Totals!$AX$3:$AY$102,2,FALSE)) -> 0 | I67: 30 | O67: =IF(ISNA(VLOOKUP(P67,Totals!$AX$3:$AY$102,2,FALSE)),"",VLOOKUP(P67,Totals!$AX$3:$AY$102,2,FALSE)) -> 0 | P67: 30 | V67: =IF(ISNA(VLOOKUP(W67,Totals!$AX$3:$AY$102,2,FALSE)),"",VLOOKUP(W67,Totals!$AX$3:$AY$102,2,FALSE)) -> 0 | W67: 30
H68: =IF(ISNA(VLOOKUP(I68,Totals!$AX$3:$AY$102,2,FALSE)),"",VLOOKUP(I68,Totals!$AX$3:$AY$102,2,FALSE)) -> 0 | I68: 30 | O68: =IF(ISNA(VLOOKUP(P68,Totals!$AX$3:$AY$102,2,FALSE)),"",VLOOKUP(P68,Totals!$AX$3:$AY$102,2,FALSE)) -> 0 | P68: 30 | V68: =IF(ISNA(VLOOKUP(W68,Totals!$AX$3:$AY$102,2,FALSE)),"",VLOOKUP(W68,Totals!$AX$3:$AY$102,2,FALSE)) -> 0 | W68: 30
H69: =IF(ISNA(VLOOKUP(I69,Totals!$AX$3:$AY$102,2,FALSE)),"",VLOOKUP(I69,Totals!$AX$3:$AY$102,2,FALSE)) -> 0 | I69: 30 | O69: =IF(ISNA(VLOOKUP(P69,Totals!$AX$3:$AY$102,2,FALSE)),"",VLOOKUP(P69,Totals!$AX$3:$AY$102,2,FALSE)) -> 0 | P69: 30 | V69: =IF(ISNA(VLOOKUP(W69,Totals!$AX$3:$AY$102,2,FALSE)),"",VLOOKUP(W69,Totals!$AX$3:$AY$102,2,FALSE)) -> 0 | W69: 30
H70: =IF(ISNA(VLOOKUP(I70,Totals!$AX$3:$AY$102,2,FALSE)),"",VLOOKUP(I70,Totals!$AX$3:$AY$102,2,FALSE)) -> 0 | I70: 30 | O70: =IF(ISNA(VLOOKUP(P70,Totals!$AX$3:$AY$102,2,FALSE)),"",VLOOKUP(P70,Totals!$AX$3:$AY$102,2,FALSE)) -> 0 | P70: =IF(ISNA(RANK(N70,N$5:N$150)),"",RANK(N70,N$5:N$150)) -> 30 | V70: =IF(ISNA(VLOOKUP(W70,Totals!$AX$3:$AY$102,2,FALSE)),"",VLOOKUP(W70,Totals!$AX$3:$AY$102,2,FALSE)) -> 0 | W70: =IF(ISNA(RANK(U70,U$5:U$150)),"",RANK(U70,U$5:U$150)) -> 30
H71: =IF(ISNA(VLOOKUP(I71,Totals!$AX$3:$AY$102,2,FALSE)),"",VLOOKUP(I71,Totals!$AX$3:$AY$102,2,FALSE)) -> 0 | I71: =IF(G71=G70,I70,IF(ISNA(RANK(G71,G$5:G$150)),"",RANK(G71,G$5:G$150))) -> 30 | O71: =IF(ISNA(VLOOKUP(P71,Totals!$AX$3:$AY$102,2,FALSE)),"",VLOOKUP(P71,Totals!$AX$3:$AY$102,2,FALSE)) -> 0 | P71: 30 | V71: =IF(ISNA(VLOOKUP(W71,Totals!$AX$3:$AY$102,2,FALSE)),"",VLOOKUP(W71,Totals!$AX$3:$AY$102,2,FALSE)) -> 0 | W71: 30
H72: =IF(ISNA(VLOOKUP(I72,Totals!$AX$3:$AY$102,2,FALSE)),"",VLOOKUP(I72,Totals!$AX$3:$AY$102,2,FALSE)) -> 0 | I72: 30 | O72: =IF(ISNA(VLOOKUP(P72,Totals!$AX$3:$AY$102,2,FALSE)),"",VLOOKUP(P72,Totals!$AX$3:$AY$102,2,FALSE)) -> 0 | P72: 30 | V72: =IF(ISNA(VLOOKUP(W72,Totals!$AX$3:$AY$102,2,FALSE)),"",VLOOKUP(W72,Totals!$AX$3:$AY$102,2,FALSE)) -> 0 | W72: 30
H73: =IF(ISNA(VLOOKUP(I73,Totals!$AX$3:$AY$102,2,FALSE)),"",VLOOKUP(I73,Totals!$AX$3:$AY$102,2,FALSE)) -> 0 | I73: 30 | O73: =IF(ISNA(VLOOKUP(P73,Totals!$AX$3:$AY$102,2,FALSE)),"",VLOOKUP(P73,Totals!$AX$3:$AY$102,2,FALSE)) -> 0 | P73: 30 | V73: =IF(ISNA(VLOOKUP(W73,Totals!$AX$3:$AY$102,2,FALSE)),"",VLOOKUP(W73,Totals!$AX$3:$AY$102,2,FALSE)) -> 0 | W73: 30
H74: =IF(ISNA(VLOOKUP(I74,Totals!$AX$3:$AY$102,2,FALSE)),"",VLOOKUP(I74,Totals!$AX$3:$AY$102,2,FALSE)) -> 0 | I74: 30 | O74: =IF(ISNA(VLOOKUP(P74,Totals!$AX$3:$AY$102,2,FALSE)),"",VLOOKUP(P74,Totals!$AX$3:$AY$102,2,FALSE)) -> 0 | P74: 30 | V74: =IF(ISNA(VLOOKUP(W74,Totals!$AX$3:$AY$102,2,FALSE)),"",VLOOKUP(W74,Totals!$AX$3:$AY$102,2,FALSE)) -> 0 | W74: 30
H75: =IF(ISNA(VLOOKUP(I75,Totals!$AX$3:$AY$102,2,FALSE)),"",VLOOKUP(I75,Totals!$AX$3:$AY$102,2,FALSE)) -> 0 | I75: 30 | O75: =IF(ISNA(VLOOKUP(P75,Totals!$AX$3:$AY$102,2,FALSE)),"",VLOOKUP(P75,Totals!$AX$3:$AY$102,2,FALSE)) -> 0 | P75: 30 | V75: =IF(ISNA(VLOOKUP(W75,Totals!$AX$3:$AY$102,2,FALSE)),"",VLOOKUP(W75,Totals!$AX$3:$AY$102,2,FALSE)) -> 0 | W75: 30
H76: =IF(ISNA(VLOOKUP(I76,Totals!$AX$3:$AY$102,2,FALSE)),"",VLOOKUP(I76,Totals!$AX$3:$AY$102,2,FALSE)) -> 0 | I76: 30 | O76: =IF(ISNA(VLOOKUP(P76,Totals!$AX$3:$AY$102,2,FALSE)),"",VLOOKUP(P76,Totals!$AX$3:$AY$102,2,FALSE)) -> 0 | P76: 30 | V76: =IF(ISNA(VLOOKUP(W76,Totals!$AX$3:$AY$102,2,FALSE)),"",VLOOKUP(W76,Totals!$AX$3:$AY$102,2,FALSE)) -> 0 | W76: 30
H77: =IF(ISNA(VLOOKUP(I77,Totals!$AX$3:$AY$102,2,FALSE)),"",VLOOKUP(I77,Totals!$AX$3:$AY$102,2,FALSE)) -> 0 | I77: 30 | O77: =IF(ISNA(VLOOKUP(P77,Totals!$AX$3:$AY$102,2,FALSE)),"",VLOOKUP(P77,Totals!$AX$3:$AY$102,2,FALSE)) -> 0 | P77: 30 | V77: =IF(ISNA(VLOOKUP(W77,Totals!$AX$3:$AY$102,2,FALSE)),"",VLOOKUP(W77,Totals!$AX$3:$AY$102,2,FALSE)) -> 0 | W77: 30
H78: =IF(ISNA(VLOOKUP(I78,Totals!$AX$3:$AY$102,2,FALSE)),"",VLOOKUP(I78,Totals!$AX$3:$AY$102,2,FALSE)) -> 0 | I78: 30 | O78: =IF(ISNA(VLOOKUP(P78,Totals!$AX$3:$AY$102,2,FALSE)),"",VLOOKUP(P78,Totals!$AX$3:$AY$102,2,FALSE)) -> 0 | P78: 30 | V78: =IF(ISNA(VLOOKUP(W78,Totals!$AX$3:$AY$102,2,FALSE)),"",VLOOKUP(W78,Totals!$AX$3:$AY$102,2,FALSE)) -> 0 | W78: 30
H79: =IF(ISNA(VLOOKUP(I79,Totals!$AX$3:$AY$102,2,FALSE)),"",VLOOKUP(I79,Totals!$AX$3:$AY$102,2,FALSE)) -> 0 | I79: 30 | O79: =IF(ISNA(VLOOKUP(P79,Totals!$AX$3:$AY$102,2,FALSE)),"",VLOOKUP(P79,Totals!$AX$3:$AY$102,2,FALSE)) -> 0 | P79: 30 | V79: =IF(ISNA(VLOOKUP(W79,Totals!$AX$3:$AY$102,2,FALSE)),"",VLOOKUP(W79,Totals!$AX$3:$AY$102,2,FALSE)) -> 0 | W79: 30
H80: =IF(ISNA(VLOOKUP(I80,Totals!$AX$3:$AY$102,2,FALSE)),"",VLOOKUP(I80,Totals!$AX$3:$AY$102,2,FALSE)) -> 0 | I80: 30 | O80: =IF(ISNA(VLOOKUP(P80,Totals!$AX$3:$AY$102,2,FALSE)),"",VLOOKUP(P80,Totals!$AX$3:$AY$102,2,FALSE)) -> 0 | P80: 30 | V80: =IF(ISNA(VLOOKUP(W80,Totals!$AX$3:$AY$102,2,FALSE)),"",VLOOKUP(W80,Totals!$AX$3:$AY$102,2,FALSE)) -> 0 | W80: 30
H81: =IF(ISNA(VLOOKUP(I81,Totals!$AX$3:$AY$102,2,FALSE)),"",VLOOKUP(I81,Totals!$AX$3:$AY$102,2,FALSE)) -> 0 | I81: 30 | O81: =IF(ISNA(VLOOKUP(P81,Totals!$AX$3:$AY$102,2,FALSE)),"",VLOOKUP(P81,Totals!$AX$3:$AY$102,2,FALSE)) -> 0 | P81: 30 | V81: =IF(ISNA(VLOOKUP(W81,Totals!$AX$3:$AY$102,2,FALSE)),"",VLOOKUP(W81,Totals!$AX$3:$AY$102,2,FALSE)) -> 0 | W81: 30
H82: =IF(ISNA(VLOOKUP(I82,Totals!$AX$3:$AY$102,2,FALSE)),"",VLOOKUP(I82,Totals!$AX$3:$AY$102,2,FALSE)) -> 0 | I82: 30 | O82: =IF(ISNA(VLOOKUP(P82,Totals!$AX$3:$AY$102,2,FALSE)),"",VLOOKUP(P82,Totals!$AX$3:$AY$102,2,FALSE)) -> 0 | P82: 30 | V82: =IF(ISNA(VLOOKUP(W82,Totals!$AX$3:$AY$102,2,FALSE)),"",VLOOKUP(W82,Totals!$AX$3:$AY$102,2,FALSE)) -> 0 | W82: 30
H83: =IF(ISNA(VLOOKUP(I83,Totals!$AX$3:$AY$102,2,FALSE)),"",VLOOKUP(I83,Totals!$AX$3:$AY$102,2,FALSE)) -> 0 | I83: 30 | O83: =IF(ISNA(VLOOKUP(P83,Totals!$AX$3:$AY$102,2,FALSE)),"",VLOOKUP(P83,Totals!$AX$3:$AY$102,2,FALSE)) -> 0 | P83: 30 | V83: =IF(ISNA(VLOOKUP(W83,Totals!$AX$3:$AY$102,2,FALSE)),"",VLOOKUP(W83,Totals!$AX$3:$AY$102,2,FALSE)) -> 0 | W83: 30
H84: =IF(ISNA(VLOOKUP(I84,Totals!$AX$3:$AY$102,2,FALSE)),"",VLOOKUP(I84,Totals!$AX$3:$AY$102,2,FALSE)) -> 0 | I84: 30 | O84: =IF(ISNA(VLOOKUP(P84,Totals!$AX$3:$AY$102,2,FALSE)),"",VLOOKUP(P84,Totals!$AX$3:$AY$102,2,FALSE)) -> 0 | P84: 30 | V84: =IF(ISNA(VLOOKUP(W84,Totals!$AX$3:$AY$102,2,FALSE)),"",VLOOKUP(W84,Totals!$AX$3:$AY$102,2,FALSE)) -> 0 | W84: 30
H85: =IF(ISNA(VLOOKUP(I85,Totals!$AX$3:$AY$102,2,FALSE)),"",VLOOKUP(I85,Totals!$AX$3:$AY$102,2,FALSE)) -> 0 | I85: 30 | O85: =IF(ISNA(VLOOKUP(P85,Totals!$AX$3:$AY$102,2,FALSE)),"",VLOOKUP(P85,Totals!$AX$3:$AY$102,2,FALSE)) -> 0 | P85: 30 | V85: =IF(ISNA(VLOOKUP(W85,Totals!$AX$3:$AY$102,2,FALSE)),"",VLOOKUP(W85,Totals!$AX$3:$AY$102,2,FALSE)) -> 0 | W85: 30
H86: =IF(ISNA(VLOOKUP(I86,Totals!$AX$3:$AY$102,2,FALSE)),"",VLOOKUP(I86,Totals!$AX$3:$AY$102,2,FALSE)) -> 0 | I86: 30 | O86: =IF(ISNA(VLOOKUP(P86,Totals!$AX$3:$AY$102,2,FALSE)),"",VLOOKUP(P86,Totals!$AX$3:$AY$102,2,FALSE)) -> 0 | P86: 30 | V86: =IF(ISNA(VLOOKUP(W86,Totals!$AX$3:$AY$102,2,FALSE)),"",VLOOKUP(W86,Totals!$AX$3:$AY$102,2,FALSE)) -> 0 | W86: 30
H87: =IF(ISNA(VLOOKUP(I87,Totals!$AX$3:$AY$102,2,FALSE)),"",VLOOKUP(I87,Totals!$AX$3:$AY$102,2,FALSE)) -> 0 | I87: 30 | O87: =IF(ISNA(VLOOKUP(P87,Totals!$AX$3:$AY$102,2,FALSE)),"",VLOOKUP(P87,Totals!$AX$3:$AY$102,2,FALSE)) -> 0 | P87: 30 | V87: =IF(ISNA(VLOOKUP(W87,Totals!$AX$3:$AY$102,2,FALSE)),"",VLOOKUP(W87,Totals!$AX$3:$AY$102,2,FALSE)) -> 0 | W87: 30
H88: =IF(ISNA(VLOOKUP(I88,Totals!$AX$3:$AY$102,2,FALSE)),"",VLOOKUP(I88,Totals!$AX$3:$AY$102,2,FALSE)) -> 0 | I88: 30 | O88: =IF(ISNA(VLOOKUP(P88,Totals!$AX$3:$AY$102,2,FALSE)),"",VLOOKUP(P88,Totals!$AX$3:$AY$102,2,FALSE)) -> 0 | P88: 30 | V88: =IF(ISNA(VLOOKUP(W88,Totals!$AX$3:$AY$102,2,FALSE)),"",VLOOKUP(W88,Totals!$AX$3:$AY$102,2,FALSE)) -> 0 | W88: 30
H89: =IF(ISNA(VLOOKUP(I89,Totals!$AX$3:$AY$102,2,FALSE)),"",VLOOKUP(I89,Totals!$AX$3:$AY$102,2,FALSE)) -> 0 | I89: 30 | O89: =IF(ISNA(VLOOKUP(P89,Totals!$AX$3:$AY$102,2,FALSE)),"",VLOOKUP(P89,Totals!$AX$3:$AY$102,2,FALSE)) -> 0 | P89: 30 | V89: =IF(ISNA(VLOOKUP(W89,Totals!$AX$3:$AY$102,2,FALSE)),"",VLOOKUP(W89,Totals!$AX$3:$AY$102,2,FALSE)) -> 0 | W89: 30
H90: =IF(ISNA(VLOOKUP(I90,Totals!$AX$3:$AY$102,2,FALSE)),"",VLOOKUP(I90,Totals!$AX$3:$AY$102,2,FALSE)) -> 0 | I90: 30 | O90: =IF(ISNA(VLOOKUP(P90,Totals!$AX$3:$AY$102,2,FALSE)),"",VLOOKUP(P90,Totals!$AX$3:$AY$102,2,FALSE)) -> 0 | P90: 30 | V90: =IF(ISNA(VLOOKUP(W90,Totals!$AX$3:$AY$102,2,FALSE)),"",VLOOKUP(W90,Totals!$AX$3:$AY$102,2,FALSE)) -> 0 | W90: 30
H91: =IF(ISNA(VLOOKUP(I91,Totals!$AX$3:$AY$102,2,FALSE)),"",VLOOKUP(I91,Totals!$AX$3:$AY$102,2,FALSE)) -> 0 | I91: 30 | O91: =IF(ISNA(VLOOKUP(P91,Totals!$AX$3:$AY$102,2,FALSE)),"",VLOOKUP(P91,Totals!$AX$3:$AY$102,2,FALSE)) -> 0 | P91: 30 | V91: =IF(ISNA(VLOOKUP(W91,Totals!$AX$3:$AY$102,2,FALSE)),"",VLOOKUP(W91,Totals!$AX$3:$AY$102,2,FALSE)) -> 0 | W91: 30
H92: =IF(ISNA(VLOOKUP(I92,Totals!$AX$3:$AY$102,2,FALSE)),"",VLOOKUP(I92,Totals!$AX$3:$AY$102,2,FALSE)) -> 0 | I92: 30 | O92: =IF(ISNA(VLOOKUP(P92,Totals!$AX$3:$AY$102,2,FALSE)),"",VLOOKUP(P92,Totals!$AX$3:$AY$102,2,FALSE)) -> 0 | P92: 30 | V92: =IF(ISNA(VLOOKUP(W92,Totals!$AX$3:$AY$102,2,FALSE)),"",VLOOKUP(W92,Totals!$AX$3:$AY$102,2,FALSE)) -> 0 | W92: 30
H93: =IF(ISNA(VLOOKUP(I93,Totals!$AX$3:$AY$102,2,FALSE)),"",VLOOKUP(I93,Totals!$AX$3:$AY$102,2,FALSE)) -> 0 | I93: 30 | O93: =IF(ISNA(VLOOKUP(P93,Totals!$AX$3:$AY$102,2,FALSE)),"",VLOOKUP(P93,Totals!$AX$3:$AY$102,2,FALSE)) -> 0 | P93: 30 | V93: =IF(ISNA(VLOOKUP(W93,Totals!$AX$3:$AY$102,2,FALSE)),"",VLOOKUP(W93,Totals!$AX$3:$AY$102,2,FALSE)) -> 0 | W93: 30
H94: =IF(ISNA(VLOOKUP(I94,Totals!$AX$3:$AY$102,2,FALSE)),"",VLOOKUP(I94,Totals!$AX$3:$AY$102,2,FALSE)) -> 0 | I94: 30 | O94: =IF(ISNA(VLOOKUP(P94,Totals!$AX$3:$AY$102,2,FALSE)),"",VLOOKUP(P94,Totals!$AX$3:$AY$102,2,FALSE)) -> 0 | P94: 30 | V94: =IF(ISNA(VLOOKUP(W94,Totals!$AX$3:$AY$102,2,FALSE)),"",VLOOKUP(W94,Totals!$AX$3:$AY$102,2,FALSE)) -> 0 | W94: 30
H95: =IF(ISNA(VLOOKUP(I95,Totals!$AX$3:$AY$102,2,FALSE)),"",VLOOKUP(I95,Totals!$AX$3:$AY$102,2,FALSE)) -> 0 | I95: 30 | O95: =IF(ISNA(VLOOKUP(P95,Totals!$AX$3:$AY$102,2,FALSE)),"",VLOOKUP(P95,Totals!$AX$3:$AY$102,2,FALSE)) -> 0 | P95: 30 | V95: =IF(ISNA(VLOOKUP(W95,Totals!$AX$3:$AY$102,2,FALSE)),"",VLOOKUP(W95,Totals!$AX$3:$AY$102,2,FALSE)) -> 0 | W95: 30
H96: =IF(ISNA(VLOOKUP(I96,Totals!$AX$3:$AY$102,2,FALSE)),"",VLOOKUP(I96,Totals!$AX$3:$AY$102,2,FALSE)) -> 0 | I96: 30 | O96: =IF(ISNA(VLOOKUP(P96,Totals!$AX$3:$AY$102,2,FALSE)),"",VLOOKUP(P96,Totals!$AX$3:$AY$102,2,FALSE)) -> 0 | P96: 30 | V96: =IF(ISNA(VLOOKUP(W96,Totals!$AX$3:$AY$102,2,FALSE)),"",VLOOKUP(W96,Totals!$AX$3:$AY$102,2,FALSE)) -> 0 | W96: 30
H97: =IF(ISNA(VLOOKUP(I97,Totals!$AX$3:$AY$102,2,FALSE)),"",VLOOKUP(I97,Totals!$AX$3:$AY$102,2,FALSE)) -> 0 | I97: 30 | O97: =IF(ISNA(VLOOKUP(P97,Totals!$AX$3:$AY$102,2,FALSE)),"",VLOOKUP(P97,Totals!$AX$3:$AY$102,2,FALSE)) -> 0 | P97: 30 | V97: =IF(ISNA(VLOOKUP(W97,Totals!$AX$3:$AY$102,2,FALSE)),"",VLOOKUP(W97,Totals!$AX$3:$AY$102,2,FALSE)) -> 0 | W97: 30
H98: =IF(ISNA(VLOOKUP(I98,Totals!$AX$3:$AY$102,2,FALSE)),"",VLOOKUP(I98,Totals!$AX$3:$AY$102,2,FALSE)) -> 0 | I98: 30 | O98: =IF(ISNA(VLOOKUP(P98,Totals!$AX$3:$AY$102,2,FALSE)),"",VLOOKUP(P98,Totals!$AX$3:$AY$102,2,FALSE)) -> 0 | P98: 30 | V98: =IF(ISNA(VLOOKUP(W98,Totals!$AX$3:$AY$102,2,FALSE)),"",VLOOKUP(W98,Totals!$AX$3:$AY$102,2,FALSE)) -> 0 | W98: 30
H99: =IF(ISNA(VLOOKUP(I99,Totals!$AX$3:$AY$102,2,FALSE)),"",VLOOKUP(I99,Totals!$AX$3:$AY$102,2,FALSE)) -> 0 | I99: 30 | O99: =IF(ISNA(VLOOKUP(P99,Totals!$AX$3:$AY$102,2,FALSE)),"",VLOOKUP(P99,Totals!$AX$3:$AY$102,2,FALSE)) -> 0 | P99: 30 | V99: =IF(ISNA(VLOOKUP(W99,Totals!$AX$3:$AY$102,2,FALSE)),"",VLOOKUP(W99,Totals!$AX$3:$AY$102,2,FALSE)) -> 0 | W99: 30
H100: =IF(ISNA(VLOOKUP(I100,Totals!$AX$3:$AY$102,2,FALSE)),"",VLOOKUP(I100,Totals!$AX$3:$AY$102,2,FALSE)) -> 0 | I100: 30 | O100: =IF(ISNA(VLOOKUP(P100,Totals!$AX$3:$AY$102,2,FALSE)),"",VLOOKUP(P100,Totals!$AX$3:$AY$102,2,FALSE)) -> 0 | P100: 30 | V100: =IF(ISNA(VLOOKUP(W100,Totals!$AX$3:$AY$102,2,FALSE)),"",VLOOKUP(W100,Totals!$AX$3:$AY$102,2,FALSE)) -> 0 | W100: 30
H101: =IF(ISNA(VLOOKUP(I101,Totals!$AX$3:$AY$102,2,FALSE)),"",VLOOKUP(I101,Totals!$AX$3:$AY$102,2,FALSE)) -> 0 | I101: 30 | O101: =IF(ISNA(VLOOKUP(P101,Totals!$AX$3:$AY$102,2,FALSE)),"",VLOOKUP(P101,Totals!$AX$3:$AY$102,2,FALSE)) -> 0 | P101: 30 | V101: =IF(ISNA(VLOOKUP(W101,Totals!$AX$3:$AY$102,2,FALSE)),"",VLOOKUP(W101,Totals!$AX$3:$AY$102,2,FALSE)) -> 0 | W101: 30
H102: =IF(ISNA(VLOOKUP(I102,Totals!$AX$3:$AY$102,2,FALSE)),"",VLOOKUP(I102,Totals!$AX$3:$AY$102,2,FALSE)) -> 0 | I102: 30 | O102: =IF(ISNA(VLOOKUP(P102,Totals!$AX$3:$AY$102,2,FALSE)),"",VLOOKUP(P102,Totals!$AX$3:$AY$102,2,FALSE)) -> 0 | P102: 30 | V102: =IF(ISNA(VLOOKUP(W102,Totals!$AX$3:$AY$102,2,FALSE)),"",VLOOKUP(W102,Totals!$AX$3:$AY$102,2,FALSE)) -> 0 | W102: 30
H103: =IF(ISNA(VLOOKUP(I103,Totals!$AX$3:$AY$102,2,FALSE)),"",VLOOKUP(I103,Totals!$AX$3:$AY$102,2,FALSE)) -> 0 | I103: 30 | O103: =IF(ISNA(VLOOKUP(P103,Totals!$AX$3:$AY$102,2,FALSE)),"",VLOOKUP(P103,Totals!$AX$3:$AY$102,2,FALSE)) -> 0 | P103: 30 | V103: =IF(ISNA(VLOOKUP(W103,Totals!$AX$3:$AY$102,2,FALSE)),"",VLOOKUP(W103,Totals!$AX$3:$AY$102,2,FALSE)) -> 0 | W103: 30
H104: =IF(ISNA(VLOOKUP(I104,Totals!$AX$3:$AY$102,2,FALSE)),"",VLOOKUP(I104,Totals!$AX$3:$AY$102,2,FALSE)) -> 0 | I104: 30 | O104: =IF(ISNA(VLOOKUP(P104,Totals!$AX$3:$AY$102,2,FALSE)),"",VLOOKUP(P104,Totals!$AX$3:$AY$102,2,FALSE)) -> 0 | P104: 30 | V104: =IF(ISNA(VLOOKUP(W104,Totals!$AX$3:$AY$102,2,FALSE)),"",VLOOKUP(W104,Totals!$AX$3:$AY$102,2,FALSE)) -> 0 | W104: 30
H105: =IF(ISNA(VLOOKUP(I105,Totals!$AX$3:$AY$102,2,FALSE)),"",VLOOKUP(I105,Totals!$AX$3:$AY$102,2,FALSE)) -> 0 | I105: 30 | O105: =IF(ISNA(VLOOKUP(P105,Totals!$AX$3:$AY$102,2,FALSE)),"",VLOOKUP(P105,Totals!$AX$3:$AY$102,2,FALSE)) -> 0 | P105: 30 | V105: =IF(ISNA(VLOOKUP(W105,Totals!$AX$3:$AY$102,2,FALSE)),"",VLOOKUP(W105,Totals!$AX$3:$AY$102,2,FALSE)) -> 0 | W105: 30
H106: =IF(ISNA(VLOOKUP(I106,Totals!$AX$3:$AY$102,2,FALSE)),"",VLOOKUP(I106,Totals!$AX$3:$AY$102,2,FALSE)) -> 0 | I106: 30 | O106: =IF(ISNA(VLOOKUP(P106,Totals!$AX$3:$AY$102,2,FALSE)),"",VLOOKUP(P106,Totals!$AX$3:$AY$102,2,FALSE)) -> 0 | P106: 30 | V106: =IF(ISNA(VLOOKUP(W106,Totals!$AX$3:$AY$102,2,FALSE)),"",VLOOKUP(W106,Totals!$AX$3:$AY$102,2,FALSE)) -> 0 | W106: 30
H107: =IF(ISNA(VLOOKUP(I107,Totals!$AX$3:$AY$102,2,FALSE)),"",VLOOKUP(I107,Totals!$AX$3:$AY$102,2,FALSE)) -> 0 | I107: 30 | O107: =IF(ISNA(VLOOKUP(P107,Totals!$AX$3:$AY$102,2,FALSE)),"",VLOOKUP(P107,Totals!$AX$3:$AY$102,2,FALSE)) -> 0 | P107: 30 | V107: =IF(ISNA(VLOOKUP(W107,Totals!$AX$3:$AY$102,2,FALSE)),"",VLOOKUP(W107,Totals!$AX$3:$AY$102,2,FALSE)) -> 0 | W107: 30
H108: =IF(ISNA(VLOOKUP(I108,Totals!$AX$3:$AY$102,2,FALSE)),"",VLOOKUP(I108,Totals!$AX$3:$AY$102,2,FALSE)) -> 0 | I108: 30 | O108: =IF(ISNA(VLOOKUP(P108,Totals!$AX$3:$AY$102,2,FALSE)),"",VLOOKUP(P108,Totals!$AX$3:$AY$102,2,FALSE)) -> 0 | P108: 30 | V108: =IF(ISNA(VLOOKUP(W108,Totals!$AX$3:$AY$102,2,FALSE)),"",VLOOKUP(W108,Totals!$AX$3:$AY$102,2,FALSE)) -> 0 | W108: 30
H109: =IF(ISNA(VLOOKUP(I109,Totals!$AX$3:$AY$102,2,FALSE)),"",VLOOKUP(I109,Totals!$AX$3:$AY$102,2,FALSE)) -> 0 | I109: 30 | O109: =IF(ISNA(VLOOKUP(P109,Totals!$AX$3:$AY$102,2,FALSE)),"",VLOOKUP(P109,Totals!$AX$3:$AY$102,2,FALSE)) -> 0 | P109: 30 | V109: =IF(ISNA(VLOOKUP(W109,Totals!$AX$3:$AY$102,2,FALSE)),"",VLOOKUP(W109,Totals!$AX$3:$AY$102,2,FALSE)) -> 0 | W109: 30
H110: =IF(ISNA(VLOOKUP(I110,Totals!$AX$3:$AY$102,2,FALSE)),"",VLOOKUP(I110,Totals!$AX$3:$AY$102,2,FALSE)) -> 0 | I110: 30 | O110: =IF(ISNA(VLOOKUP(P110,Totals!$AX$3:$AY$102,2,FALSE)),"",VLOOKUP(P110,Totals!$AX$3:$AY$102,2,FALSE)) -> 0 | P110: 30 | V110: =IF(ISNA(VLOOKUP(W110,Totals!$AX$3:$AY$102,2,FALSE)),"",VLOOKUP(W110,Totals!$AX$3:$AY$102,2,FALSE)) -> 0 | W110: 30
H111: =IF(ISNA(VLOOKUP(I111,Totals!$AX$3:$AY$102,2,FALSE)),"",VLOOKUP(I111,Totals!$AX$3:$AY$102,2,FALSE)) -> 0 | I111: 30 | O111: =IF(ISNA(VLOOKUP(P111,Totals!$AX$3:$AY$102,2,FALSE)),"",VLOOKUP(P111,Totals!$AX$3:$AY$102,2,FALSE)) -> 0 | P111: 30 | V111: =IF(ISNA(VLOOKUP(W111,Totals!$AX$3:$AY$102,2,FALSE)),"",VLOOKUP(W111,Totals!$AX$3:$AY$102,2,FALSE)) -> 0 | W111: 30
H112: =IF(ISNA(VLOOKUP(I112,Totals!$AX$3:$AY$102,2,FALSE)),"",VLOOKUP(I112,Totals!$AX$3:$AY$102,2,FALSE)) -> 0 | I112: 30 | O112: =IF(ISNA(VLOOKUP(P112,Totals!$AX$3:$AY$102,2,FALSE)),"",VLOOKUP(P112,Totals!$AX$3:$AY$102,2,FALSE)) -> 0 | P112: 30 | V112: =IF(ISNA(VLOOKUP(W112,Totals!$AX$3:$AY$102,2,FALSE)),"",VLOOKUP(W112,Totals!$AX$3:$AY$102,2,FALSE)) -> 0 | W112: 30
H113: =IF(ISNA(VLOOKUP(I113,Totals!$AX$3:$AY$102,2,FALSE)),"",VLOOKUP(I113,Totals!$AX$3:$AY$102,2,FALSE)) -> 0 | I113: 30 | O113: =IF(ISNA(VLOOKUP(P113,Totals!$AX$3:$AY$102,2,FALSE)),"",VLOOKUP(P113,Totals!$AX$3:$AY$102,2,FALSE)) -> 0 | P113: 30 | V113: =IF(ISNA(VLOOKUP(W113,Totals!$AX$3:$AY$102,2,FALSE)),"",VLOOKUP(W113,Totals!$AX$3:$AY$102,2,FALSE)) -> 0 | W113: 30
H114: =IF(ISNA(VLOOKUP(I114,Totals!$AX$3:$AY$102,2,FALSE)),"",VLOOKUP(I114,Totals!$AX$3:$AY$102,2,FALSE)) -> 0 | I114: 30 | O114: =IF(ISNA(VLOOKUP(P114,Totals!$AX$3:$AY$102,2,FALSE)),"",VLOOKUP(P114,Totals!$AX$3:$AY$102,2,FALSE)) -> 0 | P114: 30 | V114: =IF(ISNA(VLOOKUP(W114,Totals!$AX$3:$AY$102,2,FALSE)),"",VLOOKUP(W114,Totals!$AX$3:$AY$102,2,FALSE)) -> 0 | W114: 30
H115: =IF(ISNA(VLOOKUP(I115,Totals!$AX$3:$AY$102,2,FALSE)),"",VLOOKUP(I115,Totals!$AX$3:$AY$102,2,FALSE)) -> 0 | I115: 30 | O115: =IF(ISNA(VLOOKUP(P115,Totals!$AX$3:$AY$102,2,FALSE)),"",VLOOKUP(P115,Totals!$AX$3:$AY$102,2,FALSE)) -> 0 | P115: 30 | V115: =IF(ISNA(VLOOKUP(W115,Totals!$AX$3:$AY$102,2,FALSE)),"",VLOOKUP(W115,Totals!$AX$3:$AY$102,2,FALSE)) -> 0 | W115: 30
H116: =IF(ISNA(VLOOKUP(I116,Totals!$AX$3:$AY$102,2,FALSE)),"",VLOOKUP(I116,Totals!$AX$3:$AY$102,2,FALSE)) -> 0 | I116: 30 | O116: =IF(ISNA(VLOOKUP(P116,Totals!$AX$3:$AY$102,2,FALSE)),"",VLOOKUP(P116,Totals!$AX$3:$AY$102,2,FALSE)) -> 0 | P116: 30 | V116: =IF(ISNA(VLOOKUP(W116,Totals!$AX$3:$AY$102,2,FALSE)),"",VLOOKUP(W116,Totals!$AX$3:$AY$102,2,FALSE)) -> 0 | W116: 30
H117: =IF(ISNA(VLOOKUP(I117,Totals!$AX$3:$AY$102,2,FALSE)),"",VLOOKUP(I117,Totals!$AX$3:$AY$102,2,FALSE)) -> 0 | I117: 30 | O117: =IF(ISNA(VLOOKUP(P117,Totals!$AX$3:$AY$102,2,FALSE)),"",VLOOKUP(P117,Totals!$AX$3:$AY$102,2,FALSE)) -> 0 | P117: 30 | V117: =IF(ISNA(VLOOKUP(W117,Totals!$AX$3:$AY$102,2,FALSE)),"",VLOOKUP(W117,Totals!$AX$3:$AY$102,2,FALSE)) -> 0 | W117: 30
H118: =IF(ISNA(VLOOKUP(I118,Totals!$AX$3:$AY$102,2,FALSE)),"",VLOOKUP(I118,Totals!$AX$3:$AY$102,2,FALSE)) -> 0 | I118: 30 | O118: =IF(ISNA(VLOOKUP(P118,Totals!$AX$3:$AY$102,2,FALSE)),"",VLOOKUP(P118,Totals!$AX$3:$AY$102,2,FALSE)) -> 0 | P118: 30 | V118: =IF(ISNA(VLOOKUP(W118,Totals!$AX$3:$AY$102,2,FALSE)),"",VLOOKUP(W118,Totals!$AX$3:$AY$102,2,FALSE)) -> 0 | W118: 30
H119: =IF(ISNA(VLOOKUP(I119,Totals!$AX$3:$AY$102,2,FALSE)),"",VLOOKUP(I119,Totals!$AX$3:$AY$102,2,FALSE)) -> 0 | I119: 30 | O119: =IF(ISNA(VLOOKUP(P119,Totals!$AX$3:$AY$102,2,FALSE)),"",VLOOKUP(P119,Totals!$AX$3:$AY$102,2,FALSE)) -> 0 | P119: 30 | V119: =IF(ISNA(VLOOKUP(W119,Totals!$AX$3:$AY$102,2,FALSE)),"",VLOOKUP(W119,Totals!$AX$3:$AY$102,2,FALSE)) -> 0 | W119: 30
H120: =IF(ISNA(VLOOKUP(I120,Totals!$AX$3:$AY$102,2,FALSE)),"",VLOOKUP(I120,Totals!$AX$3:$AY$102,2,FALSE)) -> 0 | I120: 30 | O120: =IF(ISNA(VLOOKUP(P120,Totals!$AX$3:$AY$102,2,FALSE)),"",VLOOKUP(P120,Totals!$AX$3:$AY$102,2,FALSE)) -> 0 | P120: 30 | V120: =IF(ISNA(VLOOKUP(W120,Totals!$AX$3:$AY$102,2,FALSE)),"",VLOOKUP(W120,Totals!$AX$3:$AY$102,2,FALSE)) -> 0 | W120: 30
H121: =IF(ISNA(VLOOKUP(I121,Totals!$AX$3:$AY$102,2,FALSE)),"",VLOOKUP(I121,Totals!$AX$3:$AY$102,2,FALSE)) -> 0 | I121: 30 | O121: =IF(ISNA(VLOOKUP(P121,Totals!$AX$3:$AY$102,2,FALSE)),"",VLOOKUP(P121,Totals!$AX$3:$AY$102,2,FALSE)) -> 0 | P121: 30 | V121: =IF(ISNA(VLOOKUP(W121,Totals!$AX$3:$AY$102,2,FALSE)),"",VLOOKUP(W121,Totals!$AX$3:$AY$102,2,FALSE)) -> 0 | W121: 30
H122: =IF(ISNA(VLOOKUP(I122,Totals!$AX$3:$AY$102,2,FALSE)),"",VLOOKUP(I122,Totals!$AX$3:$AY$102,2,FALSE)) -> 0 | I122: 30 | O122: =IF(ISNA(VLOOKUP(P122,Totals!$AX$3:$AY$102,2,FALSE)),"",VLOOKUP(P122,Totals!$AX$3:$AY$102,2,FALSE)) -> 0 | P122: 30 | V122: =IF(ISNA(VLOOKUP(W122,Totals!$AX$3:$AY$102,2,FALSE)),"",VLOOKUP(W122,Totals!$AX$3:$AY$102,2,FALSE)) -> 0 | W122: 30
H123: =IF(ISNA(VLOOKUP(I123,Totals!$AX$3:$AY$102,2,FALSE)),"",VLOOKUP(I123,Totals!$AX$3:$AY$102,2,FALSE)) -> 0 | I123: 30 | O123: =IF(ISNA(VLOOKUP(P123,Totals!$AX$3:$AY$102,2,FALSE)),"",VLOOKUP(P123,Totals!$AX$3:$AY$102,2,FALSE)) -> 0 | P123: 30 | V123: =IF(ISNA(VLOOKUP(W123,Totals!$AX$3:$AY$102,2,FALSE)),"",VLOOKUP(W123,Totals!$AX$3:$AY$102,2,FALSE)) -> 0 | W123: 30
H124: =IF(ISNA(VLOOKUP(I124,Totals!$AX$3:$AY$102,2,FALSE)),"",VLOOKUP(I124,Totals!$AX$3:$AY$102,2,FALSE)) -> 0 | I124: 30 | O124: =IF(ISNA(VLOOKUP(P124,Totals!$AX$3:$AY$102,2,FALSE)),"",VLOOKUP(P124,Totals!$AX$3:$AY$102,2,FALSE)) -> 0 | P124: 30 | V124: =IF(ISNA(VLOOKUP(W124,Totals!$AX$3:$AY$102,2,FALSE)),"",VLOOKUP(W124,Totals!$AX$3:$AY$102,2,FALSE)) -> 0 | W124: 30
H125: =IF(ISNA(VLOOKUP(I125,Totals!$AX$3:$AY$102,2,FALSE)),"",VLOOKUP(I125,Totals!$AX$3:$AY$102,2,FALSE)) -> 0 | I125: 30 | O125: =IF(ISNA(VLOOKUP(P125,Totals!$AX$3:$AY$102,2,FALSE)),"",VLOOKUP(P125,Totals!$AX$3:$AY$102,2,FALSE)) -> 0 | P125: 30 | V125: =IF(ISNA(VLOOKUP(W125,Totals!$AX$3:$AY$102,2,FALSE)),"",VLOOKUP(W125,Totals!$AX$3:$AY$102,2,FALSE)) -> 0 | W125: 30
H126: =IF(ISNA(VLOOKUP(I126,Totals!$AX$3:$AY$102,2,FALSE)),"",VLOOKUP(I126,Totals!$AX$3:$AY$102,2,FALSE)) -> 0 | I126: 30 | O126: =IF(ISNA(VLOOKUP(P126,Totals!$AX$3:$AY$102,2,FALSE)),"",VLOOKUP(P126,Totals!$AX$3:$AY$102,2,FALSE)) -> 0 | P126: 30 | V126: =IF(ISNA(VLOOKUP(W126,Totals!$AX$3:$AY$102,2,FALSE)),"",VLOOKUP(W126,Totals!$AX$3:$AY$102,2,FALSE)) -> 0 | W126: 30
H127: =IF(ISNA(VLOOKUP(I127,Totals!$AX$3:$AY$102,2,FALSE)),"",VLOOKUP(I127,Totals!$AX$3:$AY$102,2,FALSE)) -> 0 | I127: 30 | O127: =IF(ISNA(VLOOKUP(P127,Totals!$AX$3:$AY$102,2,FALSE)),"",VLOOKUP(P127,Totals!$AX$3:$AY$102,2,FALSE)) -> 0 | P127: 30 | V127: =IF(ISNA(VLOOKUP(W127,Totals!$AX$3:$AY$102,2,FALSE)),"",VLOOKUP(W127,Totals!$AX$3:$AY$102,2,FALSE)) -> 0 | W127: 30
H128: =IF(ISNA(VLOOKUP(I128,Totals!$AX$3:$AY$102,2,FALSE)),"",VLOOKUP(I128,Totals!$AX$3:$AY$102,2,FALSE)) -> 0 | I128: 30 | O128: =IF(ISNA(VLOOKUP(P128,Totals!$AX$3:$AY$102,2,FALSE)),"",VLOOKUP(P128,Totals!$AX$3:$AY$102,2,FALSE)) -> 0 | P128: 30 | V128: =IF(ISNA(VLOOKUP(W128,Totals!$AX$3:$AY$102,2,FALSE)),"",VLOOKUP(W128,Totals!$AX$3:$AY$102,2,FALSE)) -> 0 | W128: 30
H129: =IF(ISNA(VLOOKUP(I129,Totals!$AX$3:$AY$102,2,FALSE)),"",VLOOKUP(I129,Totals!$AX$3:$AY$102,2,FALSE)) -> 0 | I129: 30 | O129: =IF(ISNA(VLOOKUP(P129,Totals!$AX$3:$AY$102,2,FALSE)),"",VLOOKUP(P129,Totals!$AX$3:$AY$102,2,FALSE)) -> 0 | P129: 30 | V129: =IF(ISNA(VLOOKUP(W129,Totals!$AX$3:$AY$102,2,FALSE)),"",VLOOKUP(W129,Totals!$AX$3:$AY$102,2,FALSE)) -> 0 | W129: 30
H130: =IF(ISNA(VLOOKUP(I130,Totals!$AX$3:$AY$102,2,FALSE)),"",VLOOKUP(I130,Totals!$AX$3:$AY$102,2,FALSE)) -> 0 | I130: 30 | O130: =IF(ISNA(VLOOKUP(P130,Totals!$AX$3:$AY$102,2,FALSE)),"",VLOOKUP(P130,Totals!$AX$3:$AY$102,2,FALSE)) -> 0 | P130: 30 | V130: =IF(ISNA(VLOOKUP(W130,Totals!$AX$3:$AY$102,2,FALSE)),"",VLOOKUP(W130,Totals!$AX$3:$AY$102,2,FALSE)) -> 0 | W130: 30
H131: =IF(ISNA(VLOOKUP(I131,Totals!$AX$3:$AY$102,2,FALSE)),"",VLOOKUP(I131,Totals!$AX$3:$AY$102,2,FALSE)) -> 0 | I131: 30 | O131: =IF(ISNA(VLOOKUP(P131,Totals!$AX$3:$AY$102,2,FALSE)),"",VLOOKUP(P131,Totals!$AX$3:$AY$102,2,FALSE)) -> 0 | P131: 30 | V131: =IF(ISNA(VLOOKUP(W131,Totals!$AX$3:$AY$102,2,FALSE)),"",VLOOKUP(W131,Totals!$AX$3:$AY$102,2,FALSE)) -> 0 | W131: 30
H132: =IF(ISNA(VLOOKUP(I132,Totals!$AX$3:$AY$102,2,FALSE)),"",VLOOKUP(I132,Totals!$AX$3:$AY$102,2,FALSE)) -> 0 | I132: 30 | O132: =IF(ISNA(VLOOKUP(P132,Totals!$AX$3:$AY$102,2,FALSE)),"",VLOOKUP(P132,Totals!$AX$3:$AY$102,2,FALSE)) -> 0 | P132: 30 | V132: =IF(ISNA(VLOOKUP(W132,Totals!$AX$3:$AY$102,2,FALSE)),"",VLOOKUP(W132,Totals!$AX$3:$AY$102,2,FALSE)) -> 0 | W132: 30
H133: =IF(ISNA(VLOOKUP(I133,Totals!$AX$3:$AY$102,2,FALSE)),"",VLOOKUP(I133,Totals!$AX$3:$AY$102,2,FALSE)) -> 0 | I133: 30 | O133: =IF(ISNA(VLOOKUP(P133,Totals!$AX$3:$AY$102,2,FALSE)),"",VLOOKUP(P133,Totals!$AX$3:$AY$102,2,FALSE)) -> 0 | P133: 30 | V133: =IF(ISNA(VLOOKUP(W133,Totals!$AX$3:$AY$102,2,FALSE)),"",VLOOKUP(W133,Totals!$AX$3:$AY$102,2,FALSE)) -> 0 | W133: 30
H134: =IF(ISNA(VLOOKUP(I134,Totals!$AX$3:$AY$102,2,FALSE)),"",VLOOKUP(I134,Totals!$AX$3:$AY$102,2,FALSE)) -> 0 | I134: 30 | O134: =IF(ISNA(VLOOKUP(P134,Totals!$AX$3:$AY$102,2,FALSE)),"",VLOOKUP(P134,Totals!$AX$3:$AY$102,2,FALSE)) -> 0 | P134: =IF(ISNA(RANK(N134,N$5:N$150)),"",RANK(N134,N$5:N$150)) -> 30 | V134: =IF(ISNA(VLOOKUP(W134,Totals!$AX$3:$AY$102,2,FALSE)),"",VLOOKUP(W134,Totals!$AX$3:$AY$102,2,FALSE)) -> 0 | W134: =IF(ISNA(RANK(U134,U$5:U$150)),"",RANK(U134,U$5:U$150)) -> 30
H135: =IF(ISNA(VLOOKUP(I135,Totals!$AX$3:$AY$102,2,FALSE)),"",VLOOKUP(I135,Totals!$AX$3:$AY$102,2,FALSE)) -> 0 | I135: =IF(G135=G134,I134,IF(ISNA(RANK(G135,G$5:G$150)),"",RANK(G135,G$5:G$150))) -> 30 | O135: =IF(ISNA(VLOOKUP(P135,Totals!$AX$3:$AY$102,2,FALSE)),"",VLOOKUP(P135,Totals!$AX$3:$AY$102,2,FALSE)) -> 0 | P135: 30 | V135: =IF(ISNA(VLOOKUP(W135,Totals!$AX$3:$AY$102,2,FALSE)),"",VLOOKUP(W135,Totals!$AX$3:$AY$102,2,FALSE)) -> 0 | W135: 30
H136: =IF(ISNA(VLOOKUP(I136,Totals!$AX$3:$AY$102,2,FALSE)),"",VLOOKUP(I136,Totals!$AX$3:$AY$102,2,FALSE)) -> 0 | I136: 30 | O136: =IF(ISNA(VLOOKUP(P136,Totals!$AX$3:$AY$102,2,FALSE)),"",VLOOKUP(P136,Totals!$AX$3:$AY$102,2,FALSE)) -> 0 | P136: 30 | V136: =IF(ISNA(VLOOKUP(W136,Totals!$AX$3:$AY$102,2,FALSE)),"",VLOOKUP(W136,Totals!$AX$3:$AY$102,2,FALSE)) -> 0 | W136: 30
H137: =IF(ISNA(VLOOKUP(I137,Totals!$AX$3:$AY$102,2,FALSE)),"",VLOOKUP(I137,Totals!$AX$3:$AY$102,2,FALSE)) -> 0 | I137: 30 | O137: =IF(ISNA(VLOOKUP(P137,Totals!$AX$3:$AY$102,2,FALSE)),"",VLOOKUP(P137,Totals!$AX$3:$AY$102,2,FALSE)) -> 0 | P137: 30 | V137: =IF(ISNA(VLOOKUP(W137,Totals!$AX$3:$AY$102,2,FALSE)),"",VLOOKUP(W137,Totals!$AX$3:$AY$102,2,FALSE)) -> 0 | W137: 30
H138: =IF(ISNA(VLOOKUP(I138,Totals!$AX$3:$AY$102,2,FALSE)),"",VLOOKUP(I138,Totals!$AX$3:$AY$102,2,FALSE)) -> 0 | I138: 30 | O138: =IF(ISNA(VLOOKUP(P138,Totals!$AX$3:$AY$102,2,FALSE)),"",VLOOKUP(P138,Totals!$AX$3:$AY$102,2,FALSE)) -> 0 | P138: 30 | V138: =IF(ISNA(VLOOKUP(W138,Totals!$AX$3:$AY$102,2,FALSE)),"",VLOOKUP(W138,Totals!$AX$3:$AY$102,2,FALSE)) -> 0 | W138: 30
H139: =IF(ISNA(VLOOKUP(I139,Totals!$AX$3:$AY$102,2,FALSE)),"",VLOOKUP(I139,Totals!$AX$3:$AY$102,2,FALSE)) -> 0 | I139: 30 | O139: =IF(ISNA(VLOOKUP(P139,Totals!$AX$3:$AY$102,2,FALSE)),"",VLOOKUP(P139,Totals!$AX$3:$AY$102,2,FALSE)) -> 0 | P139: 30 | V139: =IF(ISNA(VLOOKUP(W139,Totals!$AX$3:$AY$102,2,FALSE)),"",VLOOKUP(W139,Totals!$AX$3:$AY$102,2,FALSE)) -> 0 | W139: 30
H140: =IF(ISNA(VLOOKUP(I140,Totals!$AX$3:$AY$102,2,FALSE)),"",VLOOKUP(I140,Totals!$AX$3:$AY$102,2,FALSE)) -> 0 | I140: 30 | O140: =IF(ISNA(VLOOKUP(P140,Totals!$AX$3:$AY$102,2,FALSE)),"",VLOOKUP(P140,Totals!$AX$3:$AY$102,2,FALSE)) -> 0 | P140: 30 | V140: =IF(ISNA(VLOOKUP(W140,Totals!$AX$3:$AY$102,2,FALSE)),"",VLOOKUP(W140,Totals!$AX$3:$AY$102,2,FALSE)) -> 0 | W140: 30
H141: =IF(ISNA(VLOOKUP(I141,Totals!$AX$3:$AY$102,2,FALSE)),"",VLOOKUP(I141,Totals!$AX$3:$AY$102,2,FALSE)) -> 0 | I141: 30 | O141: =IF(ISNA(VLOOKUP(P141,Totals!$AX$3:$AY$102,2,FALSE)),"",VLOOKUP(P141,Totals!$AX$3:$AY$102,2,FALSE)) -> 0 | P141: 30 | V141: =IF(ISNA(VLOOKUP(W141,Totals!$AX$3:$AY$102,2,FALSE)),"",VLOOKUP(W141,Totals!$AX$3:$AY$102,2,FALSE)) -> 0 | W141: 30
H142: =IF(ISNA(VLOOKUP(I142,Totals!$AX$3:$AY$102,2,FALSE)),"",VLOOKUP(I142,Totals!$AX$3:$AY$102,2,FALSE)) -> 0 | I142: 30 | O142: =IF(ISNA(VLOOKUP(P142,Totals!$AX$3:$AY$102,2,FALSE)),"",VLOOKUP(P142,Totals!$AX$3:$AY$102,2,FALSE)) -> 0 | P142: 30 | V142: =IF(ISNA(VLOOKUP(W142,Totals!$AX$3:$AY$102,2,FALSE)),"",VLOOKUP(W142,Totals!$AX$3:$AY$102,2,FALSE)) -> 0 | W142: 30
H143: =IF(ISNA(VLOOKUP(I143,Totals!$AX$3:$AY$102,2,FALSE)),"",VLOOKUP(I143,Totals!$AX$3:$AY$102,2,FALSE)) -> 0 | I143: 30 | O143: =IF(ISNA(VLOOKUP(P143,Totals!$AX$3:$AY$102,2,FALSE)),"",VLOOKUP(P143,Totals!$AX$3:$AY$102,2,FALSE)) -> 0 | P143: 30 | V143: =IF(ISNA(VLOOKUP(W143,Totals!$AX$3:$AY$102,2,FALSE)),"",VLOOKUP(W143,Totals!$AX$3:$AY$102,2,FALSE)) -> 0 | W143: 30
H144: =IF(ISNA(VLOOKUP(I144,Totals!$AX$3:$AY$102,2,FALSE)),"",VLOOKUP(I144,Totals!$AX$3:$AY$102,2,FALSE)) -> 0 | I144: 30 | O144: =IF(ISNA(VLOOKUP(P144,Totals!$AX$3:$AY$102,2,FALSE)),"",VLOOKUP(P144,Totals!$AX$3:$AY$102,2,FALSE)) -> 0 | P144: 30 | V144: =IF(ISNA(VLOOKUP(W144,Totals!$AX$3:$AY$102,2,FALSE)),"",VLOOKUP(W144,Totals!$AX$3:$AY$102,2,FALSE)) -> 0 | W144: 30
H145: =IF(ISNA(VLOOKUP(I145,Totals!$AX$3:$AY$102,2,FALSE)),"",VLOOKUP(I145,Totals!$AX$3:$AY$102,2,FALSE)) -> 0 | I145: 30 | O145: =IF(ISNA(VLOOKUP(P145,Totals!$AX$3:$AY$102,2,FALSE)),"",VLOOKUP(P145,Totals!$AX$3:$AY$102,2,FALSE)) -> 0 | P145: 30 | V145: =IF(ISNA(VLOOKUP(W145,Totals!$AX$3:$AY$102,2,FALSE)),"",VLOOKUP(W145,Totals!$AX$3:$AY$102,2,FALSE)) -> 0 | W145: 30
H146: =IF(ISNA(VLOOKUP(I146,Totals!$AX$3:$AY$102,2,FALSE)),"",VLOOKUP(I146,Totals!$AX$3:$AY$102,2,FALSE)) -> 0 | I146: 30 | O146: =IF(ISNA(VLOOKUP(P146,Totals!$AX$3:$AY$102,2,FALSE)),"",VLOOKUP(P146,Totals!$AX$3:$AY$102,2,FALSE)) -> 0 | P146: 30 | V146: =IF(ISNA(VLOOKUP(W146,Totals!$AX$3:$AY$102,2,FALSE)),"",VLOOKUP(W146,Totals!$AX$3:$AY$102,2,FALSE)) -> 0 | W146: 30
H147: =IF(ISNA(VLOOKUP(I147,Totals!$AX$3:$AY$102,2,FALSE)),"",VLOOKUP(I147,Totals!$AX$3:$AY$102,2,FALSE)) -> 0 | I147: 30 | O147: =IF(ISNA(VLOOKUP(P147,Totals!$AX$3:$AY$102,2,FALSE)),"",VLOOKUP(P147,Totals!$AX$3:$AY$102,2,FALSE)) -> 0 | P147: 30 | V147: =IF(ISNA(VLOOKUP(W147,Totals!$AX$3:$AY$102,2,FALSE)),"",VLOOKUP(W147,Totals!$AX$3:$AY$102,2,FALSE)) -> 0 | W147: 30
H148: =IF(ISNA(VLOOKUP(I148,Totals!$AX$3:$AY$102,2,FALSE)),"",VLOOKUP(I148,Totals!$AX$3:$AY$102,2,FALSE)) -> 0 | I148: 30 | O148: =IF(ISNA(VLOOKUP(P148,Totals!$AX$3:$AY$102,2,FALSE)),"",VLOOKUP(P148,Totals!$AX$3:$AY$102,2,FALSE)) -> 0 | P148: 30 | V148: =IF(ISNA(VLOOKUP(W148,Totals!$AX$3:$AY$102,2,FALSE)),"",VLOOKUP(W148,Totals!$AX$3:$AY$102,2,FALSE)) -> 0 | W148: 30
H149: =IF(ISNA(VLOOKUP(I149,Totals!$AX$3:$AY$102,2,FALSE)),"",VLOOKUP(I149,Totals!$AX$3:$AY$102,2,FALSE)) -> 0 | I149: 30 | O149: =IF(ISNA(VLOOKUP(P149,Totals!$AX$3:$AY$102,2,FALSE)),"",VLOOKUP(P149,Totals!$AX$3:$AY$102,2,FALSE)) -> 0 | P149: 30 | V149: =IF(ISNA(VLOOKUP(W149,Totals!$AX$3:$AY$102,2,FALSE)),"",VLOOKUP(W149,Totals!$AX$3:$AY$102,2,FALSE)) -> 0 | W149: 30
H150: =IF(ISNA(VLOOKUP(I150,Totals!$AX$3:$AY$102,2,FALSE)),"",VLOOKUP(I150,Totals!$AX$3:$AY$102,2,FALSE)) -> 0 | I150: 30 | O150: =IF(ISNA(VLOOKUP(P150,Totals!$AX$3:$AY$102,2,FALSE)),"",VLOOKUP(P150,Totals!$AX$3:$AY$102,2,FALSE)) -> 0 | P150: 30 | V150: =IF(ISNA(VLOOKUP(W150,Totals!$AX$3:$AY$102,2,FALSE)),"",VLOOKUP(W150,Totals!$AX$3:$AY$102,2,FALSE)) -> 0 | W150: 30
